Organisation Code,Organisation Label,Effective Date,Organisational Unit,Service Division Label,Category Internal Name,Purpose,Detailed Expenditure Code,Payment Date,Transaction Number,Irrecoverable VAT Amount,Amount,Capital Or Revenue,Beneficiary Name,Procurement Card
Http://opendatacommunities.org/id/metropolitan-district-council/leeds,Leeds City Council,31/08/2020,Resources and Housing,Leeds Building Services,Supplies and Services,Other Hired and Contracted Services,265,14/08/2020,2008-00001,0.00,450.00,R,A & S Landscape,No
Http://opendatacommunities.org/id/metropolitan-district-council/leeds,Leeds City Council,31/08/2020,Adults and Health,Services For Older People Under 65 P/Dis,Third Party Payments,Sheltered Accommodation,569,19/08/2020,2008-00002,0.00,5400.00,R,A & V TRANSITIONAL HOMES,No
Http://opendatacommunities.org/id/metropolitan-district-council/leeds,Leeds City Council,31/08/2020,Resources and Housing,Leeds Building Services,Supplies and Services,Operational Materials,205,06/08/2020,2008-00003,0.00,16.64,R,A ANDREWS & SONS (MARBLES & TILES),No
Http://opendatacommunities.org/id/metropolitan-district-council/leeds,Leeds City Council,31/08/2020,Children and Families,Social Care,Third Party Payments,Services Rendered By Other Organisations,511,07/08/2020,2008-00004,0.00,775.26,R,REDACTED PERSONAL DATA,No
Http://opendatacommunities.org/id/metropolitan-district-council/leeds,Leeds City Council,31/08/2020,Children and Families,Social Care,Third Party Payments,Services Rendered By Other Organisations,511,07/08/2020,2008-00005,0.00,861.98,R,REDACTED PERSONAL DATA,No
Http://opendatacommunities.org/id/metropolitan-district-council/leeds,Leeds City Council,31/08/2020,Children and Families,Social Care,Third Party Payments,Services Rendered By Other Organisations,511,07/08/2020,2008-00006,0.00,100.80,R,REDACTED PERSONAL DATA,No
Http://opendatacommunities.org/id/metropolitan-district-council/leeds,Leeds City Council,31/08/2020,Children and Families,Social Care,Third Party Payments,Services Rendered By Other Organisations,511,07/08/2020,2008-00007,0.00,315.36,R,REDACTED PERSONAL DATA,No
Http://opendatacommunities.org/id/metropolitan-district-council/leeds,Leeds City Council,31/08/2020,Resources and Housing,Leeds Building Services,Supplies and Services,Other Hired and Contracted Services,265,21/08/2020,2008-00008,0.00,85.00,R,A Coole Electrical Ltd,No
Http://opendatacommunities.org/id/metropolitan-district-council/leeds,Leeds City Council,31/08/2020,Resources and Housing,Leeds Building Services,Supplies and Services,Other Hired and Contracted Services,265,26/08/2020,2008-00009,0.00,2575.00,R,A Coole Electrical Ltd,No
Http://opendatacommunities.org/id/metropolitan-district-council/leeds,Leeds City Council,31/08/2020,Resources and Housing,Leeds Building Services,Supplies and Services,Other Hired and Contracted Services,265,26/08/2020,2008-00010,0.00,2515.00,R,A Coole Electrical Ltd,No
Http://opendatacommunities.org/id/metropolitan-district-council/leeds,Leeds City Council,31/08/2020,Resources and Housing,Leeds Building Services,Supplies and Services,Other Hired and Contracted Services,265,26/08/2020,2008-00011,0.00,2368.00,R,A Coole Electrical Ltd,No
Http://opendatacommunities.org/id/metropolitan-district-council/leeds,Leeds City Council,31/08/2020,Resources and Housing,Leeds Building Services,Supplies and Services,Other Hired and Contracted Services,265,28/08/2020,2008-00012,0.00,85.00,R,A Coole Electrical Ltd,No
Http://opendatacommunities.org/id/metropolitan-district-council/leeds,Leeds City Council,31/08/2020,Communities and Environment,Communities,Supplies and Services,Other Hired and Contracted Services,265,12/08/2020,2008-00013,0.00,45.00,R,A D Dumitru,No
Http://opendatacommunities.org/id/metropolitan-district-council/leeds,Leeds City Council,31/08/2020,Communities and Environment,Customer Access,Supplies and Services,Bought In Professional Services,277,19/08/2020,2008-00014,0.00,9.00,R,A D Dumitru,No
Http://opendatacommunities.org/id/metropolitan-district-council/leeds,Leeds City Council,31/08/2020,Communities and Environment,Communities,Supplies and Services,Other Hired and Contracted Services,265,24/08/2020,2008-00015,0.00,15.00,R,A D Dumitru,No
Http://opendatacommunities.org/id/metropolitan-district-council/leeds,Leeds City Council,31/08/2020,Children and Families,Social Care,Third Party Payments,Services Rendered By Voluntary Sector,505,05/08/2020,2008-00016,0.00,950.40,R,REDACTED PERSONAL DATA,No
Http://opendatacommunities.org/id/metropolitan-district-council/leeds,Leeds City Council,31/08/2020,Children and Families,Social Care,Third Party Payments,Services Rendered By Other Organisations,511,07/08/2020,2008-00017,0.00,5270.01,R,REDACTED PERSONAL DATA,No
Http://opendatacommunities.org/id/metropolitan-district-council/leeds,Leeds City Council,31/08/2020,Children and Families,Social Care,Third Party Payments,Services Rendered By Voluntary Sector,505,07/08/2020,2008-00018,0.00,378.00,R,REDACTED PERSONAL DATA,No
Http://opendatacommunities.org/id/metropolitan-district-council/leeds,Leeds City Council,31/08/2020,Children and Families,Social Care,Third Party Payments,Services Rendered By Voluntary Sector,505,07/08/2020,2008-00019,0.00,381.60,R,REDACTED PERSONAL DATA,No
Http://opendatacommunities.org/id/metropolitan-district-council/leeds,Leeds City Council,31/08/2020,Children and Families,Social Care,Third Party Payments,Services Rendered By Other Organisations,511,05/08/2020,2008-00020,0.00,570.24,R,REDACTED PERSONAL DATA,No
Http://opendatacommunities.org/id/metropolitan-district-council/leeds,Leeds City Council,31/08/2020,Children and Families,Social Care,Third Party Payments,Services Rendered By Other Organisations,511,07/08/2020,2008-00021,0.00,630.72,R,REDACTED PERSONAL DATA,No
Http://opendatacommunities.org/id/metropolitan-district-council/leeds,Leeds City Council,31/08/2020,Resources and Housing,HRA Housing Leeds,Capital,OTHER COSTS,7,20/08/2020,2008-00022,0.00,94.17,C,REDACTED PERSONAL DATA,No
Http://opendatacommunities.org/id/metropolitan-district-council/leeds,Leeds City Council,31/08/2020,Resources and Housing,HRA Housing Leeds,Capital,OTHER COSTS,7,20/08/2020,2008-00023,0.00,94.17,C,REDACTED PERSONAL DATA,No
Http://opendatacommunities.org/id/metropolitan-district-council/leeds,Leeds City Council,31/08/2020,Children and Families,Social Care,Third Party Payments,Services Rendered By Other Organisations,511,07/08/2020,2008-00024,0.00,478.29,R,REDACTED PERSONAL DATA,No
Http://opendatacommunities.org/id/metropolitan-district-council/leeds,Leeds City Council,31/08/2020,Resources and Housing,HRA Housing Leeds,Capital,OTHER COSTS,7,20/08/2020,2008-00025,0.00,170.09,C,REDACTED PERSONAL DATA,No
Http://opendatacommunities.org/id/metropolitan-district-council/leeds,Leeds City Council,31/08/2020,Children and Families,Social Care,Third Party Payments,Services Rendered By Other Organisations,511,05/08/2020,2008-00026,0.00,1140.48,R,REDACTED PERSONAL DATA,No
Http://opendatacommunities.org/id/metropolitan-district-council/leeds,Leeds City Council,31/08/2020,Children and Families,Social Care,Third Party Payments,Services Rendered By Other Organisations,511,07/08/2020,2008-00027,0.00,315.36,R,REDACTED PERSONAL DATA,No
Http://opendatacommunities.org/id/metropolitan-district-council/leeds,Leeds City Council,31/08/2020,Children and Families,Social Care,Third Party Payments,Services Rendered By Other Organisations,511,07/08/2020,2008-00028,0.00,157.68,R,REDACTED PERSONAL DATA,No
Http://opendatacommunities.org/id/metropolitan-district-council/leeds,Leeds City Council,31/08/2020,Adults and Health,Other Generic Services,Third Party Payments,Fees To Carers,563,14/08/2020,2008-00029,0.00,440.64,R,REDACTED PERSONAL DATA,No
Http://opendatacommunities.org/id/metropolitan-district-council/leeds,Leeds City Council,31/08/2020,Adults and Health,Other Generic Services,Third Party Payments,Fees To Carers,563,14/08/2020,2008-00030,0.00,50.40,R,REDACTED PERSONAL DATA,No
Http://opendatacommunities.org/id/metropolitan-district-council/leeds,Leeds City Council,31/08/2020,City Development,Libraries  Arts & Heritage,Supplies and Services,Other Hired and Contracted Services,265,28/08/2020,2008-00031,0.00,630.00,R,REDACTED COMMERCIAL CONFIDENTIALITY,No
Http://opendatacommunities.org/id/metropolitan-district-council/leeds,Leeds City Council,31/08/2020,Resources and Housing,Leeds Building Services,Supplies and Services,Operational Materials,205,03/08/2020,2008-00032,0.00,378.50,R,A J H  Pump Supply & Repair Ltd,No
Http://opendatacommunities.org/id/metropolitan-district-council/leeds,Leeds City Council,31/08/2020,Resources and Housing,Leeds Building Services,Supplies and Services,Operational Materials,205,03/08/2020,2008-00033,0.00,112.50,R,A J H  Pump Supply & Repair Ltd,No
Http://opendatacommunities.org/id/metropolitan-district-council/leeds,Leeds City Council,31/08/2020,Resources and Housing,Leeds Building Services,Supplies and Services,Operational Materials,205,03/08/2020,2008-00034,0.00,298.28,R,A J H  Pump Supply & Repair Ltd,No
Http://opendatacommunities.org/id/metropolitan-district-council/leeds,Leeds City Council,31/08/2020,Resources and Housing,Leeds Building Services,Supplies and Services,Operational Materials,205,03/08/2020,2008-00035,0.00,36.79,R,A J H  Pump Supply & Repair Ltd,No
Http://opendatacommunities.org/id/metropolitan-district-council/leeds,Leeds City Council,31/08/2020,Resources and Housing,Leeds Building Services,Supplies and Services,Operational Materials,205,03/08/2020,2008-00036,0.00,186.30,R,A J H  Pump Supply & Repair Ltd,No
Http://opendatacommunities.org/id/metropolitan-district-council/leeds,Leeds City Council,31/08/2020,Resources and Housing,Leeds Building Services,Supplies and Services,Operational Materials,205,03/08/2020,2008-00037,0.00,66.00,R,A J H  Pump Supply & Repair Ltd,No
Http://opendatacommunities.org/id/metropolitan-district-council/leeds,Leeds City Council,31/08/2020,Resources and Housing,Leeds Building Services,Supplies and Services,Operational Materials,205,03/08/2020,2008-00038,0.00,49.85,R,A J H  Pump Supply & Repair Ltd,No
Http://opendatacommunities.org/id/metropolitan-district-council/leeds,Leeds City Council,31/08/2020,Resources and Housing,Leeds Building Services,Supplies and Services,Operational Materials,205,03/08/2020,2008-00039,0.00,1223.70,R,A J H  Pump Supply & Repair Ltd,No
Http://opendatacommunities.org/id/metropolitan-district-council/leeds,Leeds City Council,31/08/2020,Resources and Housing,Leeds Building Services,Supplies and Services,Operational Materials,205,03/08/2020,2008-00040,0.00,470.00,R,A J H  Pump Supply & Repair Ltd,No
Http://opendatacommunities.org/id/metropolitan-district-council/leeds,Leeds City Council,31/08/2020,Resources and Housing,Leeds Building Services,Supplies and Services,Operational Materials,205,03/08/2020,2008-00041,0.00,355.90,R,A J H  Pump Supply & Repair Ltd,No
Http://opendatacommunities.org/id/metropolitan-district-council/leeds,Leeds City Council,31/08/2020,Resources and Housing,Leeds Building Services,Supplies and Services,Operational Materials,205,03/08/2020,2008-00042,0.00,97.94,R,A J H  Pump Supply & Repair Ltd,No
Http://opendatacommunities.org/id/metropolitan-district-council/leeds,Leeds City Council,31/08/2020,Resources and Housing,Leeds Building Services,Supplies and Services,Operational Materials,205,03/08/2020,2008-00043,0.00,17.50,R,A J H  Pump Supply & Repair Ltd,No
Http://opendatacommunities.org/id/metropolitan-district-council/leeds,Leeds City Council,31/08/2020,Resources and Housing,Leeds Building Services,Supplies and Services,Operational Materials,205,03/08/2020,2008-00044,0.00,50.00,R,A J H  Pump Supply & Repair Ltd,No
Http://opendatacommunities.org/id/metropolitan-district-council/leeds,Leeds City Council,31/08/2020,Resources and Housing,Leeds Building Services,Supplies and Services,Operational Materials,205,03/08/2020,2008-00045,0.00,41.26,R,A J H  Pump Supply & Repair Ltd,No
Http://opendatacommunities.org/id/metropolitan-district-council/leeds,Leeds City Council,31/08/2020,Resources and Housing,Leeds Building Services,Supplies and Services,Operational Materials,205,03/08/2020,2008-00046,0.00,685.00,R,A J H  Pump Supply & Repair Ltd,No
Http://opendatacommunities.org/id/metropolitan-district-council/leeds,Leeds City Council,31/08/2020,Resources and Housing,Leeds Building Services,Supplies and Services,Operational Materials,205,03/08/2020,2008-00047,0.00,60.15,R,A J H  Pump Supply & Repair Ltd,No
Http://opendatacommunities.org/id/metropolitan-district-council/leeds,Leeds City Council,31/08/2020,Resources and Housing,Leeds Building Services,Supplies and Services,Operational Materials,205,03/08/2020,2008-00048,0.00,89.95,R,A J H  Pump Supply & Repair Ltd,No
Http://opendatacommunities.org/id/metropolitan-district-council/leeds,Leeds City Council,31/08/2020,Resources and Housing,Leeds Building Services,Supplies and Services,Operational Materials,205,03/08/2020,2008-00049,0.00,168.19,R,A J H  Pump Supply & Repair Ltd,No
Http://opendatacommunities.org/id/metropolitan-district-council/leeds,Leeds City Council,31/08/2020,Resources and Housing,Leeds Building Services,Supplies and Services,Operational Materials,205,03/08/2020,2008-00050,0.00,314.10,R,A J H  Pump Supply & Repair Ltd,No
Http://opendatacommunities.org/id/metropolitan-district-council/leeds,Leeds City Council,31/08/2020,Resources and Housing,Leeds Building Services,Supplies and Services,Other Hired and Contracted Services,265,13/08/2020,2008-00051,0.00,1277.00,R,A J H  Pump Supply & Repair Ltd,No
Http://opendatacommunities.org/id/metropolitan-district-council/leeds,Leeds City Council,31/08/2020,Resources and Housing,Leeds Building Services,Supplies and Services,Operational Materials,205,21/08/2020,2008-00052,0.00,1232.00,R,A J H  Pump Supply & Repair Ltd,No
Http://opendatacommunities.org/id/metropolitan-district-council/leeds,Leeds City Council,31/08/2020,Resources and Housing,Leeds Building Services,Supplies and Services,Other Hired and Contracted Services,265,26/08/2020,2008-00053,0.00,240.00,R,A J H  Pump Supply & Repair Ltd,No
Http://opendatacommunities.org/id/metropolitan-district-council/leeds,Leeds City Council,31/08/2020,Resources and Housing,Leeds Building Services,Supplies and Services,Operational Materials,205,26/08/2020,2008-00054,0.00,462.00,R,A J H  Pump Supply & Repair Ltd,No
Http://opendatacommunities.org/id/metropolitan-district-council/leeds,Leeds City Council,31/08/2020,Resources and Housing,Leeds Building Services,Supplies and Services,Operational Materials,205,27/08/2020,2008-00055,0.00,125.00,R,A J H  Pump Supply & Repair Ltd,No
Http://opendatacommunities.org/id/metropolitan-district-council/leeds,Leeds City Council,31/08/2020,Resources and Housing,Leeds Building Services,Supplies and Services,Operational Materials,205,27/08/2020,2008-00056,0.00,317.45,R,A J H  Pump Supply & Repair Ltd,No
Http://opendatacommunities.org/id/metropolitan-district-council/leeds,Leeds City Council,31/08/2020,Resources and Housing,Leeds Building Services,Supplies and Services,Operational Materials,205,27/08/2020,2008-00057,0.00,765.00,R,A J H  Pump Supply & Repair Ltd,No
Http://opendatacommunities.org/id/metropolitan-district-council/leeds,Leeds City Council,31/08/2020,Resources and Housing,Leeds Building Services,Supplies and Services,Operational Materials,205,27/08/2020,2008-00058,0.00,315.90,R,A J H  Pump Supply & Repair Ltd,No
Http://opendatacommunities.org/id/metropolitan-district-council/leeds,Leeds City Council,31/08/2020,Resources and Housing,Leeds Building Services,Supplies and Services,Operational Materials,205,27/08/2020,2008-00059,0.00,76.08,R,A J H  Pump Supply & Repair Ltd,No
Http://opendatacommunities.org/id/metropolitan-district-council/leeds,Leeds City Council,31/08/2020,Resources and Housing,Leeds Building Services,Supplies and Services,Operational Materials,205,27/08/2020,2008-00060,0.00,168.20,R,A J H  Pump Supply & Repair Ltd,No
Http://opendatacommunities.org/id/metropolitan-district-council/leeds,Leeds City Council,31/08/2020,Resources and Housing,Leeds Building Services,Supplies and Services,Operational Materials,205,27/08/2020,2008-00061,0.00,249.35,R,A J H  Pump Supply & Repair Ltd,No
Http://opendatacommunities.org/id/metropolitan-district-council/leeds,Leeds City Council,31/08/2020,Resources and Housing,Leeds Building Services,Supplies and Services,Operational Materials,205,27/08/2020,2008-00062,0.00,249.00,R,A J H  Pump Supply & Repair Ltd,No
Http://opendatacommunities.org/id/metropolitan-district-council/leeds,Leeds City Council,31/08/2020,Resources and Housing,Leeds Building Services,Supplies and Services,Operational Materials,205,27/08/2020,2008-00063,0.00,229.05,R,A J H  Pump Supply & Repair Ltd,No
Http://opendatacommunities.org/id/metropolitan-district-council/leeds,Leeds City Council,31/08/2020,Resources and Housing,Leeds Building Services,Supplies and Services,Operational Materials,205,27/08/2020,2008-00064,0.00,120.38,R,A J H  Pump Supply & Repair Ltd,No
Http://opendatacommunities.org/id/metropolitan-district-council/leeds,Leeds City Council,31/08/2020,Resources and Housing,Leeds Building Services,Supplies and Services,Operational Materials,205,27/08/2020,2008-00065,0.00,131.00,R,A J H  Pump Supply & Repair Ltd,No
Http://opendatacommunities.org/id/metropolitan-district-council/leeds,Leeds City Council,31/08/2020,Resources and Housing,Leeds Building Services,Supplies and Services,Operational Materials,205,27/08/2020,2008-00066,0.00,262.71,R,A J H  Pump Supply & Repair Ltd,No
Http://opendatacommunities.org/id/metropolitan-district-council/leeds,Leeds City Council,31/08/2020,Resources and Housing,Leeds Building Services,Supplies and Services,Operational Materials,205,27/08/2020,2008-00067,0.00,7449.00,R,A J H  Pump Supply & Repair Ltd,No
Http://opendatacommunities.org/id/metropolitan-district-council/leeds,Leeds City Council,31/08/2020,Resources and Housing,Leeds Building Services,Supplies and Services,Operational Materials,205,27/08/2020,2008-00068,0.00,573.00,R,A J H  Pump Supply & Repair Ltd,No
Http://opendatacommunities.org/id/metropolitan-district-council/leeds,Leeds City Council,31/08/2020,Resources and Housing,Leeds Building Services,Supplies and Services,Operational Materials,205,28/08/2020,2008-00069,0.00,68.00,R,A J H  Pump Supply & Repair Ltd,No
Http://opendatacommunities.org/id/metropolitan-district-council/leeds,Leeds City Council,31/08/2020,Resources and Housing,Leeds Building Services,Supplies and Services,Operational Materials,205,28/08/2020,2008-00070,0.00,228.00,R,A J H  Pump Supply & Repair Ltd,No
Http://opendatacommunities.org/id/metropolitan-district-council/leeds,Leeds City Council,31/08/2020,Resources and Housing,Leeds Building Services,Supplies and Services,Operational Materials,205,28/08/2020,2008-00071,0.00,1475.00,R,A J H  Pump Supply & Repair Ltd,No
Http://opendatacommunities.org/id/metropolitan-district-council/leeds,Leeds City Council,31/08/2020,Resources and Housing,Leeds Building Services,Supplies and Services,Operational Materials,205,28/08/2020,2008-00072,0.00,44.00,R,A J H  Pump Supply & Repair Ltd,No
Http://opendatacommunities.org/id/metropolitan-district-council/leeds,Leeds City Council,31/08/2020,Resources and Housing,Leeds Building Services,Supplies and Services,Operational Materials,205,28/08/2020,2008-00073,0.00,294.18,R,A J H  Pump Supply & Repair Ltd,No
Http://opendatacommunities.org/id/metropolitan-district-council/leeds,Leeds City Council,31/08/2020,Resources and Housing,Leeds Building Services,Supplies and Services,Operational Materials,205,28/08/2020,2008-00074,0.00,42.00,R,A J H  Pump Supply & Repair Ltd,No
Http://opendatacommunities.org/id/metropolitan-district-council/leeds,Leeds City Council,31/08/2020,Resources and Housing,Leeds Building Services,Supplies and Services,Operational Materials,205,28/08/2020,2008-00075,0.00,866.47,R,A J H  Pump Supply & Repair Ltd,No
Http://opendatacommunities.org/id/metropolitan-district-council/leeds,Leeds City Council,31/08/2020,Resources and Housing,Leeds Building Services,Supplies and Services,Operational Materials,205,28/08/2020,2008-00076,0.00,349.73,R,A J H  Pump Supply & Repair Ltd,No
Http://opendatacommunities.org/id/metropolitan-district-council/leeds,Leeds City Council,31/08/2020,Resources and Housing,Leeds Building Services,Supplies and Services,Operational Materials,205,28/08/2020,2008-00077,0.00,133.35,R,A J H  Pump Supply & Repair Ltd,No
Http://opendatacommunities.org/id/metropolitan-district-council/leeds,Leeds City Council,31/08/2020,Resources and Housing,Leeds Building Services,Supplies and Services,Operational Materials,205,28/08/2020,2008-00078,0.00,175.65,R,A J H  Pump Supply & Repair Ltd,No
Http://opendatacommunities.org/id/metropolitan-district-council/leeds,Leeds City Council,31/08/2020,Resources and Housing,Leeds Building Services,Supplies and Services,Operational Materials,205,28/08/2020,2008-00079,0.00,376.30,R,A J H  Pump Supply & Repair Ltd,No
Http://opendatacommunities.org/id/metropolitan-district-council/leeds,Leeds City Council,31/08/2020,Resources and Housing,Leeds Building Services,Supplies and Services,Operational Materials,205,28/08/2020,2008-00080,0.00,151.17,R,A J H  Pump Supply & Repair Ltd,No
Http://opendatacommunities.org/id/metropolitan-district-council/leeds,Leeds City Council,31/08/2020,Resources and Housing,Leeds Building Services,Supplies and Services,Operational Materials,205,28/08/2020,2008-00081,0.00,491.00,R,A J H  Pump Supply & Repair Ltd,No
Http://opendatacommunities.org/id/metropolitan-district-council/leeds,Leeds City Council,31/08/2020,Resources and Housing,Leeds Building Services,Supplies and Services,Operational Materials,205,28/08/2020,2008-00082,0.00,173.39,R,A J H  Pump Supply & Repair Ltd,No
Http://opendatacommunities.org/id/metropolitan-district-council/leeds,Leeds City Council,31/08/2020,Resources and Housing,Leeds Building Services,Supplies and Services,Operational Materials,205,28/08/2020,2008-00083,0.00,1116.02,R,A J H  Pump Supply & Repair Ltd,No
Http://opendatacommunities.org/id/metropolitan-district-council/leeds,Leeds City Council,31/08/2020,Resources and Housing,Leeds Building Services,Supplies and Services,Operational Materials,205,28/08/2020,2008-00084,0.00,17.95,R,A J H  Pump Supply & Repair Ltd,No
Http://opendatacommunities.org/id/metropolitan-district-council/leeds,Leeds City Council,31/08/2020,Resources and Housing,Leeds Building Services,Supplies and Services,Operational Materials,205,28/08/2020,2008-00085,0.00,100.80,R,A J H  Pump Supply & Repair Ltd,No
Http://opendatacommunities.org/id/metropolitan-district-council/leeds,Leeds City Council,31/08/2020,Resources and Housing,Leeds Building Services,Supplies and Services,Operational Materials,205,28/08/2020,2008-00086,0.00,65.00,R,A J H  Pump Supply & Repair Ltd,No
Http://opendatacommunities.org/id/metropolitan-district-council/leeds,Leeds City Council,31/08/2020,Resources and Housing,Leeds Building Services,Supplies and Services,Operational Materials,205,28/08/2020,2008-00087,0.00,276.54,R,A J H  Pump Supply & Repair Ltd,No
Http://opendatacommunities.org/id/metropolitan-district-council/leeds,Leeds City Council,31/08/2020,Resources and Housing,Leeds Building Services,Supplies and Services,Other Hired and Contracted Services,265,28/08/2020,2008-00088,0.00,180.00,R,A J H  Pump Supply & Repair Ltd,No
Http://opendatacommunities.org/id/metropolitan-district-council/leeds,Leeds City Council,31/08/2020,Resources and Housing,Leeds Building Services,Supplies and Services,Operational Materials,205,28/08/2020,2008-00089,0.00,270.00,R,A J H  Pump Supply & Repair Ltd,No
Http://opendatacommunities.org/id/metropolitan-district-council/leeds,Leeds City Council,31/08/2020,Resources and Housing,Leeds Building Services,Supplies and Services,Operational Materials,205,28/08/2020,2008-00090,0.00,237.64,R,A J H  Pump Supply & Repair Ltd,No
Http://opendatacommunities.org/id/metropolitan-district-council/leeds,Leeds City Council,31/08/2020,Resources and Housing,Leeds Building Services,Supplies and Services,Operational Materials,205,28/08/2020,2008-00091,0.00,527.30,R,A J H  Pump Supply & Repair Ltd,No
Http://opendatacommunities.org/id/metropolitan-district-council/leeds,Leeds City Council,31/08/2020,Resources and Housing,Leeds Building Services,Supplies and Services,Operational Materials,205,28/08/2020,2008-00092,0.00,138.56,R,A J H  Pump Supply & Repair Ltd,No
Http://opendatacommunities.org/id/metropolitan-district-council/leeds,Leeds City Council,31/08/2020,Resources and Housing,Leeds Building Services,Supplies and Services,Operational Materials,205,28/08/2020,2008-00093,0.00,425.00,R,A J H  Pump Supply & Repair Ltd,No
Http://opendatacommunities.org/id/metropolitan-district-council/leeds,Leeds City Council,31/08/2020,Resources and Housing,Leeds Building Services,Supplies and Services,Operational Materials,205,28/08/2020,2008-00094,0.00,192.40,R,A J H  Pump Supply & Repair Ltd,No
Http://opendatacommunities.org/id/metropolitan-district-council/leeds,Leeds City Council,31/08/2020,Resources and Housing,Leeds Building Services,Supplies and Services,Operational Materials,205,28/08/2020,2008-00095,0.00,64.23,R,A J H  Pump Supply & Repair Ltd,No
Http://opendatacommunities.org/id/metropolitan-district-council/leeds,Leeds City Council,31/08/2020,Resources and Housing,Leeds Building Services,Supplies and Services,Operational Materials,205,28/08/2020,2008-00096,0.00,616.90,R,A J H  Pump Supply & Repair Ltd,No
Http://opendatacommunities.org/id/metropolitan-district-council/leeds,Leeds City Council,31/08/2020,City Development,Libraries  Arts & Heritage,Supplies and Services,ART GALLERIES TOTAL STORES,3,24/08/2020,2008-00097,0.00,108.00,R,A J PROMOTIONS,No
Http://opendatacommunities.org/id/metropolitan-district-council/leeds,Leeds City Council,31/08/2020,City Development,Libraries  Arts & Heritage,Supplies and Services,ART GALLERIES TOTAL STORES,3,28/08/2020,2008-00098,0.00,728.00,R,A J PROMOTIONS,No
Http://opendatacommunities.org/id/metropolitan-district-council/leeds,Leeds City Council,31/08/2020,Children and Families,Social Care,Third Party Payments,Services Rendered By Other Organisations,511,07/08/2020,2008-00099,0.00,2049.84,R,REDACTED PERSONAL DATA,No
Http://opendatacommunities.org/id/metropolitan-district-council/leeds,Leeds City Council,31/08/2020,Children and Families,Social Care,Third Party Payments,Services Rendered By Other Organisations,511,07/08/2020,2008-00100,0.00,160.20,R,REDACTED PERSONAL DATA,No
Http://opendatacommunities.org/id/metropolitan-district-council/leeds,Leeds City Council,31/08/2020,Communities and Environment,Customer Access,Supplies and Services,Books & Audio-Visual Materials,206,26/08/2020,2008-00101,0.00,18.00,R,REDACTED PERSONAL DATA,No
Http://opendatacommunities.org/id/metropolitan-district-council/leeds,Leeds City Council,31/08/2020,Children and Families,Social Care,Third Party Payments,Services Rendered By Other Organisations,511,25/08/2020,2008-00102,0.00,437.50,R,A Little Something Extra Ltd,No
Http://opendatacommunities.org/id/metropolitan-district-council/leeds,Leeds City Council,31/08/2020,Children and Families,Social Care,Third Party Payments,Services Rendered By Other Organisations,511,25/08/2020,2008-00103,0.00,490.00,R,A Little Something Extra Ltd,No
Http://opendatacommunities.org/id/metropolitan-district-council/leeds,Leeds City Council,31/08/2020,Children and Families,Social Care,Third Party Payments,Services Rendered By Other Organisations,511,05/08/2020,2008-00104,0.00,570.24,R,REDACTED PERSONAL DATA,No
Http://opendatacommunities.org/id/metropolitan-district-council/leeds,Leeds City Council,31/08/2020,Children and Families,Social Care,Third Party Payments,Services Rendered By Other Organisations,511,07/08/2020,2008-00105,0.00,2522.88,R,REDACTED PERSONAL DATA,No
Http://opendatacommunities.org/id/metropolitan-district-council/leeds,Leeds City Council,31/08/2020,Children and Families,Social Care,Third Party Payments,Services Rendered By Other Organisations,511,07/08/2020,2008-00106,0.00,691.20,R,REDACTED PERSONAL DATA,No
Http://opendatacommunities.org/id/metropolitan-district-council/leeds,Leeds City Council,31/08/2020,Children and Families,Social Care,Third Party Payments,Services Rendered By Other Organisations,511,07/08/2020,2008-00107,0.00,381.60,R,REDACTED PERSONAL DATA,No
Http://opendatacommunities.org/id/metropolitan-district-council/leeds,Leeds City Council,31/08/2020,Communities and Environment,Customer Access,Supplies and Services,Bought In Professional Services,277,13/08/2020,2008-00108,0.00,9.00,R,A NAMAKI,No
Http://opendatacommunities.org/id/metropolitan-district-council/leeds,Leeds City Council,31/08/2020,Communities and Environment,Customer Access,Supplies and Services,Bought In Professional Services,277,19/08/2020,2008-00109,0.00,18.00,R,A NAMAKI,No
Http://opendatacommunities.org/id/metropolitan-district-council/leeds,Leeds City Council,31/08/2020,Communities and Environment,Customer Access,Supplies and Services,Bought In Professional Services,277,26/08/2020,2008-00110,0.00,18.00,R,A NAMAKI,No
Http://opendatacommunities.org/id/metropolitan-district-council/leeds,Leeds City Council,31/08/2020,Communities and Environment,Customer Access,Supplies and Services,Bought In Professional Services,277,26/08/2020,2008-00111,0.00,18.00,R,A NAMAKI,No
Http://opendatacommunities.org/id/metropolitan-district-council/leeds,Leeds City Council,31/08/2020,Children and Families,Social Care,Third Party Payments,Services Rendered By Other Organisations,511,07/08/2020,2008-00112,0.00,331.12,R,REDACTED PERSONAL DATA,No
Http://opendatacommunities.org/id/metropolitan-district-council/leeds,Leeds City Council,31/08/2020,Communities and Environment,Parks and Countryside,Supplies and Services,Other Hired and Contracted Services,265,14/08/2020,2008-00113,0.00,999.84,R,A NICHOLLS,No
Http://opendatacommunities.org/id/metropolitan-district-council/leeds,Leeds City Council,31/08/2020,Resources and Housing,HRA Housing Leeds,Capital,OTHER COSTS,7,20/08/2020,2008-00114,0.00,170.09,C,REDACTED PERSONAL DATA,No
Http://opendatacommunities.org/id/metropolitan-district-council/leeds,Leeds City Council,31/08/2020,Children and Families,Social Care,Third Party Payments,Services Rendered By Other Organisations,511,05/08/2020,2008-00115,0.00,190.08,R,REDACTED PERSONAL DATA,No
Http://opendatacommunities.org/id/metropolitan-district-council/leeds,Leeds City Council,31/08/2020,Children and Families,Social Care,Third Party Payments,Services Rendered By Other Organisations,511,07/08/2020,2008-00116,0.00,157.68,R,REDACTED PERSONAL DATA,No
Http://opendatacommunities.org/id/metropolitan-district-council/leeds,Leeds City Council,31/08/2020,Children and Families,Social Care,Third Party Payments,Independent Fostering Agencies,509,11/08/2020,2008-00117,0.00,1512.00,R,A Taxis,No
Http://opendatacommunities.org/id/metropolitan-district-council/leeds,Leeds City Council,31/08/2020,Children and Families,Social Care,Third Party Payments,Services Rendered By Other Organisations,511,07/08/2020,2008-00118,0.00,473.04,R,REDACTED PERSONAL DATA,No
Http://opendatacommunities.org/id/metropolitan-district-council/leeds,Leeds City Council,31/08/2020,Children and Families,Social Care,Third Party Payments,Section 17,551,07/08/2020,2008-00119,0.00,201.04,R,REDACTED PERSONAL DATA,No
Http://opendatacommunities.org/id/metropolitan-district-council/leeds,Leeds City Council,31/08/2020,Children and Families,Social Care,Third Party Payments,Section 17,551,14/08/2020,2008-00120,0.00,201.04,R,REDACTED PERSONAL DATA,No
Http://opendatacommunities.org/id/metropolitan-district-council/leeds,Leeds City Council,31/08/2020,Children and Families,Social Care,Third Party Payments,Services Rendered By Other Organisations,511,07/08/2020,2008-00121,0.00,473.04,R,REDACTED PERSONAL DATA,No
Http://opendatacommunities.org/id/metropolitan-district-council/leeds,Leeds City Council,31/08/2020,Children and Families,Social Care,Third Party Payments,Services Rendered By Other Organisations,511,07/08/2020,2008-00122,0.00,100.80,R,REDACTED PERSONAL DATA,No
Http://opendatacommunities.org/id/metropolitan-district-council/leeds,Leeds City Council,31/08/2020,Children and Families,Social Care,Third Party Payments,Services Rendered By Other Organisations,511,07/08/2020,2008-00123,0.00,315.36,R,REDACTED PERSONAL DATA,No
Http://opendatacommunities.org/id/metropolitan-district-council/leeds,Leeds City Council,31/08/2020,Children and Families,Social Care,Third Party Payments,General External Residential Placements,507,03/08/2020,2008-00124,0.00,83.65,R,A Wilderness Way Ltd,No
Http://opendatacommunities.org/id/metropolitan-district-council/leeds,Leeds City Council,31/08/2020,Children and Families,Social Care,Third Party Payments,General External Residential Placements,507,07/08/2020,2008-00125,0.00,15171.94,R,A Wilderness Way Ltd,No
Http://opendatacommunities.org/id/metropolitan-district-council/leeds,Leeds City Council,31/08/2020,Children and Families,Social Care,Third Party Payments,General External Residential Placements,507,12/08/2020,2008-00126,0.00,23892.01,R,A Wilderness Way Ltd,No
Http://opendatacommunities.org/id/metropolitan-district-council/leeds,Leeds City Council,31/08/2020,Children and Families,Social Care,Third Party Payments,General External Residential Placements,507,13/08/2020,2008-00127,0.00,7585.97,R,A Wilderness Way Ltd,No
Http://opendatacommunities.org/id/metropolitan-district-council/leeds,Leeds City Council,31/08/2020,Children and Families,Social Care,Third Party Payments,General External Residential Placements,507,14/08/2020,2008-00128,0.00,10789.94,R,A Wilderness Way Ltd,No
Http://opendatacommunities.org/id/metropolitan-district-council/leeds,Leeds City Council,31/08/2020,Children and Families,Social Care,Third Party Payments,Section 17,551,07/08/2020,2008-00129,0.00,300.00,R,REDACTED PERSONAL DATA,No
Http://opendatacommunities.org/id/metropolitan-district-council/leeds,Leeds City Council,31/08/2020,Communities and Environment,Communities,Supplies and Services,Grant Related Expenditure,290,07/08/2020,2008-00130,0.00,1332.00,R,A1 PRESS LTD,No
Http://opendatacommunities.org/id/metropolitan-district-council/leeds,Leeds City Council,31/08/2020,Communities and Environment,Communities,Supplies and Services,Grant Related Expenditure,290,07/08/2020,2008-00131,0.00,921.00,R,A1 PRESS LTD,No
Http://opendatacommunities.org/id/metropolitan-district-council/leeds,Leeds City Council,31/08/2020,Resources and Housing,Leeds Building Services,Supplies and Services,Other Hired and Contracted Services,265,06/08/2020,2008-00132,0.00,636.00,R,A1 STAIR LIFT SERVICES,No
Http://opendatacommunities.org/id/metropolitan-district-council/leeds,Leeds City Council,31/08/2020,Resources and Housing,Leeds Building Services,Supplies and Services,Other Hired and Contracted Services,265,14/08/2020,2008-00133,0.00,5502.50,R,A1 STAIR LIFT SERVICES,No
Http://opendatacommunities.org/id/metropolitan-district-council/leeds,Leeds City Council,31/08/2020,Children and Families,Social Care,Third Party Payments,Placement Support,550,26/08/2020,2008-00134,0.00,112.00,R,A1 Taxi,No
Http://opendatacommunities.org/id/metropolitan-district-council/leeds,Leeds City Council,31/08/2020,Children and Families,Learning,Income,Training & Education Courses Income,937,14/08/2020,2008-00135,0.00,12.86,R,REDACTED PERSONAL DATA,No
Http://opendatacommunities.org/id/metropolitan-district-council/leeds,Leeds City Council,31/08/2020,Resources and Housing,Shared Services,Income,Income from Hire Of Rooms & Equipment,956,07/08/2020,2008-00136,0.00,438.00,R,Abbey Multi Academy Trust,No
Http://opendatacommunities.org/id/metropolitan-district-council/leeds,Leeds City Council,31/08/2020,Children and Families,Social Care,Third Party Payments,Services Rendered By Other Organisations,511,17/08/2020,2008-00137,0.00,30753.60,R,Abbey Multi Academy Trust,No
Http://opendatacommunities.org/id/metropolitan-district-council/leeds,Leeds City Council,31/08/2020,Children and Families,Social Care,Third Party Payments,Services Rendered By Other Organisations,511,17/08/2020,2008-00138,0.00,2038.35,R,Abbey Multi Academy Trust,No
Http://opendatacommunities.org/id/metropolitan-district-council/leeds,Leeds City Council,31/08/2020,Children and Families,Social Care,Third Party Payments,Allowances,546,06/08/2020,2008-00139,0.00,751.05,R,ABBIE OMAHONY,No
Http://opendatacommunities.org/id/metropolitan-district-council/leeds,Leeds City Council,31/08/2020,Children and Families,Social Care,Third Party Payments,Services Rendered By Other Organisations,511,05/08/2020,2008-00140,0.00,950.40,R,Abc Daycare and Ozone Out Of School,No
Http://opendatacommunities.org/id/metropolitan-district-council/leeds,Leeds City Council,31/08/2020,Children and Families,Social Care,Third Party Payments,Services Rendered By Other Organisations,511,07/08/2020,2008-00141,0.00,7253.28,R,Abc Daycare and Ozone Out Of School,No
Http://opendatacommunities.org/id/metropolitan-district-council/leeds,Leeds City Council,31/08/2020,Children and Families,Social Care,Third Party Payments,Services Rendered By Other Organisations,511,07/08/2020,2008-00142,0.00,355.20,R,Abc Daycare and Ozone Out Of School,No
Http://opendatacommunities.org/id/metropolitan-district-council/leeds,Leeds City Council,31/08/2020,Children and Families,Social Care,Third Party Payments,Services Rendered By Other Organisations,511,07/08/2020,2008-00143,0.00,95.40,R,Abc Daycare and Ozone Out Of School,No
Http://opendatacommunities.org/id/metropolitan-district-council/leeds,Leeds City Council,31/08/2020,Children and Families,Social Care,Third Party Payments,Services Rendered By Other Organisations,511,05/08/2020,2008-00144,0.00,1520.64,R,ABC NURSERY AT LUFC,No
Http://opendatacommunities.org/id/metropolitan-district-council/leeds,Leeds City Council,31/08/2020,Children and Families,Social Care,Third Party Payments,Services Rendered By Other Organisations,511,07/08/2020,2008-00145,0.00,7726.32,R,ABC NURSERY AT LUFC,No
Http://opendatacommunities.org/id/metropolitan-district-council/leeds,Leeds City Council,31/08/2020,Children and Families,Social Care,Third Party Payments,Services Rendered By Other Organisations,511,07/08/2020,2008-00146,0.00,1694.40,R,ABC NURSERY AT LUFC,No
Http://opendatacommunities.org/id/metropolitan-district-council/leeds,Leeds City Council,31/08/2020,Children and Families,Social Care,Third Party Payments,Services Rendered By Other Organisations,511,07/08/2020,2008-00147,0.00,636.00,R,ABC NURSERY AT LUFC,No
Http://opendatacommunities.org/id/metropolitan-district-council/leeds,Leeds City Council,31/08/2020,Children and Families,Social Care,Third Party Payments,Services Rendered By Other Organisations,511,05/08/2020,2008-00148,0.00,1520.64,R,Abc@D'S Childcare,No
Http://opendatacommunities.org/id/metropolitan-district-council/leeds,Leeds City Council,31/08/2020,Children and Families,Social Care,Third Party Payments,Services Rendered By Other Organisations,511,07/08/2020,2008-00149,0.00,5361.11,R,Abc@D'S Childcare,No
Http://opendatacommunities.org/id/metropolitan-district-council/leeds,Leeds City Council,31/08/2020,Communities and Environment,Customer Access,Supplies and Services,Bought In Professional Services,277,13/08/2020,2008-00150,0.00,18.00,R,Abdul Kalam,No
Http://opendatacommunities.org/id/metropolitan-district-council/leeds,Leeds City Council,31/08/2020,Communities and Environment,Customer Access,Supplies and Services,Bought In Professional Services,277,19/08/2020,2008-00151,0.00,18.00,R,Abdul Kalam,No
Http://opendatacommunities.org/id/metropolitan-district-council/leeds,Leeds City Council,31/08/2020,Communities and Environment,Customer Access,Supplies and Services,Bought In Professional Services,277,19/08/2020,2008-00152,0.00,18.00,R,Abdul Kalam,No
Http://opendatacommunities.org/id/metropolitan-district-council/leeds,Leeds City Council,31/08/2020,Resources and Housing,Sustainable Energy & Climate Change,Capital,OTHER COSTS,7,28/08/2020,2008-00153,0.00,1500.00,C,REDACTED COMMERCIAL CONFIDENTIALITY,No
Http://opendatacommunities.org/id/metropolitan-district-council/leeds,Leeds City Council,31/08/2020,Communities and Environment,Customer Access,Supplies and Services,Bought In Professional Services,277,13/08/2020,2008-00154,0.00,27.00,R,Abdulahad Denha,No
Http://opendatacommunities.org/id/metropolitan-district-council/leeds,Leeds City Council,31/08/2020,Communities and Environment,Customer Access,Supplies and Services,Bought In Professional Services,277,26/08/2020,2008-00155,0.00,9.00,R,Abdulahad Denha,No
Http://opendatacommunities.org/id/metropolitan-district-council/leeds,Leeds City Council,31/08/2020,Communities and Environment,Customer Access,Supplies and Services,Bought In Professional Services,277,26/08/2020,2008-00156,0.00,18.00,R,Abdulahad Denha,No
Http://opendatacommunities.org/id/metropolitan-district-council/leeds,Leeds City Council,31/08/2020,Adults and Health,Services For Older People - 65 and Over,Third Party Payments,Nursing Home,570,19/08/2020,2008-00157,0.00,20704.67,R,Aberford Hall,No
Http://opendatacommunities.org/id/metropolitan-district-council/leeds,Leeds City Council,31/08/2020,Strategic Accounts,Miscellaneous,Supplies and Services,Non-Recurring Grants,227,24/08/2020,2008-00158,0.00,450.00,R,Aberford Horticultural Society,No
Http://opendatacommunities.org/id/metropolitan-district-council/leeds,Leeds City Council,31/08/2020,Resources and Housing,Leeds Building Services,Supplies and Services,Operational Materials,205,28/08/2020,2008-00159,0.00,281.04,R,ABI GARAGE DOORS LTD,No
Http://opendatacommunities.org/id/metropolitan-district-council/leeds,Leeds City Council,31/08/2020,Children and Families,Social Care,Third Party Payments,Section 17,551,03/08/2020,2008-00160,0.00,82.97,R,REDACTED PERSONAL DATA,No
Http://opendatacommunities.org/id/metropolitan-district-council/leeds,Leeds City Council,31/08/2020,City Development,Libraries  Arts & Heritage  ,Supplies and Services,Operational Materials,205,30/07/2020,2008-00161,0.00,898.70,R,Absoluteproduct.Co,Yes
Http://opendatacommunities.org/id/metropolitan-district-council/leeds,Leeds City Council,31/08/2020,Children and Families,Social Care  ,Supplies and Services,Teaching Furniture & Equipment,207,13/07/2020,2008-00162,0.00,98.19,R,Absorbentmi,Yes
Http://opendatacommunities.org/id/metropolitan-district-council/leeds,Leeds City Council,31/08/2020,Children and Families,Social Care  ,Transfer Payments,Leaving Care Allowances,634,14/07/2020,2008-00163,0.00,15.90,R,Absurd Bird Leeds,Yes
Http://opendatacommunities.org/id/metropolitan-district-council/leeds,Leeds City Council,31/08/2020,Adults and Health,Services For Adults Under 65 Mental/Dis,Third Party Payments,Fees - Level 4,520,07/08/2020,2008-00164,0.00,175.00,R,Abubaker Denja Mohammed,No
Http://opendatacommunities.org/id/metropolitan-district-council/leeds,Leeds City Council,31/08/2020,Adults and Health,Services For Adults Under 65 Mental/Dis,Third Party Payments,Fees - Level 4,520,07/08/2020,2008-00165,0.00,175.00,R,Abubaker Denja Mohammed,No
Http://opendatacommunities.org/id/metropolitan-district-council/leeds,Leeds City Council,31/08/2020,Adults and Health,Services For Adults Under 65 Mental/Dis,Third Party Payments,Fees - Level 4,520,07/08/2020,2008-00166,0.00,175.00,R,Abubaker Denja Mohammed,No
Http://opendatacommunities.org/id/metropolitan-district-council/leeds,Leeds City Council,31/08/2020,Adults and Health,Services For Adults Under 65 Mental/Dis,Third Party Payments,Fees - Level 4,520,07/08/2020,2008-00167,0.00,175.00,R,Abubaker Denja Mohammed,No
Http://opendatacommunities.org/id/metropolitan-district-council/leeds,Leeds City Council,31/08/2020,Adults and Health,Services For Adults Under 65 Mental/Dis,Third Party Payments,Fees - Level 4,520,07/08/2020,2008-00168,0.00,175.00,R,Abubaker Denja Mohammed,No
Http://opendatacommunities.org/id/metropolitan-district-council/leeds,Leeds City Council,31/08/2020,Adults and Health,Services For Adults Under 65 Mental/Dis,Third Party Payments,Fees - Level 4,520,07/08/2020,2008-00169,0.00,175.00,R,Abubaker Denja Mohammed,No
Http://opendatacommunities.org/id/metropolitan-district-council/leeds,Leeds City Council,31/08/2020,Adults and Health,Services For Adults Under 65 Mental/Dis,Third Party Payments,Fees - Level 4,520,14/08/2020,2008-00170,0.00,175.00,R,Abubaker Denja Mohammed,No
Http://opendatacommunities.org/id/metropolitan-district-council/leeds,Leeds City Council,31/08/2020,Adults and Health,Services For Adults Under 65 Mental/Dis,Third Party Payments,Fees - Level 4,520,14/08/2020,2008-00171,0.00,175.00,R,Abubaker Denja Mohammed,No
Http://opendatacommunities.org/id/metropolitan-district-council/leeds,Leeds City Council,31/08/2020,Adults and Health,Services For Adults Under 65 Mental/Dis,Third Party Payments,Fees - Level 4,520,14/08/2020,2008-00172,0.00,175.00,R,Abubaker Denja Mohammed,No
Http://opendatacommunities.org/id/metropolitan-district-council/leeds,Leeds City Council,31/08/2020,Adults and Health,Services For Adults Under 65 Mental/Dis,Third Party Payments,Fees - Level 4,520,14/08/2020,2008-00173,0.00,175.00,R,Abubaker Denja Mohammed,No
Http://opendatacommunities.org/id/metropolitan-district-council/leeds,Leeds City Council,31/08/2020,Adults and Health,Services For Adults Under 65 Mental/Dis,Third Party Payments,Fees - Level 4,520,27/08/2020,2008-00174,0.00,175.00,R,Abubaker Denja Mohammed,No
Http://opendatacommunities.org/id/metropolitan-district-council/leeds,Leeds City Council,31/08/2020,Adults and Health,Services For Adults Under 65 Mental/Dis,Third Party Payments,Fees - Level 4,520,27/08/2020,2008-00175,0.00,175.00,R,Abubaker Denja Mohammed,No
Http://opendatacommunities.org/id/metropolitan-district-council/leeds,Leeds City Council,31/08/2020,Children and Families,Social Care,Third Party Payments,Services Rendered By Other Organisations,511,17/08/2020,2008-00176,0.00,14040.00,R,Academies Enterprise Trust (AET),No
Http://opendatacommunities.org/id/metropolitan-district-council/leeds,Leeds City Council,31/08/2020,Children and Families,Social Care,Third Party Payments,Services Rendered By Other Organisations,511,17/08/2020,2008-00177,0.00,7603.20,R,Academies Enterprise Trust (AET),No
Http://opendatacommunities.org/id/metropolitan-district-council/leeds,Leeds City Council,31/08/2020,Children and Families,Social Care,Third Party Payments,Services Rendered By Other Organisations,511,17/08/2020,2008-00178,0.00,41785.20,R,Academies Enterprise Trust (AET),No
Http://opendatacommunities.org/id/metropolitan-district-council/leeds,Leeds City Council,31/08/2020,Children and Families,Social Care,Third Party Payments,Services Rendered By Other Organisations,511,17/08/2020,2008-00179,0.00,286.20,R,Academies Enterprise Trust (AET),No
Http://opendatacommunities.org/id/metropolitan-district-council/leeds,Leeds City Council,31/08/2020,Children and Families,Social Care,Third Party Payments,Services Rendered By Other Organisations,511,17/08/2020,2008-00180,0.00,6200.88,R,Academies Enterprise Trust (AET),No
Http://opendatacommunities.org/id/metropolitan-district-council/leeds,Leeds City Council,31/08/2020,Adults and Health,Services For Older People - 65 and Over,Third Party Payments,Home Care,568,17/08/2020,2008-00181,0.00,70.66,R,Academy Care Ltd,No
Http://opendatacommunities.org/id/metropolitan-district-council/leeds,Leeds City Council,31/08/2020,Resources and Housing,Human Resources  ,Employees,Best Value Training,70,16/07/2020,2008-00182,0.00,70.00,R,Access Association,Yes
Http://opendatacommunities.org/id/metropolitan-district-council/leeds,Leeds City Council,31/08/2020,Communities and Environment,Community Safety,Transport,Hire Of Movable Plant & Machinery,315,07/08/2020,2008-00183,0.00,1434.86,R,Access Hire Nationwide Ltd,No
Http://opendatacommunities.org/id/metropolitan-district-council/leeds,Leeds City Council,31/08/2020,Strategic Landlord,Property and Contracts,Premises,Maintenance Of Buildings,101,07/08/2020,2008-00184,0.00,531.30,R,ACCESS LOCKSMITHS (LEEDS) LIMITED,No
Http://opendatacommunities.org/id/metropolitan-district-council/leeds,Leeds City Council,31/08/2020,Strategic Landlord,Housing Management,Supplies and Services,Operational Furniture and Equipment,203,07/08/2020,2008-00185,0.00,197.07,R,ACCESS LOCKSMITHS (LEEDS) LIMITED,No
Http://opendatacommunities.org/id/metropolitan-district-council/leeds,Leeds City Council,31/08/2020,Resources and Housing,HRA Housing Leeds,Capital,FURNITURE and EQUIPMENT,5,14/08/2020,2008-00186,0.00,139.28,C,ACCESS LOCKSMITHS (LEEDS) LIMITED,No
Http://opendatacommunities.org/id/metropolitan-district-council/leeds,Leeds City Council,31/08/2020,Strategic Landlord,Housing Management,Premises,General Maintenance,104,21/08/2020,2008-00187,0.00,117.00,R,ACCESS LOCKSMITHS (LEEDS) LIMITED,No
Http://opendatacommunities.org/id/metropolitan-district-council/leeds,Leeds City Council,31/08/2020,Resources and Housing,HRA Housing Leeds,Capital,OTHER COSTS,7,28/08/2020,2008-00188,0.00,433.00,C,ACCESS LOCKSMITHS (LEEDS) LIMITED,No
Http://opendatacommunities.org/id/metropolitan-district-council/leeds,Leeds City Council,31/08/2020,Strategic Landlord,Housing Management,Supplies and Services,Resaleable Materials,204,28/08/2020,2008-00189,0.00,11.40,R,ACCESS LOCKSMITHS (LEEDS) LIMITED,No
Http://opendatacommunities.org/id/metropolitan-district-council/leeds,Leeds City Council,31/08/2020,Strategic Landlord,Housing Management,Supplies and Services,Resaleable Materials,204,28/08/2020,2008-00190,0.00,57.00,R,ACCESS LOCKSMITHS (LEEDS) LIMITED,No
Http://opendatacommunities.org/id/metropolitan-district-council/leeds,Leeds City Council,31/08/2020,Strategic Landlord,Housing Management,Supplies and Services,Resaleable Materials,204,28/08/2020,2008-00191,0.00,11.40,R,ACCESS LOCKSMITHS (LEEDS) LIMITED,No
Http://opendatacommunities.org/id/metropolitan-district-council/leeds,Leeds City Council,31/08/2020,City Development,Recreation,Transport,External Hire -Occasional,304,28/08/2020,2008-00192,0.00,128.65,R,ACE CONTAINER SERVICES LIMITED,No
Http://opendatacommunities.org/id/metropolitan-district-council/leeds,Leeds City Council,31/08/2020,City Development,Libraries  Arts & Heritage,Supplies and Services,Other Hired and Contracted Services,265,28/08/2020,2008-00193,0.00,46.50,R,ACE CONTAINER SERVICES LIMITED,No
Http://opendatacommunities.org/id/metropolitan-district-council/leeds,Leeds City Council,31/08/2020,City Development,Economic Development,Supplies and Services,Grants To Businesses,243,11/08/2020,2008-00194,0.00,7821.00,R,Ace Leaflet Distribution & Print Ltd,No
Http://opendatacommunities.org/id/metropolitan-district-council/leeds,Leeds City Council,31/08/2020,City Development,Economic Development,Supplies and Services,Grants To Businesses,243,24/08/2020,2008-00195,0.00,2991.00,R,Achievers Faith International Ministers,No
Http://opendatacommunities.org/id/metropolitan-district-council/leeds,Leeds City Council,31/08/2020,Children and Families,Partnerships & Health,Third Party Payments,SEN Placements,566,12/08/2020,2008-00196,0.00,18641.70,R,ACKWORTH SCHOOL,No
Http://opendatacommunities.org/id/metropolitan-district-council/leeds,Leeds City Council,31/08/2020,Children and Families,Partnerships & Health,Third Party Payments,SEN Placements,566,19/08/2020,2008-00197,0.00,18641.70,R,ACKWORTH SCHOOL,No
Http://opendatacommunities.org/id/metropolitan-district-council/leeds,Leeds City Council,31/08/2020,Children and Families,Partnerships & Health,Third Party Payments,SEN Placements,566,19/08/2020,2008-00198,0.00,18641.70,R,ACKWORTH SCHOOL,No
Http://opendatacommunities.org/id/metropolitan-district-council/leeds,Leeds City Council,31/08/2020,Children and Families,Partnerships & Health,Third Party Payments,SEN Placements,566,19/08/2020,2008-00199,0.00,18641.70,R,ACKWORTH SCHOOL,No
Http://opendatacommunities.org/id/metropolitan-district-council/leeds,Leeds City Council,31/08/2020,Children and Families,Partnerships & Health,Third Party Payments,SEN Placements,566,19/08/2020,2008-00200,0.00,18641.70,R,ACKWORTH SCHOOL,No
Http://opendatacommunities.org/id/metropolitan-district-council/leeds,Leeds City Council,31/08/2020,Children and Families,Partnerships & Health,Third Party Payments,SEN Placements,566,19/08/2020,2008-00201,0.00,18641.70,R,ACKWORTH SCHOOL,No
Http://opendatacommunities.org/id/metropolitan-district-council/leeds,Leeds City Council,31/08/2020,Children and Families,Partnerships & Health,Third Party Payments,SEN Placements,566,19/08/2020,2008-00202,0.00,18641.70,R,ACKWORTH SCHOOL,No
Http://opendatacommunities.org/id/metropolitan-district-council/leeds,Leeds City Council,31/08/2020,Children and Families,Partnerships & Health,Third Party Payments,SEN Placements,566,28/08/2020,2008-00203,0.00,25940.84,R,ACKWORTH SCHOOL,No
Http://opendatacommunities.org/id/metropolitan-district-council/leeds,Leeds City Council,31/08/2020,Children and Families,Partnerships & Health,Third Party Payments,SEN Placements,566,10/08/2020,2008-00204,0.00,18472.00,R,Acorn Care & Education Ltd (Sales),No
Http://opendatacommunities.org/id/metropolitan-district-council/leeds,Leeds City Council,31/08/2020,Adults and Health,Services For Older People - 65 and Over,Third Party Payments,Residential Care Dementia,571,19/08/2020,2008-00205,0.00,1589.72,R,Acorn Nursing Home,No
Http://opendatacommunities.org/id/metropolitan-district-council/leeds,Leeds City Council,31/08/2020,Adults and Health,Services For Older People - 65 and Over,Third Party Payments,Nursing Care Dementia,574,19/08/2020,2008-00206,0.00,1720.08,R,Acorn Nursing Home,No
Http://opendatacommunities.org/id/metropolitan-district-council/leeds,Leeds City Council,31/08/2020,Children and Families,Social Care,Third Party Payments,Services Rendered By Other Organisations,511,05/08/2020,2008-00207,0.00,190.08,R,ACORNS NURSERY,No
Http://opendatacommunities.org/id/metropolitan-district-council/leeds,Leeds City Council,31/08/2020,Children and Families,Social Care,Third Party Payments,Services Rendered By Other Organisations,511,07/08/2020,2008-00208,0.00,7253.28,R,ACORNS NURSERY,No
Http://opendatacommunities.org/id/metropolitan-district-council/leeds,Leeds City Council,31/08/2020,Children and Families,Social Care,Third Party Payments,Services Rendered By Other Organisations,511,07/08/2020,2008-00209,0.00,100.80,R,ACORNS NURSERY,No
Http://opendatacommunities.org/id/metropolitan-district-council/leeds,Leeds City Council,31/08/2020,Communities and Environment,Environmental Health,Supplies and Services,Other Hired and Contracted Services,265,28/08/2020,2008-00210,0.00,1220.00,R,Acoustic Calibration Services Limited,No
Http://opendatacommunities.org/id/metropolitan-district-council/leeds,Leeds City Council,31/08/2020,Communities and Environment,Environmental Health,Supplies and Services,Other Hired and Contracted Services,265,28/08/2020,2008-00211,0.00,565.00,R,Acoustic Calibration Services Limited,No
Http://opendatacommunities.org/id/metropolitan-district-council/leeds,Leeds City Council,31/08/2020,Adults and Health,Services For Older People - 65 and Over,Third Party Payments,Nursing Home,570,19/08/2020,2008-00212,0.00,22473.13,R,Acre Green,No
Http://opendatacommunities.org/id/metropolitan-district-council/leeds,Leeds City Council,31/08/2020,Adults and Health,Services For Older People - 65 and Over,Third Party Payments,Residential,580,19/08/2020,2008-00213,0.00,10395.23,R,Acre Green,No
Http://opendatacommunities.org/id/metropolitan-district-council/leeds,Leeds City Council,31/08/2020,Adults and Health,Services For Older People Under 65 P/Dis,Third Party Payments,Nursing Home,570,19/08/2020,2008-00214,0.00,2360.00,R,Acre Green,No
Http://opendatacommunities.org/id/metropolitan-district-council/leeds,Leeds City Council,31/08/2020,Adults and Health,Services For Older People Under 65 P/Dis,Third Party Payments,Residential,580,19/08/2020,2008-00215,0.00,1642.60,R,Acre Green,No
Http://opendatacommunities.org/id/metropolitan-district-council/leeds,Leeds City Council,31/08/2020,Children and Families,Social Care,Third Party Payments,Services Rendered By Other Organisations,511,05/08/2020,2008-00216,0.00,2090.88,R,Acre Wood Day Nursery,No
Http://opendatacommunities.org/id/metropolitan-district-council/leeds,Leeds City Council,31/08/2020,Children and Families,Social Care,Third Party Payments,Services Rendered By Other Organisations,511,07/08/2020,2008-00217,0.00,10722.24,R,Acre Wood Day Nursery,No
Http://opendatacommunities.org/id/metropolitan-district-council/leeds,Leeds City Council,31/08/2020,Resources and Housing,Technology  ,Supplies and Services,Computer Software & Equipment,214,30/07/2020,2008-00218,0.00,231.82,R,Acs Business Supplies Lt,Yes
Http://opendatacommunities.org/id/metropolitan-district-council/leeds,Leeds City Council,31/08/2020,Resources and Housing,Leeds Building Services,Supplies and Services,Operational Furniture and Equipment,203,14/08/2020,2008-00219,0.00,952.00,R,Actavo Hire and Sales Uk Limited,No
Http://opendatacommunities.org/id/metropolitan-district-council/leeds,Leeds City Council,31/08/2020,Children and Families,Social Care,Third Party Payments,Independent Fostering Agencies,509,12/08/2020,2008-00220,0.00,5163.67,R,Action For Children Services Ltd,No
Http://opendatacommunities.org/id/metropolitan-district-council/leeds,Leeds City Council,31/08/2020,Children and Families,Social Care,Third Party Payments,Services Rendered By Other Organisations,511,05/08/2020,2008-00221,0.00,253.44,R,ACTIVE KIDS YEADON LLP,No
Http://opendatacommunities.org/id/metropolitan-district-council/leeds,Leeds City Council,31/08/2020,City Development,Economic Development,Supplies and Services,Grants To Businesses,243,05/08/2020,2008-00222,0.00,9036.00,R,Active Kids Yeadon Llp,No
Http://opendatacommunities.org/id/metropolitan-district-council/leeds,Leeds City Council,31/08/2020,Children and Families,Social Care,Third Party Payments,Services Rendered By Other Organisations,511,07/08/2020,2008-00223,0.00,6616.42,R,ACTIVE KIDS YEADON LLP,No
Http://opendatacommunities.org/id/metropolitan-district-council/leeds,Leeds City Council,31/08/2020,Children and Families,Social Care,Third Party Payments,Services Rendered By Other Organisations,511,07/08/2020,2008-00224,0.00,100.80,R,ACTIVE KIDS YEADON LLP,No
Http://opendatacommunities.org/id/metropolitan-district-council/leeds,Leeds City Council,31/08/2020,Adults and Health,Services For Older People - 65 and Over,Third Party Payments,Nursing Home,570,17/08/2020,2008-00225,0.00,1054.78,R,Active Pathways,No
Http://opendatacommunities.org/id/metropolitan-district-council/leeds,Leeds City Council,31/08/2020,Adults and Health,Services For Adults Under 65 Mental/Dis,Third Party Payments,Sheltered Accommodation,569,19/08/2020,2008-00226,0.00,12037.32,R,Active Pathways,No
Http://opendatacommunities.org/id/metropolitan-district-council/leeds,Leeds City Council,31/08/2020,Adults and Health,Services For Older People Under 65 P/Dis,Third Party Payments,Sheltered Accommodation,569,19/08/2020,2008-00227,0.00,17848.62,R,Active Pathways,No
Http://opendatacommunities.org/id/metropolitan-district-council/leeds,Leeds City Council as Accountable Body,31/08/2020,Social Services Pooled Budgets,Jcs For People With Learning Disabilitie,Third Party Payments,Sheltered Accommodation,569,19/08/2020,2008-00228,0.00,12896.76,R,Active Pathways,No
Http://opendatacommunities.org/id/metropolitan-district-council/leeds,Leeds City Council,31/08/2020,Communities and Environment,Waste Management,Supplies and Services,Recycling & Reuse Charges,234,06/08/2020,2008-00229,0.00,977.24,R,Acumen Waste Services Ltd,No
Http://opendatacommunities.org/id/metropolitan-district-council/leeds,Leeds City Council,31/08/2020,Communities and Environment,Waste Management,Supplies and Services,Recycling & Reuse Charges,234,06/08/2020,2008-00230,0.00,1026.24,R,Acumen Waste Services Ltd,No
Http://opendatacommunities.org/id/metropolitan-district-council/leeds,Leeds City Council,31/08/2020,Communities and Environment,Waste Management,Supplies and Services,Recycling & Reuse Charges,234,06/08/2020,2008-00231,0.00,991.44,R,Acumen Waste Services Ltd,No
Http://opendatacommunities.org/id/metropolitan-district-council/leeds,Leeds City Council,31/08/2020,Communities and Environment,Waste Management,Supplies and Services,Recycling & Reuse Charges,234,07/08/2020,2008-00232,0.00,986.47,R,Acumen Waste Services Ltd,No
Http://opendatacommunities.org/id/metropolitan-district-council/leeds,Leeds City Council,31/08/2020,Communities and Environment,Waste Management,Supplies and Services,Recycling & Reuse Charges,234,07/08/2020,2008-00233,0.00,963.03,R,Acumen Waste Services Ltd,No
Http://opendatacommunities.org/id/metropolitan-district-council/leeds,Leeds City Council,31/08/2020,Communities and Environment,Waste Management,Supplies and Services,Recycling & Reuse Charges,234,12/08/2020,2008-00234,0.00,990.73,R,Acumen Waste Services Ltd,No
Http://opendatacommunities.org/id/metropolitan-district-council/leeds,Leeds City Council,31/08/2020,Communities and Environment,Cleaner Neighbourhood Teams,Premises,Removal Of Workplace Waste,126,12/08/2020,2008-00235,0.00,116.60,R,Acumen Waste Services Ltd,No
Http://opendatacommunities.org/id/metropolitan-district-council/leeds,Leeds City Council,31/08/2020,Communities and Environment,Cleaner Neighbourhood Teams,Premises,Removal Of Workplace Waste,126,14/08/2020,2008-00236,0.00,116.60,R,Acumen Waste Services Ltd,No
Http://opendatacommunities.org/id/metropolitan-district-council/leeds,Leeds City Council,31/08/2020,Communities and Environment,Cleaner Neighbourhood Teams,Premises,Removal Of Workplace Waste,126,14/08/2020,2008-00237,0.00,116.60,R,Acumen Waste Services Ltd,No
Http://opendatacommunities.org/id/metropolitan-district-council/leeds,Leeds City Council,31/08/2020,Communities and Environment,Waste Management,Supplies and Services,Recycling & Reuse Charges,234,14/08/2020,2008-00238,0.00,986.47,R,Acumen Waste Services Ltd,No
Http://opendatacommunities.org/id/metropolitan-district-council/leeds,Leeds City Council,31/08/2020,Communities and Environment,Waste Management,Supplies and Services,Recycling & Reuse Charges,234,14/08/2020,2008-00239,0.00,999.25,R,Acumen Waste Services Ltd,No
Http://opendatacommunities.org/id/metropolitan-district-council/leeds,Leeds City Council,31/08/2020,Communities and Environment,Cleaner Neighbourhood Teams,Premises,Removal Of Workplace Waste,126,14/08/2020,2008-00240,0.00,116.60,R,Acumen Waste Services Ltd,No
Http://opendatacommunities.org/id/metropolitan-district-council/leeds,Leeds City Council,31/08/2020,Communities and Environment,Waste Management,Supplies and Services,Recycling & Reuse Charges,234,14/08/2020,2008-00241,0.00,1017.01,R,Acumen Waste Services Ltd,No
Http://opendatacommunities.org/id/metropolitan-district-council/leeds,Leeds City Council,31/08/2020,Communities and Environment,Cleaner Neighbourhood Teams,Premises,Removal Of Workplace Waste,126,19/08/2020,2008-00242,0.00,116.60,R,Acumen Waste Services Ltd,No
Http://opendatacommunities.org/id/metropolitan-district-council/leeds,Leeds City Council,31/08/2020,Communities and Environment,Cleaner Neighbourhood Teams,Premises,Removal Of Workplace Waste,126,19/08/2020,2008-00243,0.00,116.60,R,Acumen Waste Services Ltd,No
Http://opendatacommunities.org/id/metropolitan-district-council/leeds,Leeds City Council,31/08/2020,Communities and Environment,Waste Management,Supplies and Services,Recycling & Reuse Charges,234,21/08/2020,2008-00244,0.00,1991.40,R,Acumen Waste Services Ltd,No
Http://opendatacommunities.org/id/metropolitan-district-council/leeds,Leeds City Council,31/08/2020,Communities and Environment,Cleaner Neighbourhood Teams,Premises,Removal Of Workplace Waste,126,21/08/2020,2008-00245,0.00,116.60,R,Acumen Waste Services Ltd,No
Http://opendatacommunities.org/id/metropolitan-district-council/leeds,Leeds City Council,31/08/2020,Communities and Environment,Waste Management,Supplies and Services,Recycling & Reuse Charges,234,21/08/2020,2008-00246,0.00,1004.93,R,Acumen Waste Services Ltd,No
Http://opendatacommunities.org/id/metropolitan-district-council/leeds,Leeds City Council,31/08/2020,Communities and Environment,Waste Management,Supplies and Services,Recycling & Reuse Charges,234,26/08/2020,2008-00247,0.00,1015.59,R,Acumen Waste Services Ltd,No
Http://opendatacommunities.org/id/metropolitan-district-council/leeds,Leeds City Council,31/08/2020,Communities and Environment,Cleaner Neighbourhood Teams,Premises,Removal Of Workplace Waste,126,26/08/2020,2008-00248,0.00,116.60,R,Acumen Waste Services Ltd,No
Http://opendatacommunities.org/id/metropolitan-district-council/leeds,Leeds City Council,31/08/2020,Communities and Environment,Cleaner Neighbourhood Teams,Premises,Removal Of Workplace Waste,126,26/08/2020,2008-00249,0.00,116.60,R,Acumen Waste Services Ltd,No
Http://opendatacommunities.org/id/metropolitan-district-council/leeds,Leeds City Council,31/08/2020,Communities and Environment,Cleaner Neighbourhood Teams,Premises,Removal Of Workplace Waste,126,28/08/2020,2008-00250,0.00,116.60,R,Acumen Waste Services Ltd,No
Http://opendatacommunities.org/id/metropolitan-district-council/leeds,Leeds City Council,31/08/2020,Communities and Environment,Waste Management,Supplies and Services,Recycling & Reuse Charges,234,28/08/2020,2008-00251,0.00,2002.05,R,Acumen Waste Services Ltd,No
Http://opendatacommunities.org/id/metropolitan-district-council/leeds,Leeds City Council,31/08/2020,Communities and Environment,Waste Management,Supplies and Services,Recycling & Reuse Charges,234,28/08/2020,2008-00252,0.00,1009.90,R,Acumen Waste Services Ltd,No
Http://opendatacommunities.org/id/metropolitan-district-council/leeds,Leeds City Council,31/08/2020,Communities and Environment,Cleaner Neighbourhood Teams,Premises,Removal Of Workplace Waste,126,28/08/2020,2008-00253,0.00,116.60,R,Acumen Waste Services Ltd,No
Http://opendatacommunities.org/id/metropolitan-district-council/leeds,Leeds City Council,31/08/2020,Communities and Environment,Parks and Countryside,Supplies and Services,Resaleable Materials,204,21/08/2020,2008-00254,0.00,210.00,R,ACUSHNET EUROPE LIMITED,No
Http://opendatacommunities.org/id/metropolitan-district-council/leeds,Leeds City Council,31/08/2020,Resources and Housing,Shared Services,Supplies and Services,Other Hired and Contracted Services,265,10/08/2020,2008-00255,0.00,366.60,R,AD3 Envelope Printers Limited,No
Http://opendatacommunities.org/id/metropolitan-district-council/leeds,Leeds City Council,31/08/2020,Resources and Housing,Shared Services,Supplies and Services,Operational Materials,205,28/08/2020,2008-00256,0.00,1131.75,R,AD3 Envelope Printers Limited,No
Http://opendatacommunities.org/id/metropolitan-district-council/leeds,Leeds City Council,31/08/2020,Adults and Health,Services For Older People - 65 and Over,Third Party Payments,Nursing Home,570,19/08/2020,2008-00257,0.00,2584.00,R,Adbolton Hall,No
Http://opendatacommunities.org/id/metropolitan-district-council/leeds,Leeds City Council,31/08/2020,Resources and Housing,Civic Enterprise Leeds,Capital,TRANSPORT,4,28/08/2020,2008-00258,0.00,29571.72,C,Addison Motors Limited,No
Http://opendatacommunities.org/id/metropolitan-district-council/leeds,Leeds City Council,31/08/2020,City Development,Asset Management Services,Support Services,Legal Disbursements,411,11/08/2020,2008-00259,0.00,8552.40,R,Addleshaw Goddard LLP,No
Http://opendatacommunities.org/id/metropolitan-district-council/leeds,Leeds City Council,31/08/2020,Communities and Environment,Parks and Countryside,Supplies and Services,Other Hired and Contracted Services,265,11/08/2020,2008-00260,0.00,8134.00,R,Addlestone & Partners,No
Http://opendatacommunities.org/id/metropolitan-district-council/leeds,Leeds City Council,31/08/2020,Resources and Housing,Technology  ,Employees,Agency Staff,8,07/07/2020,2008-00261,0.00,32365.10,R,Adecco Alfred Marks,Yes
Http://opendatacommunities.org/id/metropolitan-district-council/leeds,Leeds City Council,31/08/2020,Resources and Housing,Technology  ,Employees,Agency Staff,8,21/07/2020,2008-00262,0.00,60688.40,R,Adecco Alfred Marks,Yes
Http://opendatacommunities.org/id/metropolitan-district-council/leeds,Leeds City Council,31/08/2020,Resources and Housing,Technology  ,Employees,Agency Staff,8,27/07/2020,2008-00263,0.00,30528.81,R,Adecco Alfred Marks,Yes
Http://opendatacommunities.org/id/metropolitan-district-council/leeds,Leeds City Council,31/08/2020,Children and Families,Social Care,Third Party Payments,Services Rendered By Voluntary Sector,505,05/08/2020,2008-00264,0.00,1520.64,R,ADEL PRE SCHOOL,No
Http://opendatacommunities.org/id/metropolitan-district-council/leeds,Leeds City Council,31/08/2020,Children and Families,Social Care,Third Party Payments,Services Rendered By Voluntary Sector,505,07/08/2020,2008-00265,0.00,6710.16,R,ADEL PRE SCHOOL,No
Http://opendatacommunities.org/id/metropolitan-district-council/leeds,Leeds City Council,31/08/2020,Children and Families,Social Care,Third Party Payments,Services Rendered By Voluntary Sector,505,07/08/2020,2008-00266,0.00,603.00,R,ADEL PRE SCHOOL,No
Http://opendatacommunities.org/id/metropolitan-district-council/leeds,Leeds City Council,31/08/2020,Children and Families,Social Care,Third Party Payments,Services Rendered By Voluntary Sector,505,07/08/2020,2008-00267,0.00,477.00,R,ADEL PRE SCHOOL,No
Http://opendatacommunities.org/id/metropolitan-district-council/leeds,Leeds City Council,31/08/2020,Children and Families,Social Care,Third Party Payments, Direct Work,549,27/08/2020,2008-00268,0.00,13.00,R,REDACTED PERSONAL DATA,No
Http://opendatacommunities.org/id/metropolitan-district-council/leeds,Leeds City Council,31/08/2020,Children and Families,Social Care,Third Party Payments,Placement Support,550,27/08/2020,2008-00269,0.00,65.50,R,REDACTED PERSONAL DATA,No
Http://opendatacommunities.org/id/metropolitan-district-council/leeds,Leeds City Council,31/08/2020,Children and Families,Social Care,Third Party Payments,Services Rendered By Other Organisations,511,05/08/2020,2008-00270,0.00,380.16,R,REDACTED PERSONAL DATA,No
Http://opendatacommunities.org/id/metropolitan-district-council/leeds,Leeds City Council,31/08/2020,Children and Families,Social Care,Third Party Payments,Services Rendered By Other Organisations,511,07/08/2020,2008-00271,0.00,758.61,R,REDACTED PERSONAL DATA,No
Http://opendatacommunities.org/id/metropolitan-district-council/leeds,Leeds City Council,31/08/2020,Communities and Environment,Benefits  Wlefare and Poverty  ,Supplies and Services,Schools related grant expenditure,299,23/07/2020,2008-00272,0.00,689.00,R,Adexa Direct,Yes
Http://opendatacommunities.org/id/metropolitan-district-council/leeds,Leeds City Council,31/08/2020,Resources and Housing,Leeds Building Services,Supplies and Services,Operational Materials,205,06/08/2020,2008-00273,0.00,347.17,R,ADI Global,No
Http://opendatacommunities.org/id/metropolitan-district-council/leeds,Leeds City Council,31/08/2020,Resources and Housing,Leeds Building Services,Supplies and Services,Operational Materials,205,19/08/2020,2008-00274,0.00,247.86,R,ADI Global,No
Http://opendatacommunities.org/id/metropolitan-district-council/leeds,Leeds City Council,31/08/2020,Resources and Housing,Leeds Building Services,Supplies and Services,Operational Materials,205,21/08/2020,2008-00275,0.00,58.10,R,ADI Global,No
Http://opendatacommunities.org/id/metropolitan-district-council/leeds,Leeds City Council,31/08/2020,Resources and Housing,Leeds Building Services,Supplies and Services,Operational Materials,205,21/08/2020,2008-00276,0.00,40.62,R,ADI Global,No
Http://opendatacommunities.org/id/metropolitan-district-council/leeds,Leeds City Council,31/08/2020,Resources and Housing,Leeds Building Services,Supplies and Services,Operational Materials,205,21/08/2020,2008-00277,0.00,234.72,R,ADI Global,No
Http://opendatacommunities.org/id/metropolitan-district-council/leeds,Leeds City Council,31/08/2020,Children and Families,Social Care  ,Transfer Payments,Children's Homes Clothing Allowance,608,23/07/2020,2008-00278,0.00,15.78,R,Adidas UK Limited,Yes
Http://opendatacommunities.org/id/metropolitan-district-council/leeds,Leeds City Council,31/08/2020,Resources and Housing,HRA Council Housing Growth Programme,Capital,Land,1,17/08/2020,2008-00279,0.00,74730.00,C,Adie Pepperdine Ltd,No
Http://opendatacommunities.org/id/metropolitan-district-council/leeds,Leeds City Council,31/08/2020,Communities and Environment,Community Safety  ,Supplies and Services,Other Hired and Contracted Services,265,22/07/2020,2008-00280,0.00,856.44,R,Adi-Gardiner Ltd,Yes
Http://opendatacommunities.org/id/metropolitan-district-council/leeds,Leeds City Council,31/08/2020,Children and Families,Social Care  ,Premises,Cleaning Maintenance & Toiletries,127,17/07/2020,2008-00281,0.00,760.08,R,Admiral Cleaning Suppl,Yes
Http://opendatacommunities.org/id/metropolitan-district-council/leeds,Leeds City Council,31/08/2020,City Development,Libraries  Arts & Heritage  ,Supplies and Services,Computer Software & Equipment,214,02/07/2020,2008-00282,0.00,25.28,R,Adobe Creative Cloud,Yes
Http://opendatacommunities.org/id/metropolitan-district-council/leeds,Leeds City Council,31/08/2020,City Development,Libraries  Arts & Heritage  ,Supplies and Services,Computer Software & Equipment,214,02/07/2020,2008-00283,0.00,8.32,R,Adobe Photogphy Plan,Yes
Http://opendatacommunities.org/id/metropolitan-district-council/leeds,Leeds City Council,31/08/2020,City Development,Highways  ,Supplies and Services,Computer Software & Equipment,214,13/07/2020,2008-00284,0.00,84.29,R,Adobe Products Trial,Yes
Http://opendatacommunities.org/id/metropolitan-district-council/leeds,Leeds City Council as Accountable Body,31/08/2020,Social Services Pooled Budgets,Jcs For People With Learning Disabilitie,Third Party Payments,Residential,580,17/08/2020,2008-00285,0.00,120.43,R,ADRIAN HOUSE,No
Http://opendatacommunities.org/id/metropolitan-district-council/leeds,Leeds City Council,31/08/2020,Resources and Housing,Strategic Housing Partnership & Support,Supplies and Services,Other Hired and Contracted Services,265,24/08/2020,2008-00286,0.00,1772.00,R,Adrian Myas,No
Http://opendatacommunities.org/id/metropolitan-district-council/leeds,Leeds City Council,31/08/2020,Strategic Landlord,Property and Contracts,Premises,General Maintenance,104,20/08/2020,2008-00287,0.00,428.40,R,ADT Fire and Security Plc,No
Http://opendatacommunities.org/id/metropolitan-district-council/leeds,Leeds City Council,31/08/2020,City Development,Economic Development,Supplies and Services,Grants To Businesses,243,18/08/2020,2008-00288,0.00,10000.00,R,Advanced Oral Care Ltd,No
Http://opendatacommunities.org/id/metropolitan-district-council/leeds,Leeds City Council,31/08/2020,Adults and Health,Services For Older People - 65 and Over,Third Party Payments,Nursing Home,570,17/08/2020,2008-00289,0.00,1013.41,R,ADVITAM LTD,No
Http://opendatacommunities.org/id/metropolitan-district-council/leeds,Leeds City Council as Accountable Body,31/08/2020,Social Services Pooled Budgets,Jcs For People With Learning Disabilitie,Third Party Payments,Residential,580,19/08/2020,2008-00290,0.00,17134.76,R,ADVITAM LTD,No
Http://opendatacommunities.org/id/metropolitan-district-council/leeds,Leeds City Council as Accountable Body,31/08/2020,Social Services Pooled Budgets,Jcs For People With Learning Disabilitie,Supplies and Services,Other Hired and Contracted Services,265,05/08/2020,2008-00291,0.00,37.50,R,Advonet,No
Http://opendatacommunities.org/id/metropolitan-district-council/leeds,Leeds City Council as Accountable Body,31/08/2020,Social Services Pooled Budgets,Jcs For People With Learning Disabilitie,Third Party Payments,Home Care,568,05/08/2020,2008-00292,0.00,27.30,R,Advonet,No
Http://opendatacommunities.org/id/metropolitan-district-council/leeds,Leeds City Council as Accountable Body,31/08/2020,Social Services Pooled Budgets,Jcs For People With Learning Disabilitie,Supplies and Services,Other Hired and Contracted Services,265,05/08/2020,2008-00293,0.00,27.30,R,Advonet,No
Http://opendatacommunities.org/id/metropolitan-district-council/leeds,Leeds City Council as Accountable Body,31/08/2020,Social Services Pooled Budgets,Jcs For People With Learning Disabilitie,Supplies and Services,Other Hired and Contracted Services,265,05/08/2020,2008-00294,0.00,137.40,R,Advonet,No
Http://opendatacommunities.org/id/metropolitan-district-council/leeds,Leeds City Council as Accountable Body,31/08/2020,Social Services Pooled Budgets,Jcs For People With Learning Disabilitie,Supplies and Services,Other Hired and Contracted Services,265,05/08/2020,2008-00295,0.00,27.60,R,Advonet,No
Http://opendatacommunities.org/id/metropolitan-district-council/leeds,Leeds City Council as Accountable Body,31/08/2020,Social Services Pooled Budgets,Jcs For People With Learning Disabilitie,Supplies and Services,Other Hired and Contracted Services,265,05/08/2020,2008-00296,0.00,7.50,R,Advonet,No
Http://opendatacommunities.org/id/metropolitan-district-council/leeds,Leeds City Council as Accountable Body,31/08/2020,Social Services Pooled Budgets,Jcs For People With Learning Disabilitie,Supplies and Services,Other Hired and Contracted Services,265,05/08/2020,2008-00297,0.00,9.90,R,Advonet,No
Http://opendatacommunities.org/id/metropolitan-district-council/leeds,Leeds City Council,31/08/2020,Adults and Health,Services For Older People - 65 and Over,Third Party Payments,Payments To Voluntary Organisations,561,07/08/2020,2008-00298,0.00,110583.31,R,Advonet,No
Http://opendatacommunities.org/id/metropolitan-district-council/leeds,Leeds City Council as Accountable Body,31/08/2020,Social Services Pooled Budgets,Jcs For People With Learning Disabilitie,Supplies and Services,Other Hired and Contracted Services,265,07/08/2020,2008-00299,0.00,125.10,R,Advonet,No
Http://opendatacommunities.org/id/metropolitan-district-council/leeds,Leeds City Council as Accountable Body,31/08/2020,Social Services Pooled Budgets,Jcs For People With Learning Disabilitie,Supplies and Services,Other Hired and Contracted Services,265,07/08/2020,2008-00300,0.00,39.90,R,Advonet,No
Http://opendatacommunities.org/id/metropolitan-district-council/leeds,Leeds City Council as Accountable Body,31/08/2020,Social Services Pooled Budgets,Jcs For People With Learning Disabilitie,Supplies and Services,Other Hired and Contracted Services,265,07/08/2020,2008-00301,0.00,125.10,R,Advonet,No
Http://opendatacommunities.org/id/metropolitan-district-council/leeds,Leeds City Council as Accountable Body,31/08/2020,Social Services Pooled Budgets,Jcs For People With Learning Disabilitie,Supplies and Services,Other Hired and Contracted Services,265,07/08/2020,2008-00302,0.00,27.60,R,Advonet,No
Http://opendatacommunities.org/id/metropolitan-district-council/leeds,Leeds City Council as Accountable Body,31/08/2020,Social Services Pooled Budgets,Jcs For People With Learning Disabilitie,Supplies and Services,Other Hired and Contracted Services,265,07/08/2020,2008-00303,0.00,204.90,R,Advonet,No
Http://opendatacommunities.org/id/metropolitan-district-council/leeds,Leeds City Council as Accountable Body,31/08/2020,Social Services Pooled Budgets,Jcs For People With Learning Disabilitie,Supplies and Services,Other Hired and Contracted Services,265,07/08/2020,2008-00304,0.00,12.60,R,Advonet,No
Http://opendatacommunities.org/id/metropolitan-district-council/leeds,Leeds City Council,31/08/2020,Children and Families,Social Care,Third Party Payments,Section 17,551,07/08/2020,2008-00305,0.00,200.10,R,Advonet,No
Http://opendatacommunities.org/id/metropolitan-district-council/leeds,Leeds City Council as Accountable Body,31/08/2020,Social Services Pooled Budgets,Jcs For People With Learning Disabilitie,Supplies and Services,Other Hired and Contracted Services,265,10/08/2020,2008-00306,0.00,9.90,R,Advonet,No
Http://opendatacommunities.org/id/metropolitan-district-council/leeds,Leeds City Council as Accountable Body,31/08/2020,Social Services Pooled Budgets,Jcs For People With Learning Disabilitie,Supplies and Services,Other Hired and Contracted Services,265,28/08/2020,2008-00307,0.00,110.10,R,Advonet,No
Http://opendatacommunities.org/id/metropolitan-district-council/leeds,Leeds City Council as Accountable Body,31/08/2020,Social Services Pooled Budgets,Jcs For People With Learning Disabilitie,Supplies and Services,Other Hired and Contracted Services,265,28/08/2020,2008-00308,0.00,9.90,R,Advonet,No
Http://opendatacommunities.org/id/metropolitan-district-council/leeds,Leeds City Council as Accountable Body,31/08/2020,Social Services Pooled Budgets,Jcs For People With Learning Disabilitie,Supplies and Services,Other Hired and Contracted Services,265,28/08/2020,2008-00309,0.00,15.00,R,Advonet,No
Http://opendatacommunities.org/id/metropolitan-district-council/leeds,Leeds City Council as Accountable Body,31/08/2020,Social Services Pooled Budgets,Jcs For People With Learning Disabilitie,Supplies and Services,Other Hired and Contracted Services,265,28/08/2020,2008-00310,0.00,17.40,R,Advonet,No
Http://opendatacommunities.org/id/metropolitan-district-council/leeds,Leeds City Council as Accountable Body,31/08/2020,Social Services Pooled Budgets,Jcs For People With Learning Disabilitie,Supplies and Services,Other Hired and Contracted Services,265,28/08/2020,2008-00311,0.00,9.90,R,Advonet,No
Http://opendatacommunities.org/id/metropolitan-district-council/leeds,Leeds City Council as Accountable Body,31/08/2020,Social Services Pooled Budgets,Jcs For People With Learning Disabilitie,Supplies and Services,Other Hired and Contracted Services,265,28/08/2020,2008-00312,0.00,20.10,R,Advonet,No
Http://opendatacommunities.org/id/metropolitan-district-council/leeds,Leeds City Council as Accountable Body,31/08/2020,Social Services Pooled Budgets,Jcs For People With Learning Disabilitie,Third Party Payments,Home Care,568,28/08/2020,2008-00313,0.00,9.90,R,Advonet,No
Http://opendatacommunities.org/id/metropolitan-district-council/leeds,Leeds City Council as Accountable Body,31/08/2020,Social Services Pooled Budgets,Jcs For People With Learning Disabilitie,Supplies and Services,Other Hired and Contracted Services,265,28/08/2020,2008-00314,0.00,20.10,R,Advonet,No
Http://opendatacommunities.org/id/metropolitan-district-council/leeds,Leeds City Council as Accountable Body,31/08/2020,Social Services Pooled Budgets,Jcs For People With Learning Disabilitie,Supplies and Services,Other Hired and Contracted Services,265,28/08/2020,2008-00315,0.00,24.90,R,Advonet,No
Http://opendatacommunities.org/id/metropolitan-district-council/leeds,Leeds City Council,31/08/2020,Adults and Health,Services For Adults Under 65 Mental/Dis,Third Party Payments,Fees - Level 4,520,11/08/2020,2008-00316,0.00,200.00,R,AE BIA Assessments Limited,No
Http://opendatacommunities.org/id/metropolitan-district-council/leeds,Leeds City Council,31/08/2020,Adults and Health,Services For Adults Under 65 Mental/Dis,Third Party Payments,Fees - Level 4,520,11/08/2020,2008-00317,0.00,200.00,R,AE BIA Assessments Limited,No
Http://opendatacommunities.org/id/metropolitan-district-council/leeds,Leeds City Council,31/08/2020,Adults and Health,Services For Adults Under 65 Mental/Dis,Third Party Payments,Fees - Level 4,520,12/08/2020,2008-00318,0.00,200.00,R,AE BIA Assessments Limited,No
Http://opendatacommunities.org/id/metropolitan-district-council/leeds,Leeds City Council,31/08/2020,Adults and Health,Services For Adults Under 65 Mental/Dis,Third Party Payments,Fees - Level 4,520,12/08/2020,2008-00319,0.00,200.00,R,AE BIA Assessments Limited,No
Http://opendatacommunities.org/id/metropolitan-district-council/leeds,Leeds City Council,31/08/2020,Adults and Health,Services For Adults Under 65 Mental/Dis,Third Party Payments,Fees - Level 4,520,12/08/2020,2008-00320,0.00,246.44,R,AE BIA Assessments Limited,No
Http://opendatacommunities.org/id/metropolitan-district-council/leeds,Leeds City Council,31/08/2020,Adults and Health,Services For Adults Under 65 Mental/Dis,Third Party Payments,Fees - Level 4,520,12/08/2020,2008-00321,0.00,200.00,R,AE BIA Assessments Limited,No
Http://opendatacommunities.org/id/metropolitan-district-council/leeds,Leeds City Council,31/08/2020,Adults and Health,Services For Adults Under 65 Mental/Dis,Third Party Payments,Fees - Level 4,520,12/08/2020,2008-00322,0.00,200.00,R,AE BIA Assessments Limited,No
Http://opendatacommunities.org/id/metropolitan-district-council/leeds,Leeds City Council,31/08/2020,Adults and Health,Services For Adults Under 65 Mental/Dis,Third Party Payments,Fees - Level 4,520,12/08/2020,2008-00323,0.00,200.00,R,AE BIA Assessments Limited,No
Http://opendatacommunities.org/id/metropolitan-district-council/leeds,Leeds City Council,31/08/2020,Adults and Health,Services For Adults Under 65 Mental/Dis,Third Party Payments,Fees - Level 4,520,12/08/2020,2008-00324,0.00,200.00,R,AE BIA Assessments Limited,No
Http://opendatacommunities.org/id/metropolitan-district-council/leeds,Leeds City Council,31/08/2020,Adults and Health,Services For Adults Under 65 Mental/Dis,Third Party Payments,Fees - Level 4,520,12/08/2020,2008-00325,0.00,200.00,R,AE BIA Assessments Limited,No
Http://opendatacommunities.org/id/metropolitan-district-council/leeds,Leeds City Council,31/08/2020,Adults and Health,Services For Adults Under 65 Mental/Dis,Third Party Payments,Fees - Level 4,520,12/08/2020,2008-00326,0.00,200.00,R,AE BIA Assessments Limited,No
Http://opendatacommunities.org/id/metropolitan-district-council/leeds,Leeds City Council,31/08/2020,Adults and Health,Services For Adults Under 65 Mental/Dis,Third Party Payments,Fees - Level 4,520,14/08/2020,2008-00327,0.00,200.00,R,AE BIA Assessments Limited,No
Http://opendatacommunities.org/id/metropolitan-district-council/leeds,Leeds City Council,31/08/2020,Adults and Health,Services For Adults Under 65 Mental/Dis,Third Party Payments,Fees - Level 4,520,14/08/2020,2008-00328,0.00,248.16,R,AE BIA Assessments Limited,No
Http://opendatacommunities.org/id/metropolitan-district-council/leeds,Leeds City Council,31/08/2020,Adults and Health,Services For Adults Under 65 Mental/Dis,Third Party Payments,Fees - Level 4,520,14/08/2020,2008-00329,0.00,198.00,R,AE BIA Assessments Limited,No
Http://opendatacommunities.org/id/metropolitan-district-council/leeds,Leeds City Council,31/08/2020,Adults and Health,Services For Adults Under 65 Mental/Dis,Third Party Payments,Fees - Level 4,520,18/08/2020,2008-00330,0.00,198.00,R,AE BIA Assessments Limited,No
Http://opendatacommunities.org/id/metropolitan-district-council/leeds,Leeds City Council,31/08/2020,Adults and Health,Services For Adults Under 65 Mental/Dis,Third Party Payments,Fees - Level 4,520,18/08/2020,2008-00331,0.00,198.00,R,AE BIA Assessments Limited,No
Http://opendatacommunities.org/id/metropolitan-district-council/leeds,Leeds City Council,31/08/2020,Adults and Health,Services For Adults Under 65 Mental/Dis,Third Party Payments,Fees - Level 4,520,20/08/2020,2008-00332,0.00,198.00,R,AE BIA Assessments Limited,No
Http://opendatacommunities.org/id/metropolitan-district-council/leeds,Leeds City Council,31/08/2020,Adults and Health,Services For Adults Under 65 Mental/Dis,Third Party Payments,Fees - Level 4,520,24/08/2020,2008-00333,0.00,198.00,R,AE BIA Assessments Limited,No
Http://opendatacommunities.org/id/metropolitan-district-council/leeds,Leeds City Council,31/08/2020,City Development,Highways,Capital,OTHER COSTS,7,03/08/2020,2008-00334,0.00,77317.58,C,Aecom Limited,No
Http://opendatacommunities.org/id/metropolitan-district-council/leeds,Leeds City Council,31/08/2020,City Development,Highways,Capital,OTHER COSTS,7,24/08/2020,2008-00335,0.00,6500.00,C,Aecom Limited,No
Http://opendatacommunities.org/id/metropolitan-district-council/leeds,Leeds City Council,31/08/2020,Adults and Health,Services For Adults Under 65 Mental/Dis,Third Party Payments,Home Care,568,05/08/2020,2008-00336,0.00,480.60,R,Aegis Care Solutions Ltd,No
Http://opendatacommunities.org/id/metropolitan-district-council/leeds,Leeds City Council,31/08/2020,Adults and Health,Services For Adults Under 65 Mental/Dis,Third Party Payments,Home Care,568,11/08/2020,2008-00337,0.00,519.75,R,Aegis Care Solutions Ltd,No
Http://opendatacommunities.org/id/metropolitan-district-council/leeds,Leeds City Council,31/08/2020,Adults and Health,Services For Adults Under 65 Mental/Dis,Third Party Payments,Home Care,568,11/08/2020,2008-00338,0.00,703.10,R,Aegis Care Solutions Ltd,No
Http://opendatacommunities.org/id/metropolitan-district-council/leeds,Leeds City Council,31/08/2020,Adults and Health,Services For Older People - 65 and Over,Third Party Payments,Home Care,568,12/08/2020,2008-00339,0.00,10838.90,R,Aegis Care Solutions Ltd,No
Http://opendatacommunities.org/id/metropolitan-district-council/leeds,Leeds City Council,31/08/2020,Adults and Health,Services For Older People - 65 and Over,Third Party Payments,HCAIT Other,577,12/08/2020,2008-00340,0.00,306.40,R,Aegis Care Solutions Ltd,No
Http://opendatacommunities.org/id/metropolitan-district-council/leeds,Leeds City Council,31/08/2020,Adults and Health,Services For Older People Under 65 P/Dis,Third Party Payments,Home Care,568,12/08/2020,2008-00341,0.00,4093.60,R,Aegis Care Solutions Ltd,No
Http://opendatacommunities.org/id/metropolitan-district-council/leeds,Leeds City Council as Accountable Body,31/08/2020,Social Services Pooled Budgets,Jcs For People With Learning Disabilitie,Third Party Payments,Home Care,568,12/08/2020,2008-00342,0.00,2436.00,R,Aegis Care Solutions Ltd,No
Http://opendatacommunities.org/id/metropolitan-district-council/leeds,Leeds City Council,31/08/2020,Adults and Health,Services For Adults Under 65 Mental/Dis,Third Party Payments,Home Care,568,14/08/2020,2008-00343,0.00,427.20,R,Aegis Care Solutions Ltd,No
Http://opendatacommunities.org/id/metropolitan-district-council/leeds,Leeds City Council,31/08/2020,Adults and Health,Services For Older People - 65 and Over,Third Party Payments,Home Care,568,17/08/2020,2008-00344,0.00,183.64,R,Aegis Care Solutions Ltd,No
Http://opendatacommunities.org/id/metropolitan-district-council/leeds,Leeds City Council,31/08/2020,Adults and Health,Services For Older People - 65 and Over,Third Party Payments,Home Care,568,17/08/2020,2008-00345,0.00,379.82,R,Aegis Care Solutions Ltd,No
Http://opendatacommunities.org/id/metropolitan-district-council/leeds,Leeds City Council as Accountable Body,31/08/2020,Social Services Pooled Budgets,Jcs For People With Learning Disabilitie,Third Party Payments,Residential,580,17/08/2020,2008-00346,0.00,1.98,R,Aegis Care Solutions Ltd,No
Http://opendatacommunities.org/id/metropolitan-district-council/leeds,Leeds City Council,31/08/2020,City Development,Employment & Skills,Supplies and Services,Training Allowances,257,21/08/2020,2008-00347,0.00,198.00,R,aelp Association of Employment,No
Http://opendatacommunities.org/id/metropolitan-district-council/leeds,Leeds City Council,31/08/2020,City Development,Employment & Skills,Supplies and Services,Training Allowances,257,21/08/2020,2008-00348,0.00,99.00,R,aelp Association of Employment,No
Http://opendatacommunities.org/id/metropolitan-district-council/leeds,Leeds City Council,31/08/2020,Adults and Health,Services For Older People Under 65 P/Dis,Third Party Payments,Day Centre,564,05/08/2020,2008-00349,0.00,537.32,R,Affinity Trust,No
Http://opendatacommunities.org/id/metropolitan-district-council/leeds,Leeds City Council as Accountable Body,31/08/2020,Social Services Pooled Budgets,Jcs For People With Learning Disabilitie,Third Party Payments,Home Care,568,11/08/2020,2008-00350,0.00,1613.28,R,Affinity Trust,No
Http://opendatacommunities.org/id/metropolitan-district-council/leeds,Leeds City Council as Accountable Body,31/08/2020,Social Services Pooled Budgets,Jcs For People With Learning Disabilitie,Third Party Payments,Home Care,568,11/08/2020,2008-00351,0.00,1504.72,R,Affinity Trust,No
Http://opendatacommunities.org/id/metropolitan-district-council/leeds,Leeds City Council as Accountable Body,31/08/2020,Social Services Pooled Budgets,Jcs For People With Learning Disabilitie,Third Party Payments,Home Care,568,12/08/2020,2008-00352,0.00,47.48,R,Affinity Trust,No
Http://opendatacommunities.org/id/metropolitan-district-council/leeds,Leeds City Council as Accountable Body,31/08/2020,Social Services Pooled Budgets,Jcs For People With Learning Disabilitie,Third Party Payments,Home Care,568,12/08/2020,2008-00353,0.00,319.60,R,Affinity Trust,No
Http://opendatacommunities.org/id/metropolitan-district-council/leeds,Leeds City Council,31/08/2020,Adults and Health,Services For Adults Under 65 Mental/Dis,Third Party Payments,HCAIT Community Support,575,12/08/2020,2008-00354,0.00,336.40,R,Affinity Trust,No
Http://opendatacommunities.org/id/metropolitan-district-council/leeds,Leeds City Council,31/08/2020,Adults and Health,Services For Older People - 65 and Over,Third Party Payments,HCAIT Community Support,575,12/08/2020,2008-00355,0.00,575.28,R,Affinity Trust,No
Http://opendatacommunities.org/id/metropolitan-district-council/leeds,Leeds City Council,31/08/2020,Adults and Health,Other Adult Services,Third Party Payments,Home Care,568,17/08/2020,2008-00356,0.00,16575.00,R,Affinity Trust,No
Http://opendatacommunities.org/id/metropolitan-district-council/leeds,Leeds City Council,31/08/2020,Adults and Health,Services For Older People - 65 and Over,Third Party Payments,Home Care,568,17/08/2020,2008-00357,0.00,8.52,R,Affinity Trust,No
Http://opendatacommunities.org/id/metropolitan-district-council/leeds,Leeds City Council,31/08/2020,Adults and Health,Services For Older People - 65 and Over,Third Party Payments,Home Care,568,17/08/2020,2008-00358,0.00,60.23,R,Affinity Trust,No
Http://opendatacommunities.org/id/metropolitan-district-council/leeds,Leeds City Council as Accountable Body,31/08/2020,Social Services Pooled Budgets,Jcs For People With Learning Disabilitie,Third Party Payments,Sheltered Accommodation,569,17/08/2020,2008-00359,0.00,1695.79,R,Affinity Trust,No
Http://opendatacommunities.org/id/metropolitan-district-council/leeds,Leeds City Council,31/08/2020,Adults and Health,Services For Older People - 65 and Over,Third Party Payments,Nursing Home,570,17/08/2020,2008-00360,0.00,6125.87,R,Affinity Trust North Divisional Office,No
Http://opendatacommunities.org/id/metropolitan-district-council/leeds,Leeds City Council,31/08/2020,Adults and Health,Services For Older People Under 65 P/Dis,Third Party Payments,Sheltered Accommodation,569,19/08/2020,2008-00361,0.00,8290.80,R,Affinity Trust North Divisional Office,No
Http://opendatacommunities.org/id/metropolitan-district-council/leeds,Leeds City Council as Accountable Body,31/08/2020,Social Services Pooled Budgets,Jcs For People With Learning Disabilitie,Third Party Payments,Sheltered Accommodation,569,19/08/2020,2008-00362,0.00,113994.02,R,Affinity Trust North Divisional Office,No
Http://opendatacommunities.org/id/metropolitan-district-council/leeds,Leeds City Council,31/08/2020,Communities and Environment,Parks and Countryside  ,Transport,External Hire -Occasional,304,10/07/2020,2008-00363,0.00,950.00,R,Afi Uplift,Yes
Http://opendatacommunities.org/id/metropolitan-district-council/leeds,Leeds City Council,31/08/2020,Communities and Environment,Parks and Countryside  ,Transport,Hire Of Movable Plant & Machinery,315,10/07/2020,2008-00364,0.00,100.00,R,Afi Uplift,Yes
Http://opendatacommunities.org/id/metropolitan-district-council/leeds,Leeds City Council,31/08/2020,Communities and Environment,Parks and Countryside  ,Transport,External Hire -Occasional,304,10/07/2020,2008-00365,0.00,950.00,R,Afi Uplift,Yes
Http://opendatacommunities.org/id/metropolitan-district-council/leeds,Leeds City Council,31/08/2020,Communities and Environment,Parks and Countryside  ,Transport,Hire Of Movable Plant & Machinery,315,10/07/2020,2008-00366,0.00,100.00,R,Afi Uplift,Yes
Http://opendatacommunities.org/id/metropolitan-district-council/leeds,Leeds City Council,31/08/2020,Communities and Environment,Parks and Countryside  ,Transport,Hire Of Movable Plant & Machinery,315,10/07/2020,2008-00367,0.00,100.00,R,Afi Uplift,Yes
Http://opendatacommunities.org/id/metropolitan-district-council/leeds,Leeds City Council,31/08/2020,Communities and Environment,Parks and Countryside  ,Transport,Hire Of Movable Plant & Machinery,315,10/07/2020,2008-00368,0.00,100.00,R,Afi Uplift,Yes
Http://opendatacommunities.org/id/metropolitan-district-council/leeds,Leeds City Council,31/08/2020,Communities and Environment,Parks and Countryside  ,Transport,External Hire -Occasional,304,10/07/2020,2008-00369,0.00,950.00,R,Afi Uplift,Yes
Http://opendatacommunities.org/id/metropolitan-district-council/leeds,Leeds City Council,31/08/2020,Communities and Environment,Parks and Countryside  ,Transport,External Hire -Occasional,304,10/07/2020,2008-00370,0.00,950.00,R,Afi Uplift,Yes
Http://opendatacommunities.org/id/metropolitan-district-council/leeds,Leeds City Council,31/08/2020,Communities and Environment,Customer Access,Supplies and Services,Other Hired and Contracted Services,265,07/08/2020,2008-00371,0.00,50.00,R,Agency For Good Ltd,No
Http://opendatacommunities.org/id/metropolitan-district-council/leeds,Leeds City Council,31/08/2020,City Development,Economic Development,Supplies and Services,Grants To Businesses,243,28/08/2020,2008-00372,0.00,10000.00,R,Agency TK Limited,No
Http://opendatacommunities.org/id/metropolitan-district-council/leeds,Leeds City Council,31/08/2020,Children and Families,Social Care,Third Party Payments,Contact,548,11/08/2020,2008-00373,0.00,14.10,R,REDACTED PERSONAL DATA,No
Http://opendatacommunities.org/id/metropolitan-district-council/leeds,Leeds City Council,31/08/2020,Communities and Environment,Customer Access,Supplies and Services,Bought In Professional Services,277,13/08/2020,2008-00374,0.00,13.50,R,Ahmed Moustafa Moustafa Mousa,No
Http://opendatacommunities.org/id/metropolitan-district-council/leeds,Leeds City Council,31/08/2020,Communities and Environment,Customer Access,Supplies and Services,Bought In Professional Services,277,26/08/2020,2008-00375,0.00,9.00,R,Ahmed Moustafa Moustafa Mousa,No
Http://opendatacommunities.org/id/metropolitan-district-council/leeds,Leeds City Council,31/08/2020,Strategic Landlord,Property and Contracts,Transfer Payments,Disrepair Provision,644,20/08/2020,2008-00376,0.00,820.00,R,AHR Building Consultancy Ltd,No
Http://opendatacommunities.org/id/metropolitan-district-council/leeds,Leeds City Council,31/08/2020,Strategic Landlord,Property and Contracts,Transfer Payments,Disrepair Provision,644,20/08/2020,2008-00377,0.00,550.00,R,AHR Building Consultancy Ltd,No
Http://opendatacommunities.org/id/metropolitan-district-council/leeds,Leeds City Council,31/08/2020,Strategic Landlord,Property and Contracts,Transfer Payments,Disrepair Provision,644,21/08/2020,2008-00378,0.00,390.00,R,AHR Building Consultancy Ltd,No
Http://opendatacommunities.org/id/metropolitan-district-council/leeds,Leeds City Council,31/08/2020,Strategic Landlord,Property and Contracts,Transfer Payments,Disrepair Provision,644,21/08/2020,2008-00379,0.00,390.00,R,AHR Building Consultancy Ltd,No
Http://opendatacommunities.org/id/metropolitan-district-council/leeds,Leeds City Council,31/08/2020,Strategic Landlord,Property and Contracts,Transfer Payments,Disrepair Provision,644,21/08/2020,2008-00380,0.00,390.00,R,AHR Building Consultancy Ltd,No
Http://opendatacommunities.org/id/metropolitan-district-council/leeds,Leeds City Council as Accountable Body,31/08/2020,Social Services Pooled Budgets,Leeds Community Equip Store Pooled Budgt,Supplies and Services,Other Equipment,203,28/08/2020,2008-00381,0.00,1622.67,R,AIDAPT BATHROOMS LTD,No
Http://opendatacommunities.org/id/metropolitan-district-council/leeds,Leeds City Council as Accountable Body,31/08/2020,Social Services Pooled Budgets,Leeds Community Equip Store Pooled Budgt,Supplies and Services,Other Equipment,203,28/08/2020,2008-00382,0.00,1430.00,R,AIDAPT BATHROOMS LTD,No
Http://opendatacommunities.org/id/metropolitan-district-council/leeds,Leeds City Council,31/08/2020,Adults and Health,Services For Older People - 65 and Over,Transfer Payments,Direct Payments,626,04/08/2020,2008-00383,0.00,254.36,R,REDACTED PERSONAL DATA,No
Http://opendatacommunities.org/id/metropolitan-district-council/leeds,Leeds City Council,31/08/2020,Resources and Housing,Commercial Services  ,Supplies and Services,Operational Materials,205,01/07/2020,2008-00384,0.00,84.56,R,Air Force Pneumatics and,Yes
Http://opendatacommunities.org/id/metropolitan-district-council/leeds,Leeds City Council,31/08/2020,Resources and Housing,Commercial Services  ,Supplies and Services,Operational Materials,205,01/07/2020,2008-00385,0.00,34.50,R,Air Force Pneumatics and,Yes
Http://opendatacommunities.org/id/metropolitan-district-council/leeds,Leeds City Council,31/08/2020,Resources and Housing,Leeds Building Services,Supplies and Services,Operational Materials,205,27/08/2020,2008-00386,0.00,331.54,R,AIR LIQUIDE UK,No
Http://opendatacommunities.org/id/metropolitan-district-council/leeds,Leeds City Council,31/08/2020,Resources and Housing,Leeds Building Services,Supplies and Services,Operational Materials,205,28/08/2020,2008-00387,0.00,196.32,R,AIR LIQUIDE UK,No
Http://opendatacommunities.org/id/metropolitan-district-council/leeds,Leeds City Council,31/08/2020,Communities and Environment,Parks and Countryside,Transport,Repair & Maintenance of  Plant,342,27/08/2020,2008-00388,0.00,251.00,R,Air Solutions (Leeds) Ltd,No
Http://opendatacommunities.org/id/metropolitan-district-council/leeds,Leeds City Council,31/08/2020,Children and Families,Social Care  ,Supplies and Services,Holidays-  Service Users,284,10/07/2020,2008-00389,0.00,423.91,R,Airbnb * Hm43ca85w8,Yes
Http://opendatacommunities.org/id/metropolitan-district-council/leeds,Leeds City Council,31/08/2020,Resources and Housing,Technology,Supplies and Services,Computer Software & Equipment,214,21/08/2020,2008-00390,0.00,15000.00,R,Aire Logic Ltd,No
Http://opendatacommunities.org/id/metropolitan-district-council/leeds,Leeds City Council,31/08/2020,Resources and Housing,Digital and Information Services,Capital,OTHER COSTS,7,28/08/2020,2008-00391,0.00,81212.50,C,Aire Logic Ltd,No
Http://opendatacommunities.org/id/metropolitan-district-council/leeds,Leeds City Council,31/08/2020,Communities and Environment,Parks and Countryside,Supplies and Services,Other Hired and Contracted Services,265,18/08/2020,2008-00392,0.00,285.00,R,Aire Valley Tree Services Ltd,No
Http://opendatacommunities.org/id/metropolitan-district-council/leeds,Leeds City Council,31/08/2020,Communities and Environment,Parks and Countryside,Supplies and Services,Other Hired and Contracted Services,265,21/08/2020,2008-00393,0.00,700.00,R,Aire Valley Tree Services Ltd,No
Http://opendatacommunities.org/id/metropolitan-district-council/leeds,Leeds City Council,31/08/2020,Communities and Environment,Parks and Countryside,Supplies and Services,Other Hired and Contracted Services,265,27/08/2020,2008-00394,0.00,625.00,R,Aire Valley Tree Services Ltd,No
Http://opendatacommunities.org/id/metropolitan-district-council/leeds,Leeds City Council,31/08/2020,Adults and Health,Services For Older People - 65 and Over,Third Party Payments,Residential Care Dementia,571,19/08/2020,2008-00395,0.00,36963.52,R,Aire View Residential Home,No
Http://opendatacommunities.org/id/metropolitan-district-council/leeds,Leeds City Council,31/08/2020,Adults and Health,Services For Older People - 65 and Over,Third Party Payments,Residential,580,19/08/2020,2008-00396,0.00,10094.37,R,Aire View Residential Home,No
Http://opendatacommunities.org/id/metropolitan-district-council/leeds,Leeds City Council,31/08/2020,Strategic Accounts,Miscellaneous,Supplies and Services,Non-Recurring Grants,227,03/08/2020,2008-00397,0.00,250.00,R,Aireborough Nunroyd Sports Assc,No
Http://opendatacommunities.org/id/metropolitan-district-council/leeds,Leeds City Council,31/08/2020,Adults and Health,Services For Older People - 65 and Over,Third Party Payments,Residential Care Dementia,571,19/08/2020,2008-00398,0.00,1511.60,R,Airedale Care Home,No
Http://opendatacommunities.org/id/metropolitan-district-council/leeds,Leeds City Council,31/08/2020,Adults and Health,Services For Older People - 65 and Over,Third Party Payments,Residential,580,19/08/2020,2008-00399,0.00,24586.42,R,Airedale Care Home,No
Http://opendatacommunities.org/id/metropolitan-district-council/leeds,Leeds City Council,31/08/2020,Resources and Housing,Commercial Services,Supplies and Services,Operational Furniture and Equipment,203,26/08/2020,2008-00400,0.00,1089.00,R,AIREDALE CATERING EQUIPMENT LTD,No
Http://opendatacommunities.org/id/metropolitan-district-council/leeds,Leeds City Council,31/08/2020,Resources and Housing,Commercial Services,Supplies and Services,Operational Furniture and Equipment,203,27/08/2020,2008-00401,0.00,1735.00,R,AIREDALE CATERING EQUIPMENT LTD,No
Http://opendatacommunities.org/id/metropolitan-district-council/leeds,Leeds City Council,31/08/2020,Resources and Housing,Commercial Services,Supplies and Services,Operational Furniture and Equipment,203,27/08/2020,2008-00402,0.00,1596.00,R,AIREDALE CATERING EQUIPMENT LTD,No
Http://opendatacommunities.org/id/metropolitan-district-council/leeds,Leeds City Council,31/08/2020,City Development,Libraries  Arts & Heritage,Supplies and Services,Operational Furniture and Equipment,203,28/08/2020,2008-00403,0.00,2600.00,R,AIREDALE CATERING EQUIPMENT LTD,No
Http://opendatacommunities.org/id/metropolitan-district-council/leeds,Leeds City Council,31/08/2020,City Development,Libraries  Arts & Heritage,Supplies and Services,Postages,212,28/08/2020,2008-00404,0.00,150.00,R,AIREDALE CATERING EQUIPMENT LTD,No
Http://opendatacommunities.org/id/metropolitan-district-council/leeds,Leeds City Council,31/08/2020,Children and Families,Social Care  ,Transfer Payments,Leaving Care Allowances,634,03/07/2020,2008-00405,0.00,16.35,R,Airpay Global Limited,Yes
Http://opendatacommunities.org/id/metropolitan-district-council/leeds,Leeds City Council,31/08/2020,Children and Families,Social Care  ,Transfer Payments,Leaving Care Allowances,634,08/07/2020,2008-00406,0.00,5.65,R,Airpay Global Limited,Yes
Http://opendatacommunities.org/id/metropolitan-district-council/leeds,Leeds City Council,31/08/2020,Communities and Environment,Community Safety,Supplies and Services,Bought In Professional Services,277,07/08/2020,2008-00407,0.00,1044.80,R,AIRWAVE SOLUTIONS LTD,No
Http://opendatacommunities.org/id/metropolitan-district-council/leeds,Leeds City Council,31/08/2020,Adults and Health,Services For Adults Under 65 Mental/Dis,Third Party Payments,Services Provided By Other NHS Bodies,522,07/08/2020,2008-00408,0.00,175.00,R,AIT Mitra Limited,No
Http://opendatacommunities.org/id/metropolitan-district-council/leeds,Leeds City Council,31/08/2020,Adults and Health,Services For Adults Under 65 Mental/Dis,Third Party Payments,Services Provided By Other NHS Bodies,522,07/08/2020,2008-00409,0.00,175.00,R,AIT Mitra Limited,No
Http://opendatacommunities.org/id/metropolitan-district-council/leeds,Leeds City Council,31/08/2020,Adults and Health,Services For Adults Under 65 Mental/Dis,Third Party Payments,Services Provided By Other NHS Bodies,522,07/08/2020,2008-00410,0.00,175.00,R,AIT Mitra Limited,No
Http://opendatacommunities.org/id/metropolitan-district-council/leeds,Leeds City Council,31/08/2020,Adults and Health,Services For Adults Under 65 Mental/Dis,Third Party Payments,Services Provided By Other NHS Bodies,522,07/08/2020,2008-00411,0.00,175.00,R,AIT Mitra Limited,No
Http://opendatacommunities.org/id/metropolitan-district-council/leeds,Leeds City Council,31/08/2020,Adults and Health,Services For Adults Under 65 Mental/Dis,Third Party Payments,Services Provided By Other NHS Bodies,522,14/08/2020,2008-00412,0.00,175.00,R,AIT Mitra Limited,No
Http://opendatacommunities.org/id/metropolitan-district-council/leeds,Leeds City Council,31/08/2020,Adults and Health,Services For Adults Under 65 Mental/Dis,Third Party Payments,Services Provided By Other NHS Bodies,522,26/08/2020,2008-00413,0.00,175.00,R,AIT Mitra Limited,No
Http://opendatacommunities.org/id/metropolitan-district-council/leeds,Leeds City Council,31/08/2020,Adults and Health,Services For Adults Under 65 Mental/Dis,Third Party Payments,Services Provided By Other NHS Bodies,522,28/08/2020,2008-00414,0.00,175.00,R,AIT Mitra Limited,No
Http://opendatacommunities.org/id/metropolitan-district-council/leeds,Leeds City Council,31/08/2020,Adults and Health,Services For Older People - 65 and Over,Third Party Payments,Nursing Home,570,17/08/2020,2008-00415,0.00,343.91,R,AITCH care homes,No
Http://opendatacommunities.org/id/metropolitan-district-council/leeds,Leeds City Council as Accountable Body,31/08/2020,Social Services Pooled Budgets,Jcs For People With Learning Disabilitie,Third Party Payments,Residential,580,19/08/2020,2008-00416,0.00,6709.72,R,AITCH care homes,No
Http://opendatacommunities.org/id/metropolitan-district-council/leeds,Leeds City Council,31/08/2020,Resources and Housing,Leeds Building Services,Supplies and Services,Operational Materials,205,10/08/2020,2008-00417,0.00,133.20,R,AJM FIXINGS & POWER TOOLS LTD,No
Http://opendatacommunities.org/id/metropolitan-district-council/leeds,Leeds City Council,31/08/2020,Resources and Housing,Leeds Building Services,Supplies and Services,Operational Furniture and Equipment,203,10/08/2020,2008-00418,0.00,101.00,R,AJM FIXINGS & POWER TOOLS LTD,No
Http://opendatacommunities.org/id/metropolitan-district-council/leeds,Leeds City Council,31/08/2020,Resources and Housing,Leeds Building Services,Supplies and Services,Operational Furniture and Equipment,203,10/08/2020,2008-00419,0.00,280.99,R,AJM FIXINGS & POWER TOOLS LTD,No
Http://opendatacommunities.org/id/metropolitan-district-council/leeds,Leeds City Council,31/08/2020,Resources and Housing,Leeds Building Services,Supplies and Services,Operational Furniture and Equipment,203,10/08/2020,2008-00420,0.00,294.00,R,AJM FIXINGS & POWER TOOLS LTD,No
Http://opendatacommunities.org/id/metropolitan-district-council/leeds,Leeds City Council,31/08/2020,Resources and Housing,Leeds Building Services,Supplies and Services,Operational Furniture and Equipment,203,13/08/2020,2008-00421,0.00,750.00,R,AJM FIXINGS & POWER TOOLS LTD,No
Http://opendatacommunities.org/id/metropolitan-district-council/leeds,Leeds City Council,31/08/2020,Resources and Housing,Leeds Building Services,Supplies and Services,Operational Furniture and Equipment,203,13/08/2020,2008-00422,0.00,791.00,R,AJM FIXINGS & POWER TOOLS LTD,No
Http://opendatacommunities.org/id/metropolitan-district-council/leeds,Leeds City Council,31/08/2020,Resources and Housing,Leeds Building Services,Supplies and Services,Operational Furniture and Equipment,203,13/08/2020,2008-00423,0.00,385.75,R,AJM FIXINGS & POWER TOOLS LTD,No
Http://opendatacommunities.org/id/metropolitan-district-council/leeds,Leeds City Council,31/08/2020,Resources and Housing,Leeds Building Services,Supplies and Services,Operational Furniture and Equipment,203,14/08/2020,2008-00424,0.00,355.00,R,AJM FIXINGS & POWER TOOLS LTD,No
Http://opendatacommunities.org/id/metropolitan-district-council/leeds,Leeds City Council,31/08/2020,Resources and Housing,Leeds Building Services,Supplies and Services,Operational Furniture and Equipment,203,14/08/2020,2008-00425,0.00,250.00,R,AJM FIXINGS & POWER TOOLS LTD,No
Http://opendatacommunities.org/id/metropolitan-district-council/leeds,Leeds City Council,31/08/2020,Resources and Housing,Leeds Building Services,Supplies and Services,Operational Furniture and Equipment,203,14/08/2020,2008-00426,0.00,63.00,R,AJM FIXINGS & POWER TOOLS LTD,No
Http://opendatacommunities.org/id/metropolitan-district-council/leeds,Leeds City Council,31/08/2020,Resources and Housing,Leeds Building Services,Supplies and Services,Operational Materials,205,14/08/2020,2008-00427,0.00,30.20,R,AJM FIXINGS & POWER TOOLS LTD,No
Http://opendatacommunities.org/id/metropolitan-district-council/leeds,Leeds City Council,31/08/2020,Resources and Housing,Leeds Building Services,Supplies and Services,Operational Furniture and Equipment,203,21/08/2020,2008-00428,0.00,170.00,R,AJM FIXINGS & POWER TOOLS LTD,No
Http://opendatacommunities.org/id/metropolitan-district-council/leeds,Leeds City Council,31/08/2020,Resources and Housing,Leeds Building Services,Supplies and Services,Operational Furniture and Equipment,203,21/08/2020,2008-00429,0.00,355.00,R,AJM FIXINGS & POWER TOOLS LTD,No
Http://opendatacommunities.org/id/metropolitan-district-council/leeds,Leeds City Council,31/08/2020,Resources and Housing,Leeds Building Services,Supplies and Services,Operational Furniture and Equipment,203,21/08/2020,2008-00430,0.00,450.00,R,AJM FIXINGS & POWER TOOLS LTD,No
Http://opendatacommunities.org/id/metropolitan-district-council/leeds,Leeds City Council,31/08/2020,Resources and Housing,Leeds Building Services,Supplies and Services,Operational Furniture and Equipment,203,21/08/2020,2008-00431,0.00,15.00,R,AJM FIXINGS & POWER TOOLS LTD,No
Http://opendatacommunities.org/id/metropolitan-district-council/leeds,Leeds City Council,31/08/2020,Resources and Housing,Leeds Building Services,Supplies and Services,Operational Materials,205,27/08/2020,2008-00432,0.00,432.04,R,AJM FIXINGS & POWER TOOLS LTD,No
Http://opendatacommunities.org/id/metropolitan-district-council/leeds,Leeds City Council,31/08/2020,Resources and Housing,Leeds Building Services,Supplies and Services,Operational Furniture and Equipment,203,27/08/2020,2008-00433,0.00,143.00,R,AJM FIXINGS & POWER TOOLS LTD,No
Http://opendatacommunities.org/id/metropolitan-district-council/leeds,Leeds City Council,31/08/2020,Resources and Housing,Leeds Building Services,Supplies and Services,STORES - CENTRAL and OTHER DEPOTS,5,27/08/2020,2008-00434,0.00,2016.00,R,AJM FIXINGS & POWER TOOLS LTD,No
Http://opendatacommunities.org/id/metropolitan-district-council/leeds,Leeds City Council,31/08/2020,Resources and Housing,Leeds Building Services,Supplies and Services,Operational Furniture and Equipment,203,27/08/2020,2008-00435,0.00,308.40,R,AJM FIXINGS & POWER TOOLS LTD,No
Http://opendatacommunities.org/id/metropolitan-district-council/leeds,Leeds City Council,31/08/2020,Resources and Housing,Leeds Building Services,Supplies and Services,Operational Furniture and Equipment,203,27/08/2020,2008-00436,0.00,248.00,R,AJM FIXINGS & POWER TOOLS LTD,No
Http://opendatacommunities.org/id/metropolitan-district-council/leeds,Leeds City Council,31/08/2020,Resources and Housing,Leeds Building Services,Supplies and Services,STORES - CENTRAL and OTHER DEPOTS,5,27/08/2020,2008-00437,0.00,630.00,R,AJM FIXINGS & POWER TOOLS LTD,No
Http://opendatacommunities.org/id/metropolitan-district-council/leeds,Leeds City Council,31/08/2020,Resources and Housing,Leeds Building Services,Supplies and Services,Operational Materials,205,27/08/2020,2008-00438,0.00,231.00,R,AJM FIXINGS & POWER TOOLS LTD,No
Http://opendatacommunities.org/id/metropolitan-district-council/leeds,Leeds City Council,31/08/2020,Resources and Housing,Leeds Building Services,Supplies and Services,Operational Furniture and Equipment,203,27/08/2020,2008-00439,0.00,49.30,R,AJM FIXINGS & POWER TOOLS LTD,No
Http://opendatacommunities.org/id/metropolitan-district-council/leeds,Leeds City Council,31/08/2020,Resources and Housing,Leeds Building Services,Supplies and Services,Operational Materials,205,27/08/2020,2008-00440,0.00,22.20,R,AJM FIXINGS & POWER TOOLS LTD,No
Http://opendatacommunities.org/id/metropolitan-district-council/leeds,Leeds City Council,31/08/2020,Resources and Housing,Leeds Building Services,Supplies and Services,Operational Furniture and Equipment,203,28/08/2020,2008-00441,0.00,889.20,R,AJM FIXINGS & POWER TOOLS LTD,No
Http://opendatacommunities.org/id/metropolitan-district-council/leeds,Leeds City Council,31/08/2020,Resources and Housing,Leeds Building Services,Supplies and Services,Operational Furniture and Equipment,203,28/08/2020,2008-00442,0.00,131.45,R,AJM FIXINGS & POWER TOOLS LTD,No
Http://opendatacommunities.org/id/metropolitan-district-council/leeds,Leeds City Council,31/08/2020,Resources and Housing,Leeds Building Services,Supplies and Services,Operational Furniture and Equipment,203,28/08/2020,2008-00443,0.00,296.40,R,AJM FIXINGS & POWER TOOLS LTD,No
Http://opendatacommunities.org/id/metropolitan-district-council/leeds,Leeds City Council,31/08/2020,Resources and Housing,Leeds Building Services,Supplies and Services,Operational Materials,205,28/08/2020,2008-00444,0.00,257.96,R,AJM FIXINGS & POWER TOOLS LTD,No
Http://opendatacommunities.org/id/metropolitan-district-council/leeds,Leeds City Council,31/08/2020,Resources and Housing,Leeds Building Services,Supplies and Services,Operational Materials,205,28/08/2020,2008-00445,0.00,335.00,R,AJM FIXINGS & POWER TOOLS LTD,No
Http://opendatacommunities.org/id/metropolitan-district-council/leeds,Leeds City Council,31/08/2020,Resources and Housing,Leeds Building Services,Supplies and Services,STORES - CENTRAL and OTHER DEPOTS,5,28/08/2020,2008-00446,0.00,221.82,R,AJM FIXINGS & POWER TOOLS LTD,No
Http://opendatacommunities.org/id/metropolitan-district-council/leeds,Leeds City Council,31/08/2020,Resources and Housing,Leeds Building Services,Supplies and Services,Operational Materials,205,28/08/2020,2008-00447,0.00,108.00,R,AJM FIXINGS & POWER TOOLS LTD,No
Http://opendatacommunities.org/id/metropolitan-district-council/leeds,Leeds City Council,31/08/2020,Resources and Housing,Leeds Building Services,Supplies and Services,Operational Furniture and Equipment,203,28/08/2020,2008-00448,0.00,174.99,R,AJM FIXINGS & POWER TOOLS LTD,No
Http://opendatacommunities.org/id/metropolitan-district-council/leeds,Leeds City Council,31/08/2020,Resources and Housing,Leeds Building Services,Supplies and Services,Operational Furniture and Equipment,203,28/08/2020,2008-00449,0.00,137.99,R,AJM FIXINGS & POWER TOOLS LTD,No
Http://opendatacommunities.org/id/metropolitan-district-council/leeds,Leeds City Council,31/08/2020,Resources and Housing,Leeds Building Services,Supplies and Services,STORES - CENTRAL and OTHER DEPOTS,5,28/08/2020,2008-00450,0.00,169.50,R,AJM FIXINGS & POWER TOOLS LTD,No
Http://opendatacommunities.org/id/metropolitan-district-council/leeds,Leeds City Council,31/08/2020,Resources and Housing,Strategic Housing Partnerships,Capital,CONSTRUCTION,3,13/08/2020,2008-00451,0.00,1000.00,C,AKR Construction Ltd,No
Http://opendatacommunities.org/id/metropolitan-district-council/leeds,Leeds City Council,31/08/2020,Communities and Environment,Waste Management,Employees,Occupational Health,85,28/08/2020,2008-00452,0.00,85.00,R,REDACTED PERSONAL DATA,No
Http://opendatacommunities.org/id/metropolitan-district-council/leeds,Leeds City Council,31/08/2020,Children and Families,Social Care,Third Party Payments,Services Rendered By Other Organisations,511,07/08/2020,2008-00453,0.00,1839.60,R,REDACTED PERSONAL DATA,No
Http://opendatacommunities.org/id/metropolitan-district-council/leeds,Leeds City Council,31/08/2020,Children and Families,Social Care,Third Party Payments,Services Rendered By Other Organisations,511,07/08/2020,2008-00454,0.00,160.20,R,REDACTED PERSONAL DATA,No
Http://opendatacommunities.org/id/metropolitan-district-council/leeds,Leeds City Council,31/08/2020,Communities and Environment,Parks and Countryside  ,Supplies and Services,Operational Materials,205,22/07/2020,2008-00455,0.00,4761.43,R,Alba Trees Plc,Yes
Http://opendatacommunities.org/id/metropolitan-district-council/leeds,Leeds City Council,31/08/2020,Communities and Environment,Parks and Countryside  ,Supplies and Services,Operational Materials,205,22/07/2020,2008-00456,0.00,4761.43,R,Alba Trees Plc,Yes
Http://opendatacommunities.org/id/metropolitan-district-council/leeds,Leeds City Council,31/08/2020,Adults and Health,Services For Older People - 65 and Over,Third Party Payments,Residential,580,19/08/2020,2008-00457,0.00,1552.60,R,Albion Court Care Home,No
Http://opendatacommunities.org/id/metropolitan-district-council/leeds,Leeds City Council,31/08/2020,Communities and Environment,Communities,Supplies and Services,Computer Software & Equipment,214,19/08/2020,2008-00458,0.00,1228.33,R,Alcium Software Ltd,No
Http://opendatacommunities.org/id/metropolitan-district-council/leeds,Leeds City Council,31/08/2020,City Development,Economic Development,Supplies and Services,Other Hired and Contracted Services,265,28/08/2020,2008-00459,0.00,250.00,R,Alcium Software Ltd,No
Http://opendatacommunities.org/id/metropolitan-district-council/leeds,Leeds City Council,31/08/2020,City Development,Libraries  Arts & Heritage  ,Supplies and Services,Operational Furniture and Equipment,203,28/07/2020,2008-00460,0.00,104.17,R,Aldea Group Uk,Yes
Http://opendatacommunities.org/id/metropolitan-district-council/leeds,Leeds City Council,31/08/2020,Communities and Environment,Customer Access  ,Supplies and Services,Schools related grant expenditure,299,08/07/2020,2008-00461,0.00,10.35,R,Aldi,Yes
Http://opendatacommunities.org/id/metropolitan-district-council/leeds,Leeds City Council,31/08/2020,Children and Families,Social Care  ,Supplies and Services,Food & Drink,231,01/07/2020,2008-00462,0.00,64.30,R,Aldi 40 779,Yes
Http://opendatacommunities.org/id/metropolitan-district-council/leeds,Leeds City Council,31/08/2020,Children and Families,Social Care  ,Supplies and Services,Food & Drink,231,06/07/2020,2008-00463,0.00,60.32,R,Aldi 40 779,Yes
Http://opendatacommunities.org/id/metropolitan-district-council/leeds,Leeds City Council,31/08/2020,Children and Families,Social Care  ,Supplies and Services,Food & Drink,231,08/07/2020,2008-00464,0.00,48.43,R,Aldi 40 779,Yes
Http://opendatacommunities.org/id/metropolitan-district-council/leeds,Leeds City Council,31/08/2020,Children and Families,Social Care  ,Transfer Payments,Leaving Care Allowances,634,16/07/2020,2008-00465,0.00,10.03,R,Aldi 40 779,Yes
Http://opendatacommunities.org/id/metropolitan-district-council/leeds,Leeds City Council,31/08/2020,Children and Families,Social Care  ,Supplies and Services,Food & Drink,231,18/07/2020,2008-00466,0.00,12.12,R,Aldi 40 779,Yes
Http://opendatacommunities.org/id/metropolitan-district-council/leeds,Leeds City Council,31/08/2020,Resources and Housing,Strategic Housing Partnership & Support  ,Supplies and Services,Other Hired and Contracted Services,265,22/07/2020,2008-00467,0.00,23.16,R,Aldi 49 779,Yes
Http://opendatacommunities.org/id/metropolitan-district-council/leeds,Leeds City Council,31/08/2020,Children and Families,Social Care  ,Supplies and Services,Food & Drink,231,29/07/2020,2008-00468,0.00,19.61,R,Aldi 49 779,Yes
Http://opendatacommunities.org/id/metropolitan-district-council/leeds,Leeds City Council,31/08/2020,Children and Families,Social Care  ,Transfer Payments,Leaving Care Allowances,634,30/06/2020,2008-00469,0.00,74.56,R,Aldi 71 779,Yes
Http://opendatacommunities.org/id/metropolitan-district-council/leeds,Leeds City Council,31/08/2020,Children and Families,Social Care  ,Third Party Payments,Section 17,551,30/06/2020,2008-00470,0.00,18.54,R,Aldi 71 779,Yes
Http://opendatacommunities.org/id/metropolitan-district-council/leeds,Leeds City Council,31/08/2020,Children and Families,Social Care  ,Third Party Payments,Section 17,551,01/07/2020,2008-00471,0.00,14.43,R,Aldi 71 779,Yes
Http://opendatacommunities.org/id/metropolitan-district-council/leeds,Leeds City Council,31/08/2020,Children and Families,Social Care  ,Transfer Payments,Leaving Care Allowances,634,13/07/2020,2008-00472,0.00,25.07,R,Aldi 71 779,Yes
Http://opendatacommunities.org/id/metropolitan-district-council/leeds,Leeds City Council,31/08/2020,Children and Families,Social Care  ,Supplies and Services,Food & Drink,231,28/07/2020,2008-00473,0.00,18.68,R,Aldi 71 779,Yes
Http://opendatacommunities.org/id/metropolitan-district-council/leeds,Leeds City Council,31/08/2020,Children and Families,Social Care  ,Supplies and Services,Food & Drink,231,19/07/2020,2008-00474,0.00,13.35,R,Aldi 85 779,Yes
Http://opendatacommunities.org/id/metropolitan-district-council/leeds,Leeds City Council,31/08/2020,Children and Families,Social Care  ,Supplies and Services,Food & Drink,231,25/07/2020,2008-00475,0.00,69.13,R,Aldi 85 779,Yes
Http://opendatacommunities.org/id/metropolitan-district-council/leeds,Leeds City Council,31/08/2020,Children and Families,Social Care  ,Supplies and Services,Food & Drink,231,27/07/2020,2008-00476,0.00,75.64,R,Aldi 85 779,Yes
Http://opendatacommunities.org/id/metropolitan-district-council/leeds,Leeds City Council,31/08/2020,Children and Families,Social Care  ,Supplies and Services,Food & Drink,231,24/07/2020,2008-00477,0.00,22.08,R,Aldi 88 779,Yes
Http://opendatacommunities.org/id/metropolitan-district-council/leeds,Leeds City Council,31/08/2020,Children and Families,Social Care  ,Supplies and Services,General Amenity For Clients/Residents,285,10/07/2020,2008-00478,0.00,12.28,R,Aldi Stores,Yes
Http://opendatacommunities.org/id/metropolitan-district-council/leeds,Leeds City Council,31/08/2020,Children and Families,Social Care  ,Supplies and Services,Food & Drink,231,14/07/2020,2008-00479,0.00,5.33,R,Aldi Stores,Yes
Http://opendatacommunities.org/id/metropolitan-district-council/leeds,Leeds City Council,31/08/2020,Communities and Environment,Customer Access,Supplies and Services,Bought In Professional Services,277,13/08/2020,2008-00480,0.00,9.00,R,Alena Zueva,No
Http://opendatacommunities.org/id/metropolitan-district-council/leeds,Leeds City Council,31/08/2020,Children and Families,Social Care,Support Services,Legal Disbursements,411,19/08/2020,2008-00481,0.00,4485.00,R,Alex Taylor,No
Http://opendatacommunities.org/id/metropolitan-district-council/leeds,Leeds City Council,31/08/2020,Resources and Housing,Commercial Services,Supplies and Services,Other Hired and Contracted Services,265,06/08/2020,2008-00482,0.00,68.00,R,Alex Uwayezu,No
Http://opendatacommunities.org/id/metropolitan-district-council/leeds,Leeds City Council,31/08/2020,Resources and Housing,Commercial Services,Supplies and Services,Other Hired and Contracted Services,265,14/08/2020,2008-00483,0.00,80.00,R,ALEX WAGG,No
Http://opendatacommunities.org/id/metropolitan-district-council/leeds,Leeds City Council,31/08/2020,Resources and Housing,Civic Enterprise Leeds,Capital,TRANSPORT,4,18/08/2020,2008-00484,0.00,640.00,C,ALEX WAGG,No
Http://opendatacommunities.org/id/metropolitan-district-council/leeds,Leeds City Council,31/08/2020,Resources and Housing,Commercial Services,Transport,Vehicle Spares,345,18/08/2020,2008-00485,0.00,135.00,R,ALEX WAGG,No
Http://opendatacommunities.org/id/metropolitan-district-council/leeds,Leeds City Council,31/08/2020,Resources and Housing,Commercial Services,Transport,Vehicle Spares,345,21/08/2020,2008-00486,0.00,80.00,R,ALEX WAGG,No
Http://opendatacommunities.org/id/metropolitan-district-council/leeds,Leeds City Council,31/08/2020,Resources and Housing,Commercial Services,Supplies and Services,Other Hired and Contracted Services,265,28/08/2020,2008-00487,0.00,100.00,R,ALEX WAGG,No
Http://opendatacommunities.org/id/metropolitan-district-council/leeds,Leeds City Council,31/08/2020,Resources and Housing,Commercial Services,Supplies and Services,Other Hired and Contracted Services,265,28/08/2020,2008-00488,0.00,100.00,R,ALEX WAGG,No
Http://opendatacommunities.org/id/metropolitan-district-council/leeds,Leeds City Council,31/08/2020,Resources and Housing,Commercial Services,Supplies and Services,Other Hired and Contracted Services,265,28/08/2020,2008-00489,0.00,80.00,R,ALEX WAGG,No
Http://opendatacommunities.org/id/metropolitan-district-council/leeds,Leeds City Council,31/08/2020,Adults and Health,Services For Older People - 65 and Over,Third Party Payments,Residential Care Dementia,571,19/08/2020,2008-00490,0.00,14022.36,R,ALEXandER RESIDENTIAL HOME,No
Http://opendatacommunities.org/id/metropolitan-district-council/leeds,Leeds City Council,31/08/2020,Adults and Health,Services For Older People - 65 and Over,Third Party Payments,Residential,580,19/08/2020,2008-00491,0.00,12666.88,R,ALEXandER RESIDENTIAL HOME,No
Http://opendatacommunities.org/id/metropolitan-district-council/leeds,Leeds City Council,31/08/2020,Adults and Health,Services For Older People - 65 and Over,Third Party Payments,Residential Care Dementia,571,19/08/2020,2008-00492,0.00,5096.20,R,ALEXandRA COURT,No
Http://opendatacommunities.org/id/metropolitan-district-council/leeds,Leeds City Council,31/08/2020,Adults and Health,Services For Older People - 65 and Over,Third Party Payments,Residential,580,19/08/2020,2008-00493,0.00,6204.28,R,ALEXandRA COURT,No
Http://opendatacommunities.org/id/metropolitan-district-council/leeds,Leeds City Council,31/08/2020,Children and Families,Social Care,Transfer Payments,Leaving Care Allowances,634,12/08/2020,2008-00494,0.00,50.00,R,REDACTED PERSONAL DATA,No
Http://opendatacommunities.org/id/metropolitan-district-council/leeds,Leeds City Council,31/08/2020,Children and Families,Social Care,Third Party Payments,Services Rendered By Other Organisations,511,07/08/2020,2008-00495,0.00,630.72,R,REDACTED PERSONAL DATA,No
Http://opendatacommunities.org/id/metropolitan-district-council/leeds,Leeds City Council,31/08/2020,Adults and Health,Services For Older People - 65 and Over  ,Supplies and Services,Clothing & Uniforms,241,23/07/2020,2008-00496,0.00,53.96,R,Alexandra Website,Yes
Http://opendatacommunities.org/id/metropolitan-district-council/leeds,Leeds City Council,31/08/2020,Resources and Housing,Leeds Building Services,Supplies and Services,Other Hired and Contracted Services,265,04/08/2020,2008-00497,0.00,3750.00,R,Alfred Bagnall & Sons (Leeds) Ltd,No
Http://opendatacommunities.org/id/metropolitan-district-council/leeds,Leeds City Council,31/08/2020,Resources and Housing,Leeds Building Services,Supplies and Services,Other Hired and Contracted Services,265,06/08/2020,2008-00498,0.00,1378.50,R,Alfred Bagnall & Sons (Leeds) Ltd,No
Http://opendatacommunities.org/id/metropolitan-district-council/leeds,Leeds City Council,31/08/2020,Resources and Housing,Leeds Building Services,Supplies and Services,Other Hired and Contracted Services,265,06/08/2020,2008-00499,0.00,490.00,R,Alfred Bagnall & Sons (Leeds) Ltd,No
Http://opendatacommunities.org/id/metropolitan-district-council/leeds,Leeds City Council,31/08/2020,Resources and Housing,Leeds Building Services,Supplies and Services,Other Hired and Contracted Services,265,06/08/2020,2008-00500,0.00,197.00,R,Alfred Bagnall & Sons (Leeds) Ltd,No
Http://opendatacommunities.org/id/metropolitan-district-council/leeds,Leeds City Council,31/08/2020,Resources and Housing,Leeds Building Services,Supplies and Services,Other Hired and Contracted Services,265,06/08/2020,2008-00501,0.00,1378.50,R,Alfred Bagnall & Sons (Leeds) Ltd,No
Http://opendatacommunities.org/id/metropolitan-district-council/leeds,Leeds City Council,31/08/2020,Resources and Housing,Leeds Building Services,Supplies and Services,Other Hired and Contracted Services,265,06/08/2020,2008-00502,0.00,1378.50,R,Alfred Bagnall & Sons (Leeds) Ltd,No
Http://opendatacommunities.org/id/metropolitan-district-council/leeds,Leeds City Council,31/08/2020,Resources and Housing,Leeds Building Services,Supplies and Services,Other Hired and Contracted Services,265,06/08/2020,2008-00503,0.00,1378.50,R,Alfred Bagnall & Sons (Leeds) Ltd,No
Http://opendatacommunities.org/id/metropolitan-district-council/leeds,Leeds City Council,31/08/2020,Resources and Housing,Leeds Building Services,Supplies and Services,Other Hired and Contracted Services,265,17/08/2020,2008-00504,0.00,1000.00,R,Alfred Bagnall & Sons (Leeds) Ltd,No
Http://opendatacommunities.org/id/metropolitan-district-council/leeds,Leeds City Council,31/08/2020,City Development,Culture and Sport,Capital,FURNITURE and EQUIPMENT,5,18/08/2020,2008-00505,0.00,3775.00,C,Alfred Bagnall & Sons (Leeds) Ltd,No
Http://opendatacommunities.org/id/metropolitan-district-council/leeds,Leeds City Council,31/08/2020,City Development,Asset Management Services,Supplies and Services,Other Hired and Contracted Services,265,27/08/2020,2008-00506,0.00,888.00,R,Alfred Bagnall & Sons (Leeds) Ltd,No
Http://opendatacommunities.org/id/metropolitan-district-council/leeds,Leeds City Council,31/08/2020,Communities and Environment,Customer Access,Supplies and Services,Bought In Professional Services,277,13/08/2020,2008-00507,0.00,27.00,R,Ali Pourakaberian,No
Http://opendatacommunities.org/id/metropolitan-district-council/leeds,Leeds City Council,31/08/2020,Children and Families,Social Care,Third Party Payments,Fees - Level 4,520,03/08/2020,2008-00508,0.00,224.42,R,Alicia Kellett,No
Http://opendatacommunities.org/id/metropolitan-district-council/leeds,Leeds City Council,31/08/2020,Children and Families,Social Care,Third Party Payments,Services Rendered By Other Organisations,511,07/08/2020,2008-00509,0.00,788.40,R,REDACTED PERSONAL DATA,No
Http://opendatacommunities.org/id/metropolitan-district-council/leeds,Leeds City Council,31/08/2020,Children and Families,Social Care,Third Party Payments,Services Rendered By Other Organisations,511,07/08/2020,2008-00510,0.00,66.60,R,REDACTED PERSONAL DATA,No
Http://opendatacommunities.org/id/metropolitan-district-council/leeds,Leeds City Council,31/08/2020,Resources and Housing,Strategic Housing Partnership & Support,Supplies and Services,Other Hired and Contracted Services,265,25/08/2020,2008-00511,0.00,1811.40,R,Alison Read,No
Http://opendatacommunities.org/id/metropolitan-district-council/leeds,Leeds City Council,31/08/2020,Adults and Health,Services For Older People - 65 and Over,Third Party Payments,Home Care,568,17/08/2020,2008-00512,0.00,15.57,R,All Seasons Home Care,No
Http://opendatacommunities.org/id/metropolitan-district-council/leeds,Leeds City Council,31/08/2020,Children and Families,Social Care,Third Party Payments,Services Rendered By Other Organisations,511,05/08/2020,2008-00513,0.00,570.24,R,All Stars Childcare,No
Http://opendatacommunities.org/id/metropolitan-district-council/leeds,Leeds City Council,31/08/2020,Children and Families,Social Care,Third Party Payments,Services Rendered By Other Organisations,511,07/08/2020,2008-00514,0.00,9460.80,R,All Stars Childcare,No
Http://opendatacommunities.org/id/metropolitan-district-council/leeds,Leeds City Council,31/08/2020,Children and Families,Social Care,Third Party Payments,Services Rendered By Other Organisations,511,07/08/2020,2008-00515,0.00,455.40,R,All Stars Childcare,No
Http://opendatacommunities.org/id/metropolitan-district-council/leeds,Leeds City Council,31/08/2020,Children and Families,Social Care,Third Party Payments,Services Rendered By Other Organisations,511,07/08/2020,2008-00516,0.00,95.40,R,All Stars Childcare,No
Http://opendatacommunities.org/id/metropolitan-district-council/leeds,Leeds City Council,31/08/2020,Adults and Health,Services For Older People - 65 and Over,Third Party Payments,Nursing Home,570,17/08/2020,2008-00517,0.00,859.29,R,Allerton Avenue,No
Http://opendatacommunities.org/id/metropolitan-district-council/leeds,Leeds City Council as Accountable Body,31/08/2020,Social Services Pooled Budgets,Jcs For People With Learning Disabilitie,Third Party Payments,Sheltered Accommodation,569,19/08/2020,2008-00518,0.00,55373.51,R,Allerton Avenue,No
Http://opendatacommunities.org/id/metropolitan-district-council/leeds,Leeds City Council,31/08/2020,Strategic Accounts,Miscellaneous,Supplies and Services,Non-Recurring Grants,227,03/08/2020,2008-00519,0.00,300.00,R,Allerton Bywater Miners,No
Http://opendatacommunities.org/id/metropolitan-district-council/leeds,Leeds City Council,31/08/2020,Adults and Health,Services For Older People - 65 and Over,Third Party Payments,Nursing Care Dementia,574,19/08/2020,2008-00520,0.00,2320.36,R,ALLERTON PARK N H,No
Http://opendatacommunities.org/id/metropolitan-district-council/leeds,Leeds City Council,31/08/2020,Resources and Housing,Finance,Supplies and Services,Bank Charges,263,05/08/2020,2008-00521,0.00,32.77,R,ALLIANCE & LEICESTER COMMERCIAL BANK,No
Http://opendatacommunities.org/id/metropolitan-district-council/leeds,Leeds City Council,31/08/2020,Resources and Housing,Finance,Supplies and Services,Bank Charges,263,05/08/2020,2008-00522,0.00,100.14,R,ALLIANCE & LEICESTER COMMERCIAL BANK,No
Http://opendatacommunities.org/id/metropolitan-district-council/leeds,Leeds City Council,31/08/2020,Strategic Accounts,Miscellaneous,Supplies and Services,Non-Recurring Grants,227,17/08/2020,2008-00523,0.00,300.00,R,Alliance Boxing Club,No
Http://opendatacommunities.org/id/metropolitan-district-council/leeds,Leeds City Council,31/08/2020,Insurance,Insurance,Supplies and Services,Insurance Claims,248,10/08/2020,2008-00524,0.00,2182.50,R,Alliance Law Solicitors,No
Http://opendatacommunities.org/id/metropolitan-district-council/leeds,Leeds City Council,31/08/2020,Insurance,Insurance,Supplies and Services,Insurance Claims,248,11/08/2020,2008-00525,0.00,360.00,R,Alliance Law Solicitors,No
Http://opendatacommunities.org/id/metropolitan-district-council/leeds,Leeds City Council,31/08/2020,Insurance,Insurance,Supplies and Services,Insurance Claims,248,28/08/2020,2008-00526,0.00,3166.90,R,Allianz Insurance Plc,No
Http://opendatacommunities.org/id/metropolitan-district-council/leeds,Leeds City Council,31/08/2020,City Development,Highways,Capital,OTHER COSTS,7,03/08/2020,2008-00527,0.00,27341.98,C,ALLIED EXPLORATION & GEOTECHNICS LTD,No
Http://opendatacommunities.org/id/metropolitan-district-council/leeds,Leeds City Council,31/08/2020,City Development,Highways,Supplies and Services,Other Hired and Contracted Services,265,05/08/2020,2008-00528,0.00,281.25,R,ALLIED EXPLORATION & GEOTECHNICS LTD,No
Http://opendatacommunities.org/id/metropolitan-district-council/leeds,Leeds City Council,31/08/2020,City Development,Highways,Supplies and Services,Other Hired and Contracted Services,265,06/08/2020,2008-00529,0.00,6012.70,R,ALLIED EXPLORATION & GEOTECHNICS LTD,No
Http://opendatacommunities.org/id/metropolitan-district-council/leeds,Leeds City Council as Accountable Body,31/08/2020,Social Services Pooled Budgets,Jcs For People With Learning Disabilitie,Third Party Payments,Home Care,568,05/08/2020,2008-00530,0.00,212.01,R,Allied Healthcare,No
Http://opendatacommunities.org/id/metropolitan-district-council/leeds,Leeds City Council,31/08/2020,Adults and Health,Services For Older People - 65 and Over,Third Party Payments,Home Care,568,05/08/2020,2008-00531,0.00,778.40,R,Allied Healthcare,No
Http://opendatacommunities.org/id/metropolitan-district-council/leeds,Leeds City Council,31/08/2020,Adults and Health,Services For Older People - 65 and Over,Third Party Payments,Home Care,568,05/08/2020,2008-00532,0.00,2436.53,R,Allied Healthcare,No
Http://opendatacommunities.org/id/metropolitan-district-council/leeds,Leeds City Council,31/08/2020,Adults and Health,Services For Older People - 65 and Over,Third Party Payments,HCAIT Other,577,05/08/2020,2008-00533,0.00,55.85,R,Allied Healthcare,No
Http://opendatacommunities.org/id/metropolitan-district-council/leeds,Leeds City Council,31/08/2020,Adults and Health,Services For Older People - 65 and Over,Third Party Payments,Home Care,568,05/08/2020,2008-00534,0.00,11108.68,R,Allied Healthcare,No
Http://opendatacommunities.org/id/metropolitan-district-council/leeds,Leeds City Council,31/08/2020,Adults and Health,Services For Older People Under 65 P/Dis,Third Party Payments,Home Care,568,05/08/2020,2008-00535,0.00,1616.11,R,Allied Healthcare,No
Http://opendatacommunities.org/id/metropolitan-district-council/leeds,Leeds City Council,31/08/2020,Adults and Health,Services For Adults Under 65 Mental/Dis,Third Party Payments,Home Care,568,05/08/2020,2008-00536,0.00,572.81,R,Allied Healthcare,No
Http://opendatacommunities.org/id/metropolitan-district-council/leeds,Leeds City Council,31/08/2020,Adults and Health,Services For Older People - 65 and Over,Third Party Payments,Home Care,568,05/08/2020,2008-00537,0.00,11860.19,R,Allied Healthcare,No
Http://opendatacommunities.org/id/metropolitan-district-council/leeds,Leeds City Council,31/08/2020,Adults and Health,Services For Older People Under 65 P/Dis,Third Party Payments,Home Care,568,05/08/2020,2008-00538,0.00,1137.26,R,Allied Healthcare,No
Http://opendatacommunities.org/id/metropolitan-district-council/leeds,Leeds City Council,31/08/2020,Adults and Health,Services For Older People Under 65 P/Dis,Third Party Payments,HCAIT Other,577,05/08/2020,2008-00539,0.00,208.80,R,Allied Healthcare,No
Http://opendatacommunities.org/id/metropolitan-district-council/leeds,Leeds City Council,31/08/2020,Adults and Health,Other Generic Services,Third Party Payments,Home Care,568,07/08/2020,2008-00540,0.00,153.00,R,Allied Healthcare,No
Http://opendatacommunities.org/id/metropolitan-district-council/leeds,Leeds City Council,31/08/2020,Adults and Health,Other Adult Services,Third Party Payments,Home Care,568,12/08/2020,2008-00541,0.00,38025.00,R,Allied Healthcare,No
Http://opendatacommunities.org/id/metropolitan-district-council/leeds,Leeds City Council,31/08/2020,Adults and Health,Services For Older People - 65 and Over,Third Party Payments,Home Care,568,17/08/2020,2008-00542,0.00,2388.10,R,Allied Healthcare,No
Http://opendatacommunities.org/id/metropolitan-district-council/leeds,Leeds City Council as Accountable Body,31/08/2020,Social Services Pooled Budgets,Jcs For People With Learning Disabilitie,Third Party Payments,Sheltered Accommodation,569,17/08/2020,2008-00543,0.00,1340.56,R,Allied Healthcare,No
Http://opendatacommunities.org/id/metropolitan-district-council/leeds,Leeds City Council,31/08/2020,Adults and Health,Services For Adults Under 65 Mental/Dis,Third Party Payments,Home Care,568,19/08/2020,2008-00544,0.00,818.32,R,Allied Healthcare,No
Http://opendatacommunities.org/id/metropolitan-district-council/leeds,Leeds City Council,31/08/2020,Adults and Health,Services For Older People - 65 and Over,Third Party Payments,Home Care,568,19/08/2020,2008-00545,0.00,25003.43,R,Allied Healthcare,No
Http://opendatacommunities.org/id/metropolitan-district-council/leeds,Leeds City Council,31/08/2020,Adults and Health,Services For Older People - 65 and Over,Third Party Payments,HCAIT Other,577,19/08/2020,2008-00546,0.00,466.67,R,Allied Healthcare,No
Http://opendatacommunities.org/id/metropolitan-district-council/leeds,Leeds City Council,31/08/2020,Adults and Health,Services For Older People Under 65 P/Dis,Third Party Payments,Home Care,568,19/08/2020,2008-00547,0.00,4456.32,R,Allied Healthcare,No
Http://opendatacommunities.org/id/metropolitan-district-council/leeds,Leeds City Council,31/08/2020,Adults and Health,Other Generic Services,Third Party Payments,Home Care,568,24/08/2020,2008-00548,0.00,2325.60,R,Allied Healthcare,No
Http://opendatacommunities.org/id/metropolitan-district-council/leeds,Leeds City Council,31/08/2020,Adults and Health,Other Generic Services,Third Party Payments,Home Care,568,24/08/2020,2008-00549,0.00,4179.60,R,Allied Healthcare,No
Http://opendatacommunities.org/id/metropolitan-district-council/leeds,Leeds City Council,31/08/2020,Communities and Environment,Customer Access,Supplies and Services,Printing,215,27/08/2020,2008-00550,0.00,1549.64,R,Allied Publicity Services,No
Http://opendatacommunities.org/id/metropolitan-district-council/leeds,Leeds City Council,31/08/2020,Children and Families,Social Care,Third Party Payments,Services Rendered By Other Organisations,511,07/08/2020,2008-00551,0.00,753.36,R,REDACTED PERSONAL DATA,No
Http://opendatacommunities.org/id/metropolitan-district-council/leeds,Leeds City Council,31/08/2020,Adults and Health,Services For Older People Under 65 P/Dis,Supplies and Services,Operational Materials,205,28/08/2020,2008-00552,0.00,111.87,R,Allpay Limted,No
Http://opendatacommunities.org/id/metropolitan-district-council/leeds,Leeds City Council,31/08/2020,Resources and Housing,Finance,Supplies and Services,Bank Charges,263,28/08/2020,2008-00553,0.00,316.51,R,Allpay Limted,No
Http://opendatacommunities.org/id/metropolitan-district-council/leeds,Leeds City Council,31/08/2020,Resources and Housing,Finance,Supplies and Services,Bank Charges,263,28/08/2020,2008-00554,0.00,3108.24,R,Allpay Limted,No
Http://opendatacommunities.org/id/metropolitan-district-council/leeds,Leeds City Council,31/08/2020,Resources and Housing,Finance,Supplies and Services,Bank Charges,263,28/08/2020,2008-00555,0.00,10497.00,R,Allpay Limted,No
Http://opendatacommunities.org/id/metropolitan-district-council/leeds,Leeds City Council,31/08/2020,Strategic Landlord,Housing Management,Supplies and Services,Other Hired and Contracted Services,265,28/08/2020,2008-00556,0.00,10.24,R,Allpay Limted,No
Http://opendatacommunities.org/id/metropolitan-district-council/leeds,Leeds City Council,31/08/2020,Strategic Landlord,Housing Management,Supplies and Services,Other Hired and Contracted Services,265,28/08/2020,2008-00557,0.00,207.10,R,Allpay Limted,No
Http://opendatacommunities.org/id/metropolitan-district-council/leeds,Leeds City Council,31/08/2020,Strategic Landlord,Housing Management,Supplies and Services,Other Hired and Contracted Services,265,28/08/2020,2008-00558,0.00,0.58,R,Allpay Limted,No
Http://opendatacommunities.org/id/metropolitan-district-council/leeds,Leeds City Council,31/08/2020,Resources and Housing,Finance,Supplies and Services,Bank Charges,263,28/08/2020,2008-00559,0.00,126.79,R,Allpay Limted,No
Http://opendatacommunities.org/id/metropolitan-district-council/leeds,Leeds City Council,31/08/2020,Resources and Housing,Finance,Supplies and Services,Bank Charges,263,28/08/2020,2008-00560,0.00,2725.95,R,Allpay Limted,No
Http://opendatacommunities.org/id/metropolitan-district-council/leeds,Leeds City Council,31/08/2020,Resources and Housing,Finance,Supplies and Services,Bank Charges,263,28/08/2020,2008-00561,0.00,12.89,R,Allpay Limted,No
Http://opendatacommunities.org/id/metropolitan-district-council/leeds,Leeds City Council,31/08/2020,Children and Families,Social Care  ,Supplies and Services,Operational Furniture and Equipment,203,06/07/2020,2008-00562,0.00,5.62,R,Allsorts Discount Stor,Yes
Http://opendatacommunities.org/id/metropolitan-district-council/leeds,Leeds City Council,31/08/2020,Communities and Environment,Parks and Countryside,Transport,Fuel (Non LCC Supplies),321,07/08/2020,2008-00563,0.00,706.08,R,Allstar Business Solutions Ltd,No
Http://opendatacommunities.org/id/metropolitan-district-council/leeds,Leeds City Council,31/08/2020,Children and Families,Learning,Transport,Fuel (Non LCC Supplies),321,07/08/2020,2008-00564,0.00,60.23,R,Allstar Business Solutions Ltd,No
Http://opendatacommunities.org/id/metropolitan-district-council/leeds,Leeds City Council,31/08/2020,City Development,Highways,Transport,Fuel (Non LCC Supplies),321,07/08/2020,2008-00565,0.00,222.28,R,Allstar Business Solutions Ltd,No
Http://opendatacommunities.org/id/metropolitan-district-council/leeds,Leeds City Council,31/08/2020,Resources and Housing,Leeds Building Services,Transport,Fuel (Non LCC Supplies),321,12/08/2020,2008-00566,0.00,18.58,R,Allstar Business Solutions Ltd,No
Http://opendatacommunities.org/id/metropolitan-district-council/leeds,Leeds City Council,31/08/2020,Resources and Housing,Commercial Services,Transport,Tyres,322,17/08/2020,2008-00567,0.00,1671.49,R,Allstar Business Solutions Ltd,No
Http://opendatacommunities.org/id/metropolitan-district-council/leeds,Leeds City Council,31/08/2020,Resources and Housing,Commercial Services,Transport,Tyres,322,28/08/2020,2008-00568,0.00,1910.24,R,Allstar Business Solutions Ltd,No
Http://opendatacommunities.org/id/metropolitan-district-council/leeds,Leeds City Council,31/08/2020,Adults and Health,Services For Older People - 65 and Over,Third Party Payments,Nursing Home,570,17/08/2020,2008-00569,0.00,193.84,R,Alne Hall,No
Http://opendatacommunities.org/id/metropolitan-district-council/leeds,Leeds City Council,31/08/2020,Adults and Health,Services For Older People Under 65 P/Dis,Third Party Payments,Residential,580,19/08/2020,2008-00570,0.00,3534.24,R,Alne Hall,No
Http://opendatacommunities.org/id/metropolitan-district-council/leeds,Leeds City Council,31/08/2020,Children and Families,Social Care,Support Services,Legal Disbursements,411,04/08/2020,2008-00571,0.00,425.00,R,Alphabiolabs,No
Http://opendatacommunities.org/id/metropolitan-district-council/leeds,Leeds City Council,31/08/2020,Children and Families,Social Care,Support Services,Legal Disbursements,411,06/08/2020,2008-00572,0.00,754.00,R,Alphabiolabs,No
Http://opendatacommunities.org/id/metropolitan-district-council/leeds,Leeds City Council,31/08/2020,Children and Families,Social Care,Support Services,Legal Disbursements,411,07/08/2020,2008-00573,0.00,158.80,R,Alphabiolabs,No
Http://opendatacommunities.org/id/metropolitan-district-council/leeds,Leeds City Council,31/08/2020,Children and Families,Social Care,Third Party Payments,Section 17,551,10/08/2020,2008-00574,0.00,489.00,R,Alphabiolabs,No
Http://opendatacommunities.org/id/metropolitan-district-council/leeds,Leeds City Council,31/08/2020,Children and Families,Social Care,Support Services,Legal Disbursements,411,11/08/2020,2008-00575,0.00,70.00,R,Alphabiolabs,No
Http://opendatacommunities.org/id/metropolitan-district-council/leeds,Leeds City Council,31/08/2020,Children and Families,Social Care,Support Services,Legal Disbursements,411,11/08/2020,2008-00576,0.00,285.00,R,Alphabiolabs,No
Http://opendatacommunities.org/id/metropolitan-district-council/leeds,Leeds City Council,31/08/2020,Children and Families,Social Care,Support Services,Legal Disbursements,411,11/08/2020,2008-00577,0.00,162.50,R,Alphabiolabs,No
Http://opendatacommunities.org/id/metropolitan-district-council/leeds,Leeds City Council,31/08/2020,Children and Families,Social Care,Support Services,Legal Disbursements,411,11/08/2020,2008-00578,0.00,338.00,R,Alphabiolabs,No
Http://opendatacommunities.org/id/metropolitan-district-council/leeds,Leeds City Council,31/08/2020,Children and Families,Social Care,Third Party Payments,Section 17,551,12/08/2020,2008-00579,0.00,449.00,R,Alphabiolabs,No
Http://opendatacommunities.org/id/metropolitan-district-council/leeds,Leeds City Council,31/08/2020,Children and Families,Social Care,Support Services,Legal Disbursements,411,17/08/2020,2008-00580,0.00,156.67,R,Alphabiolabs,No
Http://opendatacommunities.org/id/metropolitan-district-council/leeds,Leeds City Council,31/08/2020,Children and Families,Social Care,Support Services,Legal Disbursements,411,19/08/2020,2008-00581,0.00,645.00,R,Alphabiolabs,No
Http://opendatacommunities.org/id/metropolitan-district-council/leeds,Leeds City Council,31/08/2020,Children and Families,Social Care,Support Services,Legal Disbursements,411,19/08/2020,2008-00582,0.00,112.25,R,Alphabiolabs,No
Http://opendatacommunities.org/id/metropolitan-district-council/leeds,Leeds City Council,31/08/2020,Children and Families,Social Care,Support Services,Legal Disbursements,411,21/08/2020,2008-00583,0.00,223.00,R,Alphabiolabs,No
Http://opendatacommunities.org/id/metropolitan-district-council/leeds,Leeds City Council,31/08/2020,Children and Families,Social Care,Support Services,Legal Disbursements,411,26/08/2020,2008-00584,0.00,211.00,R,Alphabiolabs,No
Http://opendatacommunities.org/id/metropolitan-district-council/leeds,Leeds City Council,31/08/2020,Children and Families,Social Care,Support Services,Legal Disbursements,411,26/08/2020,2008-00585,0.00,323.50,R,Alphabiolabs,No
Http://opendatacommunities.org/id/metropolitan-district-council/leeds,Leeds City Council,31/08/2020,Adults and Health,Services For Older People - 65 and Over,Third Party Payments,Nursing Care Dementia,574,19/08/2020,2008-00586,0.00,2946.20,R,Alt Park Nursing Home,No
Http://opendatacommunities.org/id/metropolitan-district-council/leeds,Leeds City Council,31/08/2020,Children and Families,Social Care,Third Party Payments,Section 17,551,24/08/2020,2008-00587,0.00,2932.56,R,Amalida Properties,No
Http://opendatacommunities.org/id/metropolitan-district-council/leeds,Leeds City Council,31/08/2020,Children and Families,Social Care,Third Party Payments,Contact,548,24/08/2020,2008-00588,0.00,37.00,R,REDACTED PERSONAL DATA,No
Http://opendatacommunities.org/id/metropolitan-district-council/leeds,Leeds City Council,31/08/2020,Children and Families,Social Care,Third Party Payments,Contact,548,28/08/2020,2008-00589,0.00,42.00,R,REDACTED PERSONAL DATA,No
Http://opendatacommunities.org/id/metropolitan-district-council/leeds,Leeds City Council,31/08/2020,Children and Families,Social Care,Third Party Payments,Services Rendered By Other Organisations,511,07/08/2020,2008-00590,0.00,578.16,R,REDACTED PERSONAL DATA,No
Http://opendatacommunities.org/id/metropolitan-district-council/leeds,Leeds City Council,31/08/2020,Children and Families,Social Care,Third Party Payments,Services Rendered By Other Organisations,511,07/08/2020,2008-00591,0.00,160.20,R,REDACTED PERSONAL DATA,No
Http://opendatacommunities.org/id/metropolitan-district-council/leeds,Leeds City Council,31/08/2020,Strategic Landlord,Property and Contracts,Support Services,Legal Disbursements,411,27/08/2020,2008-00592,0.00,1336.80,R,Amanda Cunliffe Solicitors,No
Http://opendatacommunities.org/id/metropolitan-district-council/leeds,Leeds City Council,31/08/2020,Children and Families,Social Care,Third Party Payments,Services Rendered By Other Organisations,511,05/08/2020,2008-00593,0.00,190.08,R,REDACTED PERSONAL DATA,No
Http://opendatacommunities.org/id/metropolitan-district-council/leeds,Leeds City Council,31/08/2020,Children and Families,Social Care,Third Party Payments,Services Rendered By Other Organisations,511,07/08/2020,2008-00594,0.00,31.53,R,REDACTED PERSONAL DATA,No
Http://opendatacommunities.org/id/metropolitan-district-council/leeds,Leeds City Council,31/08/2020,Children and Families,Social Care,Third Party Payments,Services Rendered By Other Organisations,511,05/08/2020,2008-00595,0.00,190.08,R,REDACTED PERSONAL DATA,No
Http://opendatacommunities.org/id/metropolitan-district-council/leeds,Leeds City Council,31/08/2020,Children and Families,Social Care,Third Party Payments,Services Rendered By Other Organisations,511,07/08/2020,2008-00596,0.00,1787.04,R,REDACTED PERSONAL DATA,No
Http://opendatacommunities.org/id/metropolitan-district-council/leeds,Leeds City Council,31/08/2020,Children and Families,Social Care,Third Party Payments,Services Rendered By Other Organisations,511,07/08/2020,2008-00597,0.00,206.40,R,REDACTED PERSONAL DATA,No
Http://opendatacommunities.org/id/metropolitan-district-council/leeds,Leeds City Council,31/08/2020,Communities and Environment,Parks and Countryside  ,Supplies and Services,Schools related grant expenditure,299,21/07/2020,2008-00598,0.00,1515.00,R,Amari Leeds,Yes
Http://opendatacommunities.org/id/metropolitan-district-council/leeds,Leeds City Council,31/08/2020,Children and Families,Social Care,Third Party Payments,Services Rendered By Other Organisations,511,05/08/2020,2008-00599,0.00,2471.04,R,Amazing Grace Early Years Childcare,No
Http://opendatacommunities.org/id/metropolitan-district-council/leeds,Leeds City Council,31/08/2020,Children and Families,Social Care,Third Party Payments,Services Rendered By Other Organisations,511,07/08/2020,2008-00600,0.00,4415.04,R,Amazing Grace Early Years Childcare,No
Http://opendatacommunities.org/id/metropolitan-district-council/leeds,Leeds City Council,31/08/2020,Children and Families,Social Care  ,Supplies and Services,Teaching Materials,202,09/07/2020,2008-00601,0.00,-7.99,R,Amazon Prime,Yes
Http://opendatacommunities.org/id/metropolitan-district-council/leeds,Leeds City Council,31/08/2020,Resources and Housing,Strategy and Improvement  ,Supplies and Services,Postages,212,16/07/2020,2008-00602,0.00,-7.99,R,Amazon Prime Amzn.Co.Uk/P,Yes
Http://opendatacommunities.org/id/metropolitan-district-council/leeds,Leeds City Council,31/08/2020,Communities and Environment,Parks and Countryside  ,Supplies and Services,Postages,212,25/07/2020,2008-00603,0.00,7.99,R,Amazon Prime*3g0ae8lg5,Yes
Http://opendatacommunities.org/id/metropolitan-district-council/leeds,Leeds City Council,31/08/2020,Children and Families,Social Care  ,Supplies and Services,Office Consumables,210,19/07/2020,2008-00604,0.00,7.99,R,Amazon Prime*3z7qu41g5,Yes
Http://opendatacommunities.org/id/metropolitan-district-council/leeds,Leeds City Council,31/08/2020,Resources and Housing,Commercial Services  ,Supplies and Services,Memberships,226,05/07/2020,2008-00605,0.00,7.99,R,Amazon Prime*at6xm28k5,Yes
Http://opendatacommunities.org/id/metropolitan-district-council/leeds,Leeds City Council,31/08/2020,Resources and Housing,Strategy and Improvement  ,Supplies and Services,Postages,212,13/07/2020,2008-00606,0.00,7.99,R,Amazon Prime*d525o3wb5 Am,Yes
Http://opendatacommunities.org/id/metropolitan-district-council/leeds,Leeds City Council,31/08/2020,Children and Families,Social Care  ,Supplies and Services,Office Consumables,210,22/07/2020,2008-00607,0.00,7.99,R,Amazon Prime*d906u1z85 Am,Yes
Http://opendatacommunities.org/id/metropolitan-district-council/leeds,Leeds City Council,31/08/2020,Adults and Health,Services For Adults Under 65 Learn/Dis  ,Supplies and Services,Office Consumables,210,10/07/2020,2008-00608,0.00,7.99,R,Amazon Prime*d95cg7k55 Am,Yes
Http://opendatacommunities.org/id/metropolitan-district-council/leeds,Leeds City Council,31/08/2020,Communities and Environment,Parks and Countryside  ,Supplies and Services,Operational Materials,205,23/07/2020,2008-00609,0.00,7.99,R,Amazon Prime*da4bn1yq5,Yes
Http://opendatacommunities.org/id/metropolitan-district-council/leeds,Leeds City Council,31/08/2020,City Development,Libraries  Arts & Heritage  ,Supplies and Services,Operational Materials,205,09/07/2020,2008-00610,0.00,7.99,R,Amazon Prime*dw7jg6bo5,Yes
Http://opendatacommunities.org/id/metropolitan-district-council/leeds,Leeds City Council,31/08/2020,Communities and Environment,Community Safety  ,Supplies and Services,Office Consumables,210,16/07/2020,2008-00611,0.00,7.99,R,Amazon Prime*ed1b928y5 Am,Yes
Http://opendatacommunities.org/id/metropolitan-district-council/leeds,Leeds City Council,31/08/2020,Adults and Health,Services For Adults Under 65 Mental/Dis  ,Supplies and Services,Clothing & Uniforms,241,13/07/2020,2008-00612,0.00,7.99,R,Amazon Prime*f20gx6sf5,Yes
Http://opendatacommunities.org/id/metropolitan-district-council/leeds,Leeds City Council,31/08/2020,Communities and Environment,Customer Access  ,Supplies and Services,Memberships,226,08/07/2020,2008-00613,0.00,7.99,R,Amazon Prime*fg7bs1465 Am,Yes
Http://opendatacommunities.org/id/metropolitan-district-council/leeds,Leeds City Council,31/08/2020,Communities and Environment,Parks and Countryside  ,Supplies and Services,Schools related grant expenditure,299,30/07/2020,2008-00614,0.00,7.99,R,Amazon Prime*iw67t7ha5,Yes
Http://opendatacommunities.org/id/metropolitan-district-council/leeds,Leeds City Council,31/08/2020,Resources and Housing,Commercial Services  ,Supplies and Services,Operational Furniture and Equipment,203,27/07/2020,2008-00615,0.00,7.99,R,Amazon Prime*mc1yy89y5,Yes
Http://opendatacommunities.org/id/metropolitan-district-council/leeds,Leeds City Council,31/08/2020,Children and Families,Social Care  ,Supplies and Services,Teaching Materials,202,13/07/2020,2008-00616,0.00,7.99,R,Amazon Prime*uf9ga9kx5,Yes
Http://opendatacommunities.org/id/metropolitan-district-council/leeds,Leeds City Council,31/08/2020,Resources and Housing,Strategic Housing Partnership & Support  ,Supplies and Services,Other Hired and Contracted Services,265,27/07/2020,2008-00617,0.00,6.66,R,Amazon Prime*vm5rx8025 Am,Yes
Http://opendatacommunities.org/id/metropolitan-district-council/leeds,Leeds City Council,31/08/2020,Resources and Housing,Human Resources  ,Employees,Best Value Training,70,28/07/2020,2008-00618,0.00,7.99,R,Amazon Prime*vt46f07d5 Am,Yes
Http://opendatacommunities.org/id/metropolitan-district-council/leeds,Leeds City Council,31/08/2020,Communities and Environment,Customer Access  ,Supplies and Services,Office Furniture & Equipment,201,19/07/2020,2008-00619,0.00,7.99,R,Amazon Prime*x391z9s05,Yes
Http://opendatacommunities.org/id/metropolitan-district-council/leeds,Leeds City Council,31/08/2020,Children and Families,Social Care  ,Supplies and Services,Teaching Materials,202,03/07/2020,2008-00620,0.00,7.99,R,Amazon Prime*xi4hv1ak5,Yes
Http://opendatacommunities.org/id/metropolitan-district-council/leeds,Leeds City Council,31/08/2020,City Development,Libraries  Arts & Heritage  ,Supplies and Services,Operational Materials,205,14/07/2020,2008-00621,0.00,7.99,R,Amazon Prime*xr5xk6mj5,Yes
Http://opendatacommunities.org/id/metropolitan-district-council/leeds,Leeds City Council,31/08/2020,City Development,Libraries  Arts & Heritage  ,Supplies and Services,Memberships,226,21/07/2020,2008-00622,0.00,7.99,R,Amazon Prime*yd7218k25 Am,Yes
Http://opendatacommunities.org/id/metropolitan-district-council/leeds,Leeds City Council,31/08/2020,Children and Families,Social Care  ,Supplies and Services,Teaching Materials,202,16/07/2020,2008-00623,0.00,13.98,R,Amazon.Co.Uk*2o3ev2k95 Am,Yes
Http://opendatacommunities.org/id/metropolitan-district-council/leeds,Leeds City Council,31/08/2020,Communities and Environment,Customer Access  ,Supplies and Services,Office Consumables,210,22/07/2020,2008-00624,0.00,81.85,R,Amazon.Co.Uk*3m4kw5e45 Am,Yes
Http://opendatacommunities.org/id/metropolitan-district-council/leeds,Leeds City Council,31/08/2020,Children and Families,Social Care  ,Supplies and Services,Office Consumables,210,14/07/2020,2008-00625,0.00,22.71,R,Amazon.Co.Uk*441ug3ab5,Yes
Http://opendatacommunities.org/id/metropolitan-district-council/leeds,Leeds City Council,31/08/2020,City Development,Libraries  Arts & Heritage  ,Supplies and Services,Operational Materials,205,22/07/2020,2008-00626,0.00,43.74,R,Amazon.Co.Uk*516gg25k5,Yes
Http://opendatacommunities.org/id/metropolitan-district-council/leeds,Leeds City Council,31/08/2020,Children and Families,Partnerships & Health  ,Supplies and Services,Hospitality,255,21/07/2020,2008-00627,0.00,20.00,R,Amazon.Co.Uk*6o8n155z5 Am,Yes
Http://opendatacommunities.org/id/metropolitan-district-council/leeds,Leeds City Council,31/08/2020,Communities and Environment,Customer Access  ,Supplies and Services,Office Consumables,210,21/07/2020,2008-00628,0.00,5.94,R,Amazon.Co.Uk*6v5rq4uf5,Yes
Http://opendatacommunities.org/id/metropolitan-district-council/leeds,Leeds City Council,31/08/2020,Communities and Environment,Customer Access  ,Supplies and Services,Office Consumables,210,23/07/2020,2008-00629,0.00,16.99,R,Amazon.Co.Uk*7a47f13h5,Yes
Http://opendatacommunities.org/id/metropolitan-district-council/leeds,Leeds City Council,31/08/2020,Children and Families,Social Care  ,Supplies and Services,Operational Furniture and Equipment,203,21/07/2020,2008-00630,0.00,50.00,R,Amazon.Co.Uk*7s3d69v95,Yes
Http://opendatacommunities.org/id/metropolitan-district-council/leeds,Leeds City Council,31/08/2020,Children and Families,Social Care  ,Supplies and Services,General Amenity For Clients/Residents,285,13/07/2020,2008-00631,0.00,30.05,R,Amazon.Co.Uk*8609w7o25 Am,Yes
Http://opendatacommunities.org/id/metropolitan-district-council/leeds,Leeds City Council,31/08/2020,Children and Families,Social Care  ,Third Party Payments,Section 17,551,29/06/2020,2008-00632,0.00,21.99,R,Amazon.Co.Uk*8886j6hj5 Am,Yes
Http://opendatacommunities.org/id/metropolitan-district-council/leeds,Leeds City Council,31/08/2020,Communities and Environment,Customer Access  ,Supplies and Services,Computer Software & Equipment,214,14/07/2020,2008-00633,0.00,44.99,R,Amazon.Co.Uk*b47xq9i15 Am,Yes
Http://opendatacommunities.org/id/metropolitan-district-council/leeds,Leeds City Council,31/08/2020,Children and Families,Social Care  ,Premises,Furniture and Fittings,195,09/07/2020,2008-00634,0.00,9.98,R,Amazon.Co.Uk*b56co8uy5,Yes
Http://opendatacommunities.org/id/metropolitan-district-council/leeds,Leeds City Council,31/08/2020,City Development,Recreation  ,Supplies and Services,Office Consumables,210,30/07/2020,2008-00635,0.00,70.00,R,Amazon.Co.Uk*b99ys77i5,Yes
Http://opendatacommunities.org/id/metropolitan-district-council/leeds,Leeds City Council,31/08/2020,Children and Families,Social Care  ,Third Party Payments,Placement Support,550,30/06/2020,2008-00636,0.00,49.99,R,Amazon.Co.Uk*bk6oj00o5 Am,Yes
Http://opendatacommunities.org/id/metropolitan-district-council/leeds,Leeds City Council,31/08/2020,Children and Families,Partnerships & Health  ,Supplies and Services,Hospitality,255,02/07/2020,2008-00637,0.00,30.00,R,Amazon.Co.Uk*bm6kw9315,Yes
Http://opendatacommunities.org/id/metropolitan-district-council/leeds,Leeds City Council,31/08/2020,City Development,Recreation  ,Supplies and Services,Operational Furniture and Equipment,203,15/07/2020,2008-00638,0.00,41.91,R,Amazon.Co.Uk*by5sf8q35,Yes
Http://opendatacommunities.org/id/metropolitan-district-council/leeds,Leeds City Council,31/08/2020,Resources and Housing,Finance  ,Supplies and Services,Office Furniture & Equipment,201,10/07/2020,2008-00639,0.00,33.32,R,Amazon.Co.Uk*d06fg1ow5,Yes
Http://opendatacommunities.org/id/metropolitan-district-council/leeds,Leeds City Council,31/08/2020,Resources and Housing,Shared Services  ,Supplies and Services,Office Consumables,210,07/07/2020,2008-00640,0.00,20.00,R,Amazon.Co.Uk*d484w4rv5,Yes
Http://opendatacommunities.org/id/metropolitan-district-council/leeds,Leeds City Council,31/08/2020,City Development,Markets & City Centre Management  ,Premises,General Maintenance,104,26/07/2020,2008-00641,0.00,70.30,R,Amazon.Co.Uk*d61s84kr5 Am,Yes
Http://opendatacommunities.org/id/metropolitan-district-council/leeds,Leeds City Council,31/08/2020,Children and Families,Social Care  ,Premises,Cleaning Maintenance & Toiletries,127,23/07/2020,2008-00642,0.00,33.06,R,Amazon.Co.Uk*dy4hs1kk5,Yes
Http://opendatacommunities.org/id/metropolitan-district-council/leeds,Leeds City Council,31/08/2020,Children and Families,Social Care  ,Premises,Cleaning Maintenance & Toiletries,127,02/07/2020,2008-00643,0.00,13.11,R,Amazon.Co.Uk*e02zl3tb5,Yes
Http://opendatacommunities.org/id/metropolitan-district-council/leeds,Leeds City Council,31/08/2020,Children and Families,Social Care  ,Supplies and Services,Teaching Materials,202,08/07/2020,2008-00644,0.00,39.24,R,Amazon.Co.Uk*g95ct4t35,Yes
Http://opendatacommunities.org/id/metropolitan-district-council/leeds,Leeds City Council,31/08/2020,Communities and Environment,Parks and Countryside  ,Supplies and Services,Schools related grant expenditure,299,01/07/2020,2008-00645,0.00,10.08,R,Amazon.Co.Uk*gv8qc9sj5,Yes
Http://opendatacommunities.org/id/metropolitan-district-council/leeds,Leeds City Council,31/08/2020,Children and Families,Social Care  ,Transfer Payments,Payments To Residents,622,29/06/2020,2008-00646,0.00,24.99,R,Amazon.Co.Uk*h044s1dy5 Am,Yes
Http://opendatacommunities.org/id/metropolitan-district-council/leeds,Leeds City Council,31/08/2020,City Development,Markets & City Centre Management  ,Premises,General Maintenance,104,22/07/2020,2008-00647,0.00,14.58,R,Amazon.Co.Uk*hy1fe6gy5,Yes
Http://opendatacommunities.org/id/metropolitan-district-council/leeds,Leeds City Council,31/08/2020,Children and Families,Partnerships & Health  ,Supplies and Services,Office Furniture & Equipment,201,05/07/2020,2008-00648,0.00,15.82,R,Amazon.Co.Uk*i54lv60s5,Yes
Http://opendatacommunities.org/id/metropolitan-district-council/leeds,Leeds City Council,31/08/2020,Children and Families,Social Care  ,Supplies and Services,Bedding & Linen,222,07/07/2020,2008-00649,0.00,20.00,R,Amazon.Co.Uk*i67q08qq5,Yes
Http://opendatacommunities.org/id/metropolitan-district-council/leeds,Leeds City Council,31/08/2020,Children and Families,Social Care  ,Supplies and Services,General Amenity For Clients/Residents,285,22/07/2020,2008-00650,0.00,14.56,R,Amazon.Co.Uk*ib9ur7pr5,Yes
Http://opendatacommunities.org/id/metropolitan-district-council/leeds,Leeds City Council,31/08/2020,Communities and Environment,Customer Access  ,Supplies and Services,Office Consumables,210,25/07/2020,2008-00651,0.00,33.98,R,Amazon.Co.Uk*im1j21nm5 Am,Yes
Http://opendatacommunities.org/id/metropolitan-district-council/leeds,Leeds City Council,31/08/2020,Children and Families,Partnerships & Health  ,Supplies and Services,Hospitality,255,14/07/2020,2008-00652,0.00,20.00,R,Amazon.Co.Uk*io74a2l75 Am,Yes
Http://opendatacommunities.org/id/metropolitan-district-council/leeds,Leeds City Council,31/08/2020,Communities and Environment,Parks and Countryside  ,Supplies and Services,Schools related grant expenditure,299,06/07/2020,2008-00653,0.00,9.28,R,Amazon.Co.Uk*j01pi0o75,Yes
Http://opendatacommunities.org/id/metropolitan-district-council/leeds,Leeds City Council,31/08/2020,Children and Families,Social Care  ,Supplies and Services,Teaching Furniture & Equipment,207,07/07/2020,2008-00654,0.00,10.77,R,Amazon.Co.Uk*j08106xf5,Yes
Http://opendatacommunities.org/id/metropolitan-district-council/leeds,Leeds City Council,31/08/2020,Communities and Environment,Parks and Countryside  ,Supplies and Services,Schools related grant expenditure,299,22/07/2020,2008-00655,0.00,239.00,R,Amazon.Co.Uk*j391h5zt5,Yes
Http://opendatacommunities.org/id/metropolitan-district-council/leeds,Leeds City Council,31/08/2020,Children and Families,Social Care  ,Supplies and Services,Teaching Furniture & Equipment,207,09/07/2020,2008-00656,0.00,29.35,R,Amazon.Co.Uk*jg3tt8li5,Yes
Http://opendatacommunities.org/id/metropolitan-district-council/leeds,Leeds City Council,31/08/2020,Children and Families,Social Care  ,Supplies and Services,Teaching Furniture & Equipment,207,04/07/2020,2008-00657,0.00,10.20,R,Amazon.Co.Uk*jh3jb2fs5,Yes
Http://opendatacommunities.org/id/metropolitan-district-council/leeds,Leeds City Council,31/08/2020,Children and Families,Social Care  ,Supplies and Services,Teaching Furniture & Equipment,207,06/07/2020,2008-00658,0.00,37.43,R,Amazon.Co.Uk*km4bd21b5 Am,Yes
Http://opendatacommunities.org/id/metropolitan-district-council/leeds,Leeds City Council,31/08/2020,Children and Families,Social Care  ,Supplies and Services,Office Consumables,210,21/07/2020,2008-00659,0.00,10.72,R,Amazon.Co.Uk*lc6pe4n85,Yes
Http://opendatacommunities.org/id/metropolitan-district-council/leeds,Leeds City Council,31/08/2020,Adults and Health,Services For Older People - 65 and Over  ,Supplies and Services,Office Furniture & Equipment,201,12/07/2020,2008-00660,0.00,26.88,R,Amazon.Co.Uk*lc6xn4fj5,Yes
Http://opendatacommunities.org/id/metropolitan-district-council/leeds,Leeds City Council,31/08/2020,Children and Families,Learning  ,Supplies and Services,Office Consumables,210,04/07/2020,2008-00661,0.00,62.31,R,Amazon.Co.Uk*lm5vb1ri5 Am,Yes
Http://opendatacommunities.org/id/metropolitan-district-council/leeds,Leeds City Council,31/08/2020,Children and Families,Social Care  ,Supplies and Services,Teaching Materials,202,02/07/2020,2008-00662,0.00,22.49,R,Amazon.Co.Uk*lr4jv70n5 Am,Yes
Http://opendatacommunities.org/id/metropolitan-district-council/leeds,Leeds City Council,31/08/2020,Resources and Housing,Commercial Services  ,Premises,Maintenance Of Buildings,101,28/07/2020,2008-00663,0.00,19.08,R,Amazon.Co.Uk*mp8el1q34,Yes
Http://opendatacommunities.org/id/metropolitan-district-council/leeds,Leeds City Council,31/08/2020,Resources and Housing,Commercial Services  ,Supplies and Services,Computer Software & Equipment,214,15/07/2020,2008-00664,0.00,5.79,R,Amazon.Co.Uk*n26nq90j5,Yes
Http://opendatacommunities.org/id/metropolitan-district-council/leeds,Leeds City Council,31/08/2020,Communities and Environment,Customer Access  ,Supplies and Services,Office Consumables,210,21/07/2020,2008-00665,0.00,36.78,R,Amazon.Co.Uk*nb3sl3o55,Yes
Http://opendatacommunities.org/id/metropolitan-district-council/leeds,Leeds City Council,31/08/2020,Children and Families,Social Care  ,Supplies and Services,Office Consumables,210,03/07/2020,2008-00666,0.00,26.06,R,Amazon.Co.Uk*nk0x60io5,Yes
Http://opendatacommunities.org/id/metropolitan-district-council/leeds,Leeds City Council,31/08/2020,City Development,Markets & City Centre Management  ,Premises,General Maintenance,104,16/07/2020,2008-00667,0.00,9.32,R,Amazon.Co.Uk*pd14f6ha5,Yes
Http://opendatacommunities.org/id/metropolitan-district-council/leeds,Leeds City Council,31/08/2020,Children and Families,Social Care  ,Supplies and Services,Office Consumables,210,19/07/2020,2008-00668,0.00,26.59,R,Amazon.Co.Uk*pu01l6625,Yes
Http://opendatacommunities.org/id/metropolitan-district-council/leeds,Leeds City Council,31/08/2020,Children and Families,Social Care  ,Supplies and Services,Teaching Materials,202,29/07/2020,2008-00669,0.00,8.98,R,Amazon.Co.Uk*q93t728r5 Am,Yes
Http://opendatacommunities.org/id/metropolitan-district-council/leeds,Leeds City Council,31/08/2020,Children and Families,Social Care  ,Supplies and Services,Operational Furniture and Equipment,203,07/07/2020,2008-00670,0.00,25.00,R,Amazon.Co.Uk*qc2lu5pu5,Yes
Http://opendatacommunities.org/id/metropolitan-district-council/leeds,Leeds City Council,31/08/2020,City Development,Markets & City Centre Management  ,Premises,General Maintenance,104,24/07/2020,2008-00671,0.00,8.08,R,Amazon.Co.Uk*qd8ut0uw5,Yes
Http://opendatacommunities.org/id/metropolitan-district-council/leeds,Leeds City Council,31/08/2020,Children and Families,Social Care  ,Supplies and Services,General Amenity For Clients/Residents,285,13/07/2020,2008-00672,0.00,40.83,R,Amazon.Co.Uk*rc0s73mp5 Am,Yes
Http://opendatacommunities.org/id/metropolitan-district-council/leeds,Leeds City Council,31/08/2020,Resources and Housing,Strategic Housing Partnership & Support  ,Supplies and Services,Operational Materials,205,30/07/2020,2008-00673,0.00,66.67,R,Amazon.Co.Uk*vm8s87pz5,Yes
Http://opendatacommunities.org/id/metropolitan-district-council/leeds,Leeds City Council,31/08/2020,Children and Families,Social Care  ,Supplies and Services,Teaching Materials,202,30/06/2020,2008-00674,0.00,29.46,R,Amazon.Co.Uk*yw4239fv5 Am,Yes
Http://opendatacommunities.org/id/metropolitan-district-council/leeds,Leeds City Council,31/08/2020,Adults and Health,Assessment and Care Management  ,Supplies and Services,Other Hired and Contracted Services,265,15/07/2020,2008-00675,0.00,3.60,R,Amber Cars,Yes
Http://opendatacommunities.org/id/metropolitan-district-council/leeds,Leeds City Council,31/08/2020,Resources and Housing,Strategic Housing Partnership & Support  ,Transport,Public Transport Expenses,310,20/07/2020,2008-00676,0.00,8.10,R,Amber Cars,Yes
Http://opendatacommunities.org/id/metropolitan-district-council/leeds,Leeds City Council,31/08/2020,Children and Families,Social Care  ,Transport,Public Transport Expenses,310,22/07/2020,2008-00677,0.00,11.50,R,Amber Cars,Yes
Http://opendatacommunities.org/id/metropolitan-district-council/leeds,Leeds City Council,31/08/2020,Adults and Health,Services For Older People - 65 and Over,Transport,Public Transport Expenses,310,04/08/2020,2008-00678,0.00,37.30,R,Amber Cars,No
Http://opendatacommunities.org/id/metropolitan-district-council/leeds,Leeds City Council,31/08/2020,Adults and Health,Services For Older People - 65 and Over,Transport,Public Transport Expenses,310,04/08/2020,2008-00679,0.00,15.00,R,Amber Cars,No
Http://opendatacommunities.org/id/metropolitan-district-council/leeds,Leeds City Council,31/08/2020,Resources and Housing,Commercial Services,Transport,Private Hire,360,06/08/2020,2008-00680,0.00,150.00,R,Amber Cars,No
Http://opendatacommunities.org/id/metropolitan-district-council/leeds,Leeds City Council,31/08/2020,Resources and Housing,Commercial Services,Transport,Private Hire,360,20/08/2020,2008-00681,0.00,666.87,R,Amber Cars,No
Http://opendatacommunities.org/id/metropolitan-district-council/leeds,Leeds City Council,31/08/2020,Resources and Housing,Commercial Services,Transport,Private Hire,360,20/08/2020,2008-00682,0.00,3734.48,R,Amber Cars,No
Http://opendatacommunities.org/id/metropolitan-district-council/leeds,Leeds City Council,31/08/2020,Children and Families,Social Care,Support Services,Internal charge from Resources,487,28/08/2020,2008-00683,0.00,-31.50,R,Amber Cars,No
Http://opendatacommunities.org/id/metropolitan-district-council/leeds,Leeds City Council,31/08/2020,Children and Families,Social Care,Support Services,Internal charge from Resources,487,28/08/2020,2008-00684,0.00,93.50,R,Amber Cars,No
Http://opendatacommunities.org/id/metropolitan-district-council/leeds,Leeds City Council,31/08/2020,Children and Families,Social Care,Support Services,Internal charge from Resources,487,28/08/2020,2008-00685,0.00,286.80,R,Amber Cars,No
Http://opendatacommunities.org/id/metropolitan-district-council/leeds,Leeds City Council,31/08/2020,Children and Families,Social Care,Support Services,Internal charge from Resources,487,28/08/2020,2008-00686,0.00,282.72,R,Amber Cars,No
Http://opendatacommunities.org/id/metropolitan-district-council/leeds,Leeds City Council,31/08/2020,Communities and Environment,Customer Access,Supplies and Services,Bought In Professional Services,277,13/08/2020,2008-00687,0.00,10.00,R,AME-IT INTERPRETING LTD,No
Http://opendatacommunities.org/id/metropolitan-district-council/leeds,Leeds City Council,31/08/2020,Communities and Environment,Customer Access,Supplies and Services,Bought In Professional Services,277,13/08/2020,2008-00688,0.00,9.00,R,AME-IT INTERPRETING LTD,No
Http://opendatacommunities.org/id/metropolitan-district-council/leeds,Leeds City Council,31/08/2020,Communities and Environment,Customer Access,Supplies and Services,Bought In Professional Services,277,19/08/2020,2008-00689,0.00,10.00,R,AME-IT INTERPRETING LTD,No
Http://opendatacommunities.org/id/metropolitan-district-council/leeds,Leeds City Council,31/08/2020,Communities and Environment,Customer Access,Supplies and Services,Bought In Professional Services,277,19/08/2020,2008-00690,0.00,52.80,R,AME-IT INTERPRETING LTD,No
Http://opendatacommunities.org/id/metropolitan-district-council/leeds,Leeds City Council,31/08/2020,Children and Families,Social Care,Third Party Payments,Services Rendered By Other Organisations,511,13/08/2020,2008-00691,0.00,396.00,R,REDACTED PERSONAL DATA,No
Http://opendatacommunities.org/id/metropolitan-district-council/leeds,Leeds City Council,31/08/2020,Children and Families,Social Care,Third Party Payments,Services Rendered By Other Organisations,511,07/08/2020,2008-00692,0.00,578.16,R,REDACTED PERSONAL DATA,No
Http://opendatacommunities.org/id/metropolitan-district-council/leeds,Leeds City Council,31/08/2020,Adults and Health,Services For Adults Under 65 Mental/Dis,Third Party Payments,Fees - Level 4,520,24/08/2020,2008-00693,0.00,175.00,R,Amiable Medical Services Limited,No
Http://opendatacommunities.org/id/metropolitan-district-council/leeds,Leeds City Council,31/08/2020,Adults and Health,Services For Adults Under 65 Mental/Dis,Third Party Payments,Fees - Level 4,520,24/08/2020,2008-00694,0.00,175.00,R,Amiable Medical Services Limited,No
Http://opendatacommunities.org/id/metropolitan-district-council/leeds,Leeds City Council,31/08/2020,Adults and Health,Services For Adults Under 65 Mental/Dis,Third Party Payments,Fees - Level 4,520,24/08/2020,2008-00695,0.00,175.00,R,Amiable Medical Services Limited,No
Http://opendatacommunities.org/id/metropolitan-district-council/leeds,Leeds City Council,31/08/2020,Adults and Health,Services For Adults Under 65 Mental/Dis,Third Party Payments,Fees - Level 4,520,24/08/2020,2008-00696,0.00,175.00,R,Amiable Medical Services Limited,No
Http://opendatacommunities.org/id/metropolitan-district-council/leeds,Leeds City Council,31/08/2020,Adults and Health,Services For Adults Under 65 Mental/Dis,Third Party Payments,Fees - Level 4,520,28/08/2020,2008-00697,0.00,175.00,R,Amiable Medical Services Limited,No
Http://opendatacommunities.org/id/metropolitan-district-council/leeds,Leeds City Council,31/08/2020,Adults and Health,Services For Adults Under 65 Mental/Dis,Third Party Payments,Fees - Level 4,520,28/08/2020,2008-00698,0.00,175.00,R,Amiable Medical Services Limited,No
Http://opendatacommunities.org/id/metropolitan-district-council/leeds,Leeds City Council,31/08/2020,Adults and Health,Services For Adults Under 65 Mental/Dis,Third Party Payments,Fees - Level 4,520,28/08/2020,2008-00699,0.00,175.00,R,Amiable Medical Services Limited,No
Http://opendatacommunities.org/id/metropolitan-district-council/leeds,Leeds City Council,31/08/2020,Adults and Health,Assessment and Care Management,Supplies and Services,Bought In Professional Services,277,18/08/2020,2008-00700,0.00,11.00,R,REDACTED PERSONAL DATA,No
Http://opendatacommunities.org/id/metropolitan-district-council/leeds,Leeds City Council,31/08/2020,Strategic Landlord,Housing Management,Premises,Solid Fuel,121,19/08/2020,2008-00701,0.00,2448.39,R,AMP Biomass Fuel Ltd,No
Http://opendatacommunities.org/id/metropolitan-district-council/leeds,Leeds City Council,31/08/2020,Communities and Environment,Parks and Countryside,Supplies and Services,Other Hired and Contracted Services,265,19/08/2020,2008-00702,0.00,145.00,R,Amtec Engineering Ltd,No
Http://opendatacommunities.org/id/metropolitan-district-council/leeds,Leeds City Council as Accountable Body,31/08/2020,Social Services Pooled Budgets,Jcs For People With Learning Disabilitie,Third Party Payments,Day Centre,564,28/08/2020,2008-00703,0.00,532.00,R,AMVALE MEDICAL TRANSPORT LTD,No
Http://opendatacommunities.org/id/metropolitan-district-council/leeds,Leeds City Council,31/08/2020,Children and Families,Social Care,Third Party Payments,Services Rendered By Other Organisations,511,07/08/2020,2008-00704,0.00,1261.44,R,REDACTED PERSONAL DATA,No
Http://opendatacommunities.org/id/metropolitan-district-council/leeds,Leeds City Council,31/08/2020,Children and Families,Social Care,Third Party Payments,Services Rendered By Other Organisations,511,07/08/2020,2008-00705,0.00,735.84,R,REDACTED PERSONAL DATA,No
Http://opendatacommunities.org/id/metropolitan-district-council/leeds,Leeds City Council,31/08/2020,Children and Families,Social Care,Third Party Payments,Services Rendered By Other Organisations,511,07/08/2020,2008-00706,0.00,805.92,R,REDACTED PERSONAL DATA,No
Http://opendatacommunities.org/id/metropolitan-district-council/leeds,Leeds City Council,31/08/2020,Children and Families,Social Care  ,Supplies and Services,General Amenity For Clients/Residents,285,06/07/2020,2008-00707,0.00,-23.00,R,Amz*amazon.Co.Uk,Yes
Http://opendatacommunities.org/id/metropolitan-district-council/leeds,Leeds City Council,31/08/2020,Children and Families,Social Care  ,Supplies and Services,Office Consumables,210,27/07/2020,2008-00708,0.00,-26.59,R,Amz*amazon.Co.Uk,Yes
Http://opendatacommunities.org/id/metropolitan-district-council/leeds,Leeds City Council,31/08/2020,City Development,Libraries  Arts & Heritage  ,Supplies and Services,Operational Materials,205,27/07/2020,2008-00709,0.00,-14.31,R,Amz*funky Gadgets,Yes
Http://opendatacommunities.org/id/metropolitan-district-council/leeds,Leeds City Council,31/08/2020,City Development,Highways  ,Supplies and Services,Operational Furniture and Equipment,203,15/07/2020,2008-00710,0.00,-108.66,R,Amz*kupaiku,Yes
Http://opendatacommunities.org/id/metropolitan-district-council/leeds,Leeds City Council,31/08/2020,Children and Families,Social Care  ,Supplies and Services,Teaching Furniture & Equipment,207,08/07/2020,2008-00711,0.00,-27.08,R,Amz*puppets By Post,Yes
Http://opendatacommunities.org/id/metropolitan-district-council/leeds,Leeds City Council,31/08/2020,Children and Families,Social Care  ,Supplies and Services,Bedding & Linen,222,02/07/2020,2008-00712,0.00,-6.90,R,Amz*spring Well Beds,Yes
Http://opendatacommunities.org/id/metropolitan-district-council/leeds,Leeds City Council,31/08/2020,Children and Families,Social Care  ,Supplies and Services,General Amenity For Clients/Residents,285,07/07/2020,2008-00713,0.00,-11.80,R,Amz*uyuke Store,Yes
Http://opendatacommunities.org/id/metropolitan-district-council/leeds,Leeds City Council,31/08/2020,City Development,Highways  ,Supplies and Services,Operational Furniture and Equipment,203,15/07/2020,2008-00714,0.00,-29.88,R,Amz*viro Display,Yes
Http://opendatacommunities.org/id/metropolitan-district-council/leeds,Leeds City Council,31/08/2020,Children and Families,Social Care  ,Supplies and Services,General Amenity For Clients/Residents,285,06/07/2020,2008-00715,0.00,10.00,R,Amzn Digital,Yes
Http://opendatacommunities.org/id/metropolitan-district-council/leeds,Leeds City Council,31/08/2020,Children and Families,Social Care  ,Supplies and Services,Office Consumables,210,09/07/2020,2008-00716,0.00,20.00,R,Amzn Digital 35312477661,Yes
Http://opendatacommunities.org/id/metropolitan-district-council/leeds,Leeds City Council,31/08/2020,Resources and Housing,Commercial Services  ,Supplies and Services,Operational Furniture and Equipment,203,30/07/2020,2008-00717,0.00,96.34,R,Amzn Mktp Uk*kh7ol6xw5,Yes
Http://opendatacommunities.org/id/metropolitan-district-council/leeds,Leeds City Council,31/08/2020,Children and Families,Social Care  ,Supplies and Services,Teaching Materials,202,22/07/2020,2008-00718,0.00,3.99,R,Amznfreetime,Yes
Http://opendatacommunities.org/id/metropolitan-district-council/leeds,Leeds City Council,31/08/2020,Children and Families,Social Care  ,Supplies and Services,General Amenity For Clients/Residents,285,30/06/2020,2008-00719,0.00,14.99,R,Amznmktplace,Yes
Http://opendatacommunities.org/id/metropolitan-district-council/leeds,Leeds City Council,31/08/2020,Children and Families,Social Care  ,Supplies and Services,Teaching Materials,202,30/06/2020,2008-00720,0.00,62.70,R,Amznmktplace,Yes
Http://opendatacommunities.org/id/metropolitan-district-council/leeds,Leeds City Council,31/08/2020,Children and Families,Social Care  ,Supplies and Services,Teaching Materials,202,30/06/2020,2008-00721,0.00,65.40,R,Amznmktplace,Yes
Http://opendatacommunities.org/id/metropolitan-district-council/leeds,Leeds City Council,31/08/2020,Children and Families,Social Care  ,Supplies and Services,General Amenity For Clients/Residents,285,30/06/2020,2008-00722,0.00,96.83,R,Amznmktplace,Yes
Http://opendatacommunities.org/id/metropolitan-district-council/leeds,Leeds City Council,31/08/2020,Children and Families,Social Care  ,Supplies and Services,Teaching Materials,202,30/06/2020,2008-00723,0.00,8.33,R,Amznmktplace,Yes
Http://opendatacommunities.org/id/metropolitan-district-council/leeds,Leeds City Council,31/08/2020,City Development,Libraries  Arts & Heritage  ,Supplies and Services,Operational Materials,205,30/06/2020,2008-00724,0.00,14.98,R,Amznmktplace,Yes
Http://opendatacommunities.org/id/metropolitan-district-council/leeds,Leeds City Council,31/08/2020,Children and Families,Social Care  ,Third Party Payments,Section 17,551,30/06/2020,2008-00725,0.00,12.49,R,Amznmktplace,Yes
Http://opendatacommunities.org/id/metropolitan-district-council/leeds,Leeds City Council,31/08/2020,Children and Families,Social Care  ,Supplies and Services,General Amenity For Clients/Residents,285,30/06/2020,2008-00726,0.00,63.30,R,Amznmktplace,Yes
Http://opendatacommunities.org/id/metropolitan-district-council/leeds,Leeds City Council,31/08/2020,Children and Families,Social Care  ,Supplies and Services,Teaching Materials,202,30/06/2020,2008-00727,0.00,78.58,R,Amznmktplace,Yes
Http://opendatacommunities.org/id/metropolitan-district-council/leeds,Leeds City Council,31/08/2020,Children and Families,Social Care  ,Supplies and Services,Teaching Materials,202,30/06/2020,2008-00728,0.00,25.58,R,Amznmktplace,Yes
Http://opendatacommunities.org/id/metropolitan-district-council/leeds,Leeds City Council,31/08/2020,Children and Families,Social Care  ,Third Party Payments,Fostering Allowances,546,30/06/2020,2008-00729,0.00,5.75,R,Amznmktplace,Yes
Http://opendatacommunities.org/id/metropolitan-district-council/leeds,Leeds City Council,31/08/2020,City Development,Recreation  ,Supplies and Services,Operational Furniture and Equipment,203,30/06/2020,2008-00730,0.00,20.79,R,Amznmktplace,Yes
Http://opendatacommunities.org/id/metropolitan-district-council/leeds,Leeds City Council,31/08/2020,Children and Families,Social Care  ,Supplies and Services,Operational Furniture and Equipment,203,30/06/2020,2008-00731,0.00,23.99,R,Amznmktplace,Yes
Http://opendatacommunities.org/id/metropolitan-district-council/leeds,Leeds City Council,31/08/2020,City Development,Libraries  Arts & Heritage  ,Supplies and Services,Operational Materials,205,01/07/2020,2008-00732,0.00,112.68,R,Amznmktplace,Yes
Http://opendatacommunities.org/id/metropolitan-district-council/leeds,Leeds City Council,31/08/2020,Children and Families,Social Care  ,Supplies and Services,Schools related grant expenditure,299,01/07/2020,2008-00733,0.00,17.99,R,Amznmktplace,Yes
Http://opendatacommunities.org/id/metropolitan-district-council/leeds,Leeds City Council,31/08/2020,Children and Families,Social Care  ,Supplies and Services,Teaching Materials,202,01/07/2020,2008-00734,0.00,82.13,R,Amznmktplace,Yes
Http://opendatacommunities.org/id/metropolitan-district-council/leeds,Leeds City Council,31/08/2020,Children and Families,Social Care  ,Transfer Payments,Payments To Residents,622,02/07/2020,2008-00735,0.00,7.58,R,Amznmktplace,Yes
Http://opendatacommunities.org/id/metropolitan-district-council/leeds,Leeds City Council,31/08/2020,Children and Families,Social Care  ,Transfer Payments,Payments To Residents,622,02/07/2020,2008-00736,0.00,11.58,R,Amznmktplace,Yes
Http://opendatacommunities.org/id/metropolitan-district-council/leeds,Leeds City Council,31/08/2020,City Development,Libraries  Arts & Heritage  ,Supplies and Services,Operational Materials,205,02/07/2020,2008-00737,0.00,100.34,R,Amznmktplace,Yes
Http://opendatacommunities.org/id/metropolitan-district-council/leeds,Leeds City Council,31/08/2020,Children and Families,Social Care  ,Supplies and Services,Teaching Materials,202,02/07/2020,2008-00738,0.00,49.47,R,Amznmktplace,Yes
Http://opendatacommunities.org/id/metropolitan-district-council/leeds,Leeds City Council,31/08/2020,Resources and Housing,Shared Services  ,Supplies and Services,Office Consumables,210,02/07/2020,2008-00739,0.00,319.92,R,Amznmktplace,Yes
Http://opendatacommunities.org/id/metropolitan-district-council/leeds,Leeds City Council,31/08/2020,Resources and Housing,Technology  ,Supplies and Services,Computer Software & Equipment,214,02/07/2020,2008-00740,0.00,28.06,R,Amznmktplace,Yes
Http://opendatacommunities.org/id/metropolitan-district-council/leeds,Leeds City Council,31/08/2020,Children and Families,Social Care  ,Supplies and Services,General Amenity For Clients/Residents,285,02/07/2020,2008-00741,0.00,30.83,R,Amznmktplace,Yes
Http://opendatacommunities.org/id/metropolitan-district-council/leeds,Leeds City Council,31/08/2020,Children and Families,Social Care  ,Supplies and Services,Teaching Materials,202,02/07/2020,2008-00742,0.00,412.06,R,Amznmktplace,Yes
Http://opendatacommunities.org/id/metropolitan-district-council/leeds,Leeds City Council,31/08/2020,Resources and Housing,Commercial Services  ,Supplies and Services,Operational Furniture and Equipment,203,02/07/2020,2008-00743,0.00,92.11,R,Amznmktplace,Yes
Http://opendatacommunities.org/id/metropolitan-district-council/leeds,Leeds City Council,31/08/2020,Children and Families,Social Care  ,Supplies and Services,General Amenity For Clients/Residents,285,03/07/2020,2008-00744,0.00,128.69,R,Amznmktplace,Yes
Http://opendatacommunities.org/id/metropolitan-district-council/leeds,Leeds City Council,31/08/2020,Children and Families,Social Care  ,Third Party Payments,Contact,548,03/07/2020,2008-00745,0.00,82.11,R,Amznmktplace,Yes
Http://opendatacommunities.org/id/metropolitan-district-council/leeds,Leeds City Council,31/08/2020,Children and Families,Social Care  ,Supplies and Services,General Amenity For Clients/Residents,285,03/07/2020,2008-00746,0.00,-125.55,R,Amznmktplace,Yes
Http://opendatacommunities.org/id/metropolitan-district-council/leeds,Leeds City Council,31/08/2020,Adults and Health,Services For Adults Under 65 Mental/Dis  ,Supplies and Services,Clothing & Uniforms,241,03/07/2020,2008-00747,0.00,22.43,R,Amznmktplace,Yes
Http://opendatacommunities.org/id/metropolitan-district-council/leeds,Leeds City Council,31/08/2020,Children and Families,Social Care  ,Premises,Furniture and Fittings,195,03/07/2020,2008-00748,0.00,47.75,R,Amznmktplace,Yes
Http://opendatacommunities.org/id/metropolitan-district-council/leeds,Leeds City Council,31/08/2020,Children and Families,Social Care  ,Supplies and Services,Teaching Furniture & Equipment,207,04/07/2020,2008-00749,0.00,118.91,R,Amznmktplace,Yes
Http://opendatacommunities.org/id/metropolitan-district-council/leeds,Leeds City Council,31/08/2020,Children and Families,Social Care  ,Supplies and Services,Teaching Materials,202,04/07/2020,2008-00750,0.00,383.77,R,Amznmktplace,Yes
Http://opendatacommunities.org/id/metropolitan-district-council/leeds,Leeds City Council,31/08/2020,Resources and Housing,Finance  ,Supplies and Services,Computer Software & Equipment,214,04/07/2020,2008-00751,0.00,6.37,R,Amznmktplace,Yes
Http://opendatacommunities.org/id/metropolitan-district-council/leeds,Leeds City Council,31/08/2020,Children and Families,Social Care  ,Third Party Payments,Contact,548,05/07/2020,2008-00752,0.00,37.98,R,Amznmktplace,Yes
Http://opendatacommunities.org/id/metropolitan-district-council/leeds,Leeds City Council,31/08/2020,Resources and Housing,Commercial Services  ,Supplies and Services,Operational Furniture and Equipment,203,05/07/2020,2008-00753,0.00,92.11,R,Amznmktplace,Yes
Http://opendatacommunities.org/id/metropolitan-district-council/leeds,Leeds City Council,31/08/2020,City Development,Recreation  ,Supplies and Services,Operational Furniture and Equipment,203,05/07/2020,2008-00754,0.00,18.73,R,Amznmktplace,Yes
Http://opendatacommunities.org/id/metropolitan-district-council/leeds,Leeds City Council,31/08/2020,Children and Families,Social Care  ,Supplies and Services,Teaching Furniture & Equipment,207,06/07/2020,2008-00755,0.00,24.52,R,Amznmktplace,Yes
Http://opendatacommunities.org/id/metropolitan-district-council/leeds,Leeds City Council,31/08/2020,Children and Families,Social Care  ,Third Party Payments,Section 17,551,06/07/2020,2008-00756,0.00,66.66,R,Amznmktplace,Yes
Http://opendatacommunities.org/id/metropolitan-district-council/leeds,Leeds City Council,31/08/2020,Communities and Environment,Customer Access  ,Supplies and Services,Schools related grant expenditure,299,06/07/2020,2008-00757,0.00,33.30,R,Amznmktplace,Yes
Http://opendatacommunities.org/id/metropolitan-district-council/leeds,Leeds City Council,31/08/2020,Children and Families,Social Care  ,Supplies and Services,Teaching Furniture & Equipment,207,06/07/2020,2008-00758,0.00,51.76,R,Amznmktplace,Yes
Http://opendatacommunities.org/id/metropolitan-district-council/leeds,Leeds City Council,31/08/2020,Children and Families,Social Care  ,Supplies and Services,Crockery  Cutlery & Utensils,221,06/07/2020,2008-00759,0.00,72.47,R,Amznmktplace,Yes
Http://opendatacommunities.org/id/metropolitan-district-council/leeds,Leeds City Council,31/08/2020,Children and Families,Social Care  ,Supplies and Services,Teaching Materials,202,06/07/2020,2008-00760,0.00,23.95,R,Amznmktplace,Yes
Http://opendatacommunities.org/id/metropolitan-district-council/leeds,Leeds City Council,31/08/2020,Resources and Housing,Commercial Services  ,Supplies and Services,Operational Furniture and Equipment,203,07/07/2020,2008-00761,0.00,6.23,R,Amznmktplace,Yes
Http://opendatacommunities.org/id/metropolitan-district-council/leeds,Leeds City Council,31/08/2020,Resources and Housing,Commercial Services  ,Supplies and Services,Operational Furniture and Equipment,203,07/07/2020,2008-00762,0.00,4.15,R,Amznmktplace,Yes
Http://opendatacommunities.org/id/metropolitan-district-council/leeds,Leeds City Council,31/08/2020,Resources and Housing,Commercial Services  ,Supplies and Services,Operational Furniture and Equipment,203,07/07/2020,2008-00763,0.00,4.15,R,Amznmktplace,Yes
Http://opendatacommunities.org/id/metropolitan-district-council/leeds,Leeds City Council,31/08/2020,Children and Families,Social Care  ,Third Party Payments, Direct Work,549,07/07/2020,2008-00764,0.00,122.34,R,Amznmktplace,Yes
Http://opendatacommunities.org/id/metropolitan-district-council/leeds,Leeds City Council,31/08/2020,Communities and Environment,Environmental Health  ,Supplies and Services,Operational Furniture and Equipment,203,07/07/2020,2008-00765,0.00,75.69,R,Amznmktplace,Yes
Http://opendatacommunities.org/id/metropolitan-district-council/leeds,Leeds City Council,31/08/2020,Children and Families,Social Care  ,Supplies and Services,Operational Furniture and Equipment,203,07/07/2020,2008-00766,0.00,13.33,R,Amznmktplace,Yes
Http://opendatacommunities.org/id/metropolitan-district-council/leeds,Leeds City Council,31/08/2020,City Development,Highways  ,Premises,Highways Maintenance,145,07/07/2020,2008-00767,0.00,29.88,R,Amznmktplace,Yes
Http://opendatacommunities.org/id/metropolitan-district-council/leeds,Leeds City Council,31/08/2020,Children and Families,Social Care  ,Supplies and Services,Operational Furniture and Equipment,203,07/07/2020,2008-00768,0.00,18.57,R,Amznmktplace,Yes
Http://opendatacommunities.org/id/metropolitan-district-council/leeds,Leeds City Council,31/08/2020,Resources and Housing,Commercial Services  ,Supplies and Services,Operational Furniture and Equipment,203,07/07/2020,2008-00769,0.00,7.47,R,Amznmktplace,Yes
Http://opendatacommunities.org/id/metropolitan-district-council/leeds,Leeds City Council,31/08/2020,Resources and Housing,Commercial Services  ,Supplies and Services,Operational Furniture and Equipment,203,07/07/2020,2008-00770,0.00,6.23,R,Amznmktplace,Yes
Http://opendatacommunities.org/id/metropolitan-district-council/leeds,Leeds City Council,31/08/2020,Communities and Environment,Environmental Health  ,Supplies and Services,Postages,212,07/07/2020,2008-00771,0.00,55.98,R,Amznmktplace,Yes
Http://opendatacommunities.org/id/metropolitan-district-council/leeds,Leeds City Council,31/08/2020,Children and Families,Social Care  ,Supplies and Services,Operational Furniture and Equipment,203,07/07/2020,2008-00772,0.00,11.23,R,Amznmktplace,Yes
Http://opendatacommunities.org/id/metropolitan-district-council/leeds,Leeds City Council,31/08/2020,Children and Families,Social Care  ,Supplies and Services,Operational Furniture and Equipment,203,08/07/2020,2008-00773,0.00,65.07,R,Amznmktplace,Yes
Http://opendatacommunities.org/id/metropolitan-district-council/leeds,Leeds City Council,31/08/2020,City Development,Markets & City Centre Management  ,Premises,General Maintenance,104,08/07/2020,2008-00774,0.00,14.65,R,Amznmktplace,Yes
Http://opendatacommunities.org/id/metropolitan-district-council/leeds,Leeds City Council,31/08/2020,Resources and Housing,Technology  ,Supplies and Services,Operational Materials,205,08/07/2020,2008-00775,0.00,320.21,R,Amznmktplace,Yes
